Body Name,Body,Service Division Label,Service Division Code,Organisational Unit,Expenditure Category,Expenditure Code,CIPFA detailed expediture type,CIPFA detailed expediture code,Narrative,Date,Transaction number,Net Amount,Capital and Revenue,Supplier Name,Supplier ID,,
Chorley Borough Council,http://statistics.data.gov.uk/id/local-authority/30UE,Central Support Services,1009,Early Intervention,Core Funding Grants,40133,Grants and Subscriptions,5031,small comm funding,18/10/2019,0141482,400.00,Revenue,#Watch Us Grow,78296,,
Chorley Borough Council,http://statistics.data.gov.uk/id/local-authority/30UE,Democratic Represent and  Mgnt,1007,Early Intervention,External Contractor - Trust or Charity,50008,Private Contractors,5042,Active Nation Management Fee 2019 2020,04/10/2019,0141242,"34,726.79",Revenue,Active Nation UK Ltd,17144,,
Chorley Borough Council,http://statistics.data.gov.uk/id/local-authority/30UE,Central Support Services,1009,Customer & Digital,Telephones - Other,40085,Communication and Computing,5028,Adept Telecom - September 2019,24/10/2019,0141431,"1,418.81",Revenue,Adept Telecom PLC,77452,,
Chorley Borough Council,http://statistics.data.gov.uk/id/local-authority/30UE,Capital,Capital,Business Development & Growth,Architects Fees,03022,Capital Expenditure,Capital,Extra 20k budget allocated to order,30/10/2019,0141667,"6,747.50",Capital,AEW Architects & Designers Ltd,66520,,
Chorley Borough Council,http://statistics.data.gov.uk/id/local-authority/30UE,Unapportionable Central OHeads,1009,Customer & Digital,Bank Charges,40151,Miscellaneous Expenses,5034,Transactions,04/10/2019,0141101,"1,316.45",Revenue,Allpay Net Ltd,17242,,
Chorley Borough Council,http://statistics.data.gov.uk/id/local-authority/30UE,Unapportionable Central OHeads,1009,Policy & Governance,Car Leasing Payment,14100,Direct Employee Expenses,5001,VIN REDACTED - NAME REDACTED,30/10/2019,0141409,102.51,Revenue,Alphabet (Uk) Fleet Management Ltd,16651,,
Chorley Borough Council,http://statistics.data.gov.uk/id/local-authority/30UE,Unapportionable Central OHeads,1009,Policy & Governance,Car Leasing Payment,14100,Direct Employee Expenses,5001,vat,30/10/2019,0141409,9.06,Revenue,Alphabet (Uk) Fleet Management Ltd,16651,,
Chorley Borough Council,http://statistics.data.gov.uk/id/local-authority/30UE,Central Support Services,1009,Policy & Governance,Car Leasing Payment,14100,Direct Employee Expenses,5001,VIN REDACTED - NAME REDACTED,30/10/2019,0141409,213.60,Revenue,Alphabet (Uk) Fleet Management Ltd,16651,,
Chorley Borough Council,http://statistics.data.gov.uk/id/local-authority/30UE,Central Support Services,1009,Policy & Governance,Car Leasing Payment,14100,Direct Employee Expenses,5001,vat,30/10/2019,0141409,18.42,Revenue,Alphabet (Uk) Fleet Management Ltd,16651,,
Chorley Borough Council,http://statistics.data.gov.uk/id/local-authority/30UE,Unapportionable Central OHeads,1009,Policy & Governance,Car Leasing Payment,14100,Direct Employee Expenses,5001,VIN REDACTED - NAME REDACTED,30/10/2019,0141409,196.50,Revenue,Alphabet (Uk) Fleet Management Ltd,16651,,
Chorley Borough Council,http://statistics.data.gov.uk/id/local-authority/30UE,Unapportionable Central OHeads,1009,Policy & Governance,Car Leasing Payment,14100,Direct Employee Expenses,5001,vat,30/10/2019,0141409,16.08,Revenue,Alphabet (Uk) Fleet Management Ltd,16651,,
Chorley Borough Council,http://statistics.data.gov.uk/id/local-authority/30UE,Unapportionable Central OHeads,1009,Policy & Governance,Refreshments,40036,Catering,5024,"Sanitisation, provision of water and hire of machines for all Council sites",24/10/2019,0141524,574.40,Revenue,Angel Springs Ltd T/A Waterlogic UK,77689,,
Chorley Borough Council,http://statistics.data.gov.uk/id/local-authority/30UE,Unapportionable Central OHeads,1009,Policy & Governance,Refreshments,40036,Catering,5024,"Sanitisation, provision of water and hire of machines for all Council sites",24/10/2019,0141527,804.90,Revenue,Angel Springs Ltd T/A Waterlogic UK,77689,,
Chorley Borough Council,http://statistics.data.gov.uk/id/local-authority/30UE,Unapportionable Central OHeads,1009,Policy & Governance,Refreshments,40036,Catering,5024,"Sanitisation, provision of water and hire of machines for all Council sites",24/10/2019,0141528,500.66,Revenue,Angel Springs Ltd T/A Waterlogic UK,77689,,
Chorley Borough Council,http://statistics.data.gov.uk/id/local-authority/30UE,Service Management & Support,1009,Customer & Digital,Training Course Fees,17010,Indirect Employee Expenses,5002,PTI Training Course - Tree Inspections,11/10/2019,0141025,460.00,Revenue,Apex Arb Training Ltd,78228,,
Chorley Borough Council,http://statistics.data.gov.uk/id/local-authority/30UE,Service Management & Support,1009,Customer & Digital,Training Course Fees,17010,Indirect Employee Expenses,5002,Registration Fee,11/10/2019,0141025,35.00,Revenue,Apex Arb Training Ltd,78228,,
Chorley Borough Council,http://statistics.data.gov.uk/id/local-authority/30UE,Central Support Services,1009,Policy & Governance,Car Leasing Payment,14100,Direct Employee Expenses,5001,"Driver: NAME REDACTED Volkswagen Tiguan 1.5 TSi EVO 150 Match 5Dr Auto DSG, Metallic - Caribbean Blue, Winter Pack",30/10/2019,0141699,"3,393.22",Revenue,Arval UK Ltd,18240,,
Chorley Borough Council,http://statistics.data.gov.uk/id/local-authority/30UE,Central Support Services,1009,Policy & Governance,Car Leasing Payment,14100,Direct Employee Expenses,5001,vat,30/10/2019,0141699,313.59,Revenue,Arval UK Ltd,18240,,
Chorley Borough Council,http://statistics.data.gov.uk/id/local-authority/30UE,Public Transport,1067,Customer & Digital,Bus Shelters -Maintenance,20062,Grounds Maintenance Costs,5013,"Bus shelter-Wigan road A49 nr Lydiate lane, New seating, Painting and side panels As agreed with NAME REDACTED via email",11/10/2019,0141273,"1,875.00",Revenue,Autocross Euroshel Ltd,77509,,
Chorley Borough Council,http://statistics.data.gov.uk/id/local-authority/30UE,Control Accounts,Control,Policy & Governance,General Balances,00100,Balance Sheet,Balance,,18/10/2019,0140521,"5,560.75",Revenue,Barclaycard Commercial,59848,,
Chorley Borough Council,http://statistics.data.gov.uk/id/local-authority/30UE,Control Accounts,Control,Policy & Governance,General Balances,00100,Balance Sheet,Balance,Sep-19,18/10/2019,0141105,"3,953.44",Revenue,Barclaycard Commercial,59848,,
Chorley Borough Council,http://statistics.data.gov.uk/id/local-authority/30UE,Corporate Management,1008,Policy & Governance,Bank Charges,40151,Miscellaneous Expenses,5034,Aug-19,18/10/2019,0140824,15.00,Revenue,Barclaycard Merchant Services,61601,,
Chorley Borough Council,http://statistics.data.gov.uk/id/local-authority/30UE,Corporate Management,1008,Policy & Governance,Bank Charges,40151,Miscellaneous Expenses,5034,Aug-19,18/10/2019,0140824,"1,620.98",Revenue,Barclaycard Merchant Services,61601,,
Chorley Borough Council,http://statistics.data.gov.uk/id/local-authority/30UE,Corporate Management,1008,Policy & Governance,Bank Charges,40151,Miscellaneous Expenses,5034,Aug-19,18/10/2019,0140825,15.00,Revenue,Barclaycard Merchant Services,61601,,
Chorley Borough Council,http://statistics.data.gov.uk/id/local-authority/30UE,Corporate Management,1008,Policy & Governance,Bank Charges,40151,Miscellaneous Expenses,5034,Aug-19,18/10/2019,0140825,920.82,Revenue,Barclaycard Merchant Services,61601,,
Chorley Borough Council,http://statistics.data.gov.uk/id/local-authority/30UE,Corporate Management,1008,Policy & Governance,Bank Charges,40151,Miscellaneous Expenses,5034,Aug-19,18/10/2019,0140827,15.00,Revenue,Barclaycard Merchant Services,61601,,
Chorley Borough Council,http://statistics.data.gov.uk/id/local-authority/30UE,Corporate Management,1008,Policy & Governance,Bank Charges,40151,Miscellaneous Expenses,5034,Aug-19,18/10/2019,0140827,363.10,Revenue,Barclaycard Merchant Services,61601,,
Chorley Borough Council,http://statistics.data.gov.uk/id/local-authority/30UE,Corporate Management,1008,Policy & Governance,Bank Charges,40151,Miscellaneous Expenses,5034,,18/10/2019,0141509,15.00,Revenue,Barclaycard Merchant Services,61601,,
Chorley Borough Council,http://statistics.data.gov.uk/id/local-authority/30UE,Corporate Management,1008,Policy & Governance,Bank Charges,40151,Miscellaneous Expenses,5034,,18/10/2019,0141509,"1,680.33",Revenue,Barclaycard Merchant Services,61601,,
Chorley Borough Council,http://statistics.data.gov.uk/id/local-authority/30UE,Corporate Management,1008,Policy & Governance,Bank Charges,40151,Miscellaneous Expenses,5034,,18/10/2019,0141510,15.00,Revenue,Barclaycard Merchant Services,61601,,
Chorley Borough Council,http://statistics.data.gov.uk/id/local-authority/30UE,Corporate Management,1008,Policy & Governance,Bank Charges,40151,Miscellaneous Expenses,5034,,18/10/2019,0141510,397.47,Revenue,Barclaycard Merchant Services,61601,,
Chorley Borough Council,http://statistics.data.gov.uk/id/local-authority/30UE,Corporate Management,1008,Policy & Governance,Bank Charges,40151,Miscellaneous Expenses,5034,,18/10/2019,0141512,15.00,Revenue,Barclaycard Merchant Services,61601,,
Chorley Borough Council,http://statistics.data.gov.uk/id/local-authority/30UE,Corporate Management,1008,Policy & Governance,Bank Charges,40151,Miscellaneous Expenses,5034,,18/10/2019,0141512,"1,028.09",Revenue,Barclaycard Merchant Services,61601,,
Chorley Borough Council,http://statistics.data.gov.uk/id/local-authority/30UE,Homelessness,1075,Early Intervention,Laundry,40042,"Clothing, Uniforms and Laundry",5025,Cotswold Supported Housing 12 month laundry services  01/04/19 to 31/03/20 Total amount 6000,30/10/2019,0141090,519.47,Revenue,Berendsen UK Ltd,20799,,
Chorley Borough Council,http://statistics.data.gov.uk/id/local-authority/30UE,Corporate Management,1008,Customer & Digital,Printing,40043,"Printing, Stationery & General",5026,"2000 bin tags: Waste Tags - 1 Typex1000 or 2000, Double sided, 4 colour process, 170gsm synthetic material, 100X450, Die-cut",04/10/2019,0141239,628.00,Revenue,BHW Print Group,77459,,
Chorley Borough Council,http://statistics.data.gov.uk/id/local-authority/30UE,Elections,1012,Policy & Governance,External Contractor,40198,Miscellaneous Expenses,5034,Payroll Services Contract 2019/20 Elections,30/10/2019,0140457,"1,886.89",Revenue,Blackpool Borough Council,16518,,
Chorley Borough Council,http://statistics.data.gov.uk/id/local-authority/30UE,Central Support Services,1009,Policy & Governance,External Contractor,40198,Miscellaneous Expenses,5034,Payroll Services contract 2019/20 Chorley Council,30/10/2019,0140458,"6,973.20",Revenue,Blackpool Borough Council,16518,,
Chorley Borough Council,http://statistics.data.gov.uk/id/local-authority/30UE,Central Support Services,1009,Policy & Governance,External Contractor,40198,Miscellaneous Expenses,5034,Payroll Services contract 2019/20 Chorley Council,30/10/2019,0141497,"7,196.49",Revenue,Blackpool Borough Council,16518,,
Chorley Borough Council,http://statistics.data.gov.uk/id/local-authority/30UE,Recognised Cap Grants & Conts,,Customer & Digital,Contributions Parish Councils,40144,Grants and Subscriptions,5031,CIL 1 apr to 30 sept,16/10/2019,0141367,"3,056.53",Revenue,Brindle Parish Council,17023,,
Chorley Borough Council,http://statistics.data.gov.uk/id/local-authority/30UE,Unapportionable Central OHeads,1009,Customer & Digital,Publicity - Advertising,40157,Miscellaneous Expenses,5034,"Preston, Central Lancashire 2019/2020 Business Listings Advert",11/10/2019,0141003,"1,388.18",Revenue,British Telecommunications,18431,,
Chorley Borough Council,http://statistics.data.gov.uk/id/local-authority/30UE,Capital,Capital,Business Development & Growth,Main Contractor,03007,Capital Expenditure,Capital,Refurbishment works to Coronation Rec Ground kiosk as outlined in the specification and schedule of works,04/10/2019,0141144,"24,510.38",Capital,Bryan Lee Building Contractors Ltd,78160,,
Chorley Borough Council,http://statistics.data.gov.uk/id/local-authority/30UE,Service Management & Support,1009,Customer & Digital,Supplies-Grounds Maintenance,40025,"Equipment, Furniture & Materia",5023,Rowan Croft pond  4 x 130.00 per visit 4 visits between 01/04/2019 - 31/03/2020,30/10/2019,0141486,130.00,Revenue,C J Lyon,16579,,
Chorley Borough Council,http://statistics.data.gov.uk/id/local-authority/30UE,Service Management & Support,1009,Customer & Digital,Supplies-Grounds Maintenance,40025,"Equipment, Furniture & Materia",5023,High Meadow pond  4 x 130.00 per visit 4 visits between 01/07/2019 - 31/03/2020,30/10/2019,0141486,130.00,Revenue,C J Lyon,16579,,
Chorley Borough Council,http://statistics.data.gov.uk/id/local-authority/30UE,Unapportionable Central OHeads,1009,Customer & Digital,Emergency Call Out System,40096,Communication and Computing,5028,Out of Hours call charges 19/20,04/10/2019,0141006,294.84,Revenue,CallCare Ltd,20257,,
Chorley Borough Council,http://statistics.data.gov.uk/id/local-authority/30UE,Unapportionable Central OHeads,1009,Customer & Digital,Emergency Call Out System,40096,Communication and Computing,5028,Out of Hours standing charge 19/20,04/10/2019,0141006,120.00,Revenue,CallCare Ltd,20257,,
Chorley Borough Council,http://statistics.data.gov.uk/id/local-authority/30UE,Unapportionable Central OHeads,1009,Customer & Digital,Emergency Call Out System,40096,Communication and Computing,5028,Out of Hours call charges 19/20,09/10/2019,0141252,347.76,Revenue,CallCare Ltd,20257,,
Chorley Borough Council,http://statistics.data.gov.uk/id/local-authority/30UE,Unapportionable Central OHeads,1009,Customer & Digital,Emergency Call Out System,40096,Communication and Computing,5028,Out of Hours standing charge 19/20,09/10/2019,0141252,120.00,Revenue,CallCare Ltd,20257,,
Chorley Borough Council,http://statistics.data.gov.uk/id/local-authority/30UE,Corporate Management,1008,Customer & Digital,Clinical Waste Collection,50007,Private Contractors,5042,Provision of Clinical waste collection and disposal service to residential properties in Chorley Borough (1/4/19 to /3/20),22/10/2019,0140612,317.00,Revenue,Cannon Hygiene Limited,18158,,
Chorley Borough Council,http://statistics.data.gov.uk/id/local-authority/30UE,Corporate Management,1008,Customer & Digital,Clinical Waste Collection,50007,Private Contractors,5042,Provision of Clinical waste collection and disposal service to residential properties in Chorley Borough (1/4/19 to /3/20),16/10/2019,0141062,274.00,Revenue,Cannon Hygiene Limited,18158,,
Chorley Borough Council,http://statistics.data.gov.uk/id/local-authority/30UE,Corporate Management,1008,Customer & Digital,Clinical Waste Collection,50007,Private Contractors,5042,Provision of Clinical waste collection and disposal service to residential properties in Chorley Borough (1/4/19 to /3/20),16/10/2019,0141097,970.70,Revenue,Cannon Hygiene Limited,18158,,
Chorley Borough Council,http://statistics.data.gov.uk/id/local-authority/30UE,Central Support Services,1009,Customer & Digital,Miscellaneous Expenses,40200,Miscellaneous Expenses,5034,small comm funding,09/10/2019,0141030,"1,114.75",Revenue,Canon (UK) Ltd,17492,,
Chorley Borough Council,http://statistics.data.gov.uk/id/local-authority/30UE,Central Support Services,1009,Customer & Digital,Miscellaneous Expenses,40200,Miscellaneous Expenses,5034,1 July 2019 - 30 September 2019,09/10/2019,0141106,"1,668.09",Revenue,Canon (UK) Ltd,17492,,
Chorley Borough Council,http://statistics.data.gov.uk/id/local-authority/30UE,Economic Development,1096,Business Development & Growth,Miscellaneous Expenses,40200,Miscellaneous Expenses,5034,repair to the access gate to New Market Street - removal of damaged gate and post. new post to incorporate provision for padlock,30/10/2019,0141599,780.00,Revenue,Catterall & Wood Ltd,59988,,
Chorley Borough Council,http://statistics.data.gov.uk/id/local-authority/30UE,Recognised Cap Grants & Conts,,Customer & Digital,Contributions Parish Councils,40144,Grants and Subscriptions,5031,cil 1 apr to 30sept 2019,16/10/2019,0141370,"1,306.26",Revenue,Charnock Richard Parish Cncl,16206,,
Chorley Borough Council,http://statistics.data.gov.uk/id/local-authority/30UE,Parking Services,1066,Business Development & Growth,Miscellaneous Expenses,40200,Miscellaneous Expenses,5034,Job ref: W7414123W Please carry out repairs to the touch screen on Honeywell 99EX s/n 16156D812C+J13,09/10/2019,0140985,509.05,Revenue,Chipside Ltd,22063,,
Chorley Borough Council,http://statistics.data.gov.uk/id/local-authority/30UE,Parking Services,1066,Business Development & Growth,External Contractors,50008,Private Contractors,5042,"01.04.2019-31.03.2020, Notice Processing, Auto phone and Internet Payments, Internet Evidence/Submission, Telephone Assist.",30/10/2019,0141601,858.45,Revenue,Chipside Ltd,22063,,
Chorley Borough Council,http://statistics.data.gov.uk/id/local-authority/30UE,Parking Services,1066,Business Development & Growth,External Contractors,50008,Private Contractors,5042,"Processing 075, 076, 077, 079, 080, 085, 086, MIPERMIT FEES+ CHARGE, ELECPAYBANKFEE, Processing 010, 011",30/10/2019,0141601,95.40,Revenue,Chipside Ltd,22063,,
Chorley Borough Council,http://statistics.data.gov.uk/id/local-authority/30UE,Central Support Services,1009,Early Intervention,Core Funding Grants,40133,Grants and Subscriptions,5031,small comm grant,24/10/2019,0141146,500.00,Revenue,Chorley & Dist Sports Forum,17713,,
Chorley Borough Council,http://statistics.data.gov.uk/id/local-authority/30UE,Economic Development,1096,Business Development & Growth,Publicity - Advertising,40157,Miscellaneous Expenses,5034,12 months sponsorship plaque for Chorley Markets,16/10/2019,0141107,250.00,Revenue,Chorley & South Ribble Shopmobility,18403,,
Chorley Borough Council,http://statistics.data.gov.uk/id/local-authority/30UE,Democratic Represent and  Mgnt,1007,Policy & Governance,Grants To Other Organisations,40127,Grants and Subscriptions,5031,Councillor Community Grant,07/10/2019,0139794,250.00,Revenue,Chorley Amatetur Boxing Club,22332,,
Chorley Borough Council,http://statistics.data.gov.uk/id/local-authority/30UE,Corporate Management,1008,Customer & Digital,Taxi Testing & Vehicle Safety Report,40234,Services,5027,mot,02/10/2019,0140652,"1,810.05",Revenue,Chorley Autocare Ltd,17110,,
Chorley Borough Council,http://statistics.data.gov.uk/id/local-authority/30UE,Corporate Management,1008,Customer & Digital,Taxi Testing & Vehicle Safety Report,40234,Services,5027,taxi test,02/10/2019,0140652,282.15,Revenue,Chorley Autocare Ltd,17110,,
Chorley Borough Council,http://statistics.data.gov.uk/id/local-authority/30UE,Corporate Management,1008,Customer & Digital,Taxi Testing & Vehicle Safety Report,40234,Services,5027,mot,30/10/2019,0141487,"1,206.70",Revenue,Chorley Autocare Ltd,17110,,
Chorley Borough Council,http://statistics.data.gov.uk/id/local-authority/30UE,Corporate Management,1008,Customer & Digital,Taxi Testing & Vehicle Safety Report,40234,Services,5027,taxi test,30/10/2019,0141487,188.10,Revenue,Chorley Autocare Ltd,17110,,
Chorley Borough Council,http://statistics.data.gov.uk/id/local-authority/30UE,Democratic Represent and  Mgnt,1007,Chief Executive,Refreshments,40036,Catering,5024,Milk,07/10/2019,0141246,1.25,Revenue,Chorley BC Petty Cash,16301,,
Chorley Borough Council,http://statistics.data.gov.uk/id/local-authority/30UE,Democratic Represent and  Mgnt,1007,Chief Executive,Tools & Equipment - Purchase,40003,"Equipment, Furniture & Materia",5023,Batteries,07/10/2019,0141246,6.67,Revenue,Chorley BC Petty Cash,16301,,
Chorley Borough Council,http://statistics.data.gov.uk/id/local-authority/30UE,Unapportionable Central OHeads,1009,Chief Executive,Refreshments,40036,Catering,5024,Milk,07/10/2019,0141246,2.00,Revenue,Chorley BC Petty Cash,16301,,
Chorley Borough Council,http://statistics.data.gov.uk/id/local-authority/30UE,Unapportionable Central OHeads,1009,Chief Executive,Stationery,40050,"Printing, Stationery & General",5026,Strung tags for new headsets,07/10/2019,0141246,4.16,Revenue,Chorley BC Petty Cash,16301,,
Chorley Borough Council,http://statistics.data.gov.uk/id/local-authority/30UE,Democratic Represent and  Mgnt,1007,Chief Executive,Lifelong Learning Activities,40194,Miscellaneous Expenses,5034,2x Baskets,07/10/2019,0141246,18.00,Revenue,Chorley BC Petty Cash,16301,,
Chorley Borough Council,http://statistics.data.gov.uk/id/local-authority/30UE,Democratic Represent and  Mgnt,1007,Chief Executive,Lifelong Learning Activities,40194,Miscellaneous Expenses,5034,Food colouring for education,07/10/2019,0141246,5.20,Revenue,Chorley BC Petty Cash,16301,,
Chorley Borough Council,http://statistics.data.gov.uk/id/local-authority/30UE,Tourism,1039,Chief Executive,Miscellaneous Expenses,40200,Miscellaneous Expenses,5034,line marking spray for Chorley Flower Show,07/10/2019,0141246,13.33,Revenue,Chorley BC Petty Cash,16301,,
Chorley Borough Council,http://statistics.data.gov.uk/id/local-authority/30UE,Economic Development,1096,Chief Executive,Miscellaneous Expenses,40200,Miscellaneous Expenses,5034,Coach visits (Woodchats),07/10/2019,0141246,10.00,Revenue,Chorley BC Petty Cash,16301,,
Chorley Borough Council,http://statistics.data.gov.uk/id/local-authority/30UE,Unapportionable Central OHeads,1009,Chief Executive,Refreshments,40036,Catering,5024,Milk,07/10/2019,0141246,3.00,Revenue,Chorley BC Petty Cash,16301,,
Chorley Borough Council,http://statistics.data.gov.uk/id/local-authority/30UE,Economic Development,1096,Chief Executive,Miscellaneous Expenses,40200,Miscellaneous Expenses,5034,Woodchats,07/10/2019,0141246,10.00,Revenue,Chorley BC Petty Cash,16301,,
Chorley Borough Council,http://statistics.data.gov.uk/id/local-authority/30UE,Democratic Represent and  Mgnt,1007,Chief Executive,Refreshments,40036,Catering,5024,Teabags,07/10/2019,0141246,3.00,Revenue,Chorley BC Petty Cash,16301,,
Chorley Borough Council,http://statistics.data.gov.uk/id/local-authority/30UE,Democratic Represent and  Mgnt,1007,Chief Executive,Refreshments,40036,Catering,5024,milk and sugar,07/10/2019,0141246,4.00,Revenue,Chorley BC Petty Cash,16301,,
Chorley Borough Council,http://statistics.data.gov.uk/id/local-authority/30UE,Unapportionable Central OHeads,1009,Chief Executive,Refreshments,40036,Catering,5024,milk,07/10/2019,0141246,2.00,Revenue,Chorley BC Petty Cash,16301,,
Chorley Borough Council,http://statistics.data.gov.uk/id/local-authority/30UE,Unapportionable Central OHeads,1009,Chief Executive,Refreshments,40036,Catering,5024,milk,07/10/2019,0141246,4.60,Revenue,Chorley BC Petty Cash,16301,,
Chorley Borough Council,http://statistics.data.gov.uk/id/local-authority/30UE,Unapportionable Central OHeads,1009,Chief Executive,Refreshments,40036,Catering,5024,milk,07/10/2019,0141246,3.30,Revenue,Chorley BC Petty Cash,16301,,
Chorley Borough Council,http://statistics.data.gov.uk/id/local-authority/30UE,Unapportionable Central OHeads,1009,Chief Executive,Refreshments,40036,Catering,5024,milk,07/10/2019,0141246,4.55,Revenue,Chorley BC Petty Cash,16301,,
Chorley Borough Council,http://statistics.data.gov.uk/id/local-authority/30UE,Unapportionable Central OHeads,1009,Chief Executive,Refreshments,40036,Catering,5024,milk,07/10/2019,0141246,1.70,Revenue,Chorley BC Petty Cash,16301,,
Chorley Borough Council,http://statistics.data.gov.uk/id/local-authority/30UE,Unapportionable Central OHeads,1009,Chief Executive,Refreshments,40036,Catering,5024,milk,07/10/2019,0141246,2.30,Revenue,Chorley BC Petty Cash,16301,,
Chorley Borough Council,http://statistics.data.gov.uk/id/local-authority/30UE,Unapportionable Central OHeads,1009,Chief Executive,Refreshments,40036,Catering,5024,milk,07/10/2019,0141246,2.00,Revenue,Chorley BC Petty Cash,16301,,
Chorley Borough Council,http://statistics.data.gov.uk/id/local-authority/30UE,Homelessness,1075,Chief Executive,Miscellaneous Expenses,40200,Miscellaneous Expenses,5034,refreshments for Syrian programme,07/10/2019,0141246,8.97,Revenue,Chorley BC Petty Cash,16301,,
Chorley Borough Council,http://statistics.data.gov.uk/id/local-authority/30UE,Homelessness,1075,Chief Executive,Miscellaneous Expenses,40200,Miscellaneous Expenses,5034,bag for life,07/10/2019,0141246,0.08,Revenue,Chorley BC Petty Cash,16301,,
Chorley Borough Council,http://statistics.data.gov.uk/id/local-authority/30UE,Democratic Represent and  Mgnt,1007,Chief Executive,Stationery,40050,"Printing, Stationery & General",5026,NAME REDACTED,07/10/2019,0141246,8.10,Revenue,Chorley BC Petty Cash,16301,,
Chorley Borough Council,http://statistics.data.gov.uk/id/local-authority/30UE,Democratic Represent and  Mgnt,1007,Chief Executive,Stationery,40050,"Printing, Stationery & General",5026,NAME REDACTED,07/10/2019,0141246,9.99,Revenue,Chorley BC Petty Cash,16301,,
Chorley Borough Council,http://statistics.data.gov.uk/id/local-authority/30UE,Democratic Represent and  Mgnt,1007,Chief Executive,Stationery,40050,"Printing, Stationery & General",5026,NAME REDACTED,07/10/2019,0141246,6.53,Revenue,Chorley BC Petty Cash,16301,,
Chorley Borough Council,http://statistics.data.gov.uk/id/local-authority/30UE,Democratic Represent and  Mgnt,1007,Chief Executive,Use Of Transport - Mayoral Car,30015,Transport Recharges,5017,Mayoral car wash,07/10/2019,0141246,6.00,Revenue,Chorley BC Petty Cash,16301,,
Chorley Borough Council,http://statistics.data.gov.uk/id/local-authority/30UE,Unapportionable Central OHeads,1009,Chief Executive,Tools & Equipment - Purchase,40003,"Equipment, Furniture & Materia",5023,Keys cut Bengal street,07/10/2019,0141246,14.17,Revenue,Chorley BC Petty Cash,16301,,
Chorley Borough Council,http://statistics.data.gov.uk/id/local-authority/30UE,Economic Development,1096,Chief Executive,Miscellaneous Expenses,40200,Miscellaneous Expenses,5034,Woodchats voucher,07/10/2019,0141246,5.00,Revenue,Chorley BC Petty Cash,16301,,
Chorley Borough Council,http://statistics.data.gov.uk/id/local-authority/30UE,Unapportionable Central OHeads,1009,Chief Executive,Tools & Equipment - Purchase,40003,"Equipment, Furniture & Materia",5023,Double sided tape,07/10/2019,0141246,1.67,Revenue,Chorley BC Petty Cash,16301,,
Chorley Borough Council,http://statistics.data.gov.uk/id/local-authority/30UE,Unapportionable Central OHeads,1009,Chief Executive,Tools & Equipment - Purchase,40003,"Equipment, Furniture & Materia",5023,Batteries,07/10/2019,0141246,4.99,Revenue,Chorley BC Petty Cash,16301,,
Chorley Borough Council,http://statistics.data.gov.uk/id/local-authority/30UE,Unapportionable Central OHeads,1009,Chief Executive,Tools & Equipment - Purchase,40003,"Equipment, Furniture & Materia",5023,Adblue for Mayoral Car,07/10/2019,0141246,7.49,Revenue,Chorley BC Petty Cash,16301,,
Chorley Borough Council,http://statistics.data.gov.uk/id/local-authority/30UE,Economic Development,1096,Chief Executive,Miscellaneous Expenses,40200,Miscellaneous Expenses,5034,Woodchats voucher,07/10/2019,0141246,10.00,Revenue,Chorley BC Petty Cash,16301,,
Chorley Borough Council,http://statistics.data.gov.uk/id/local-authority/30UE,Unapportionable Central OHeads,1009,Chief Executive,Tools & Equipment - Purchase,40003,"Equipment, Furniture & Materia",5023,Drain cleaner,07/10/2019,0141246,1.67,Revenue,Chorley BC Petty Cash,16301,,
Chorley Borough Council,http://statistics.data.gov.uk/id/local-authority/30UE,Unapportionable Central OHeads,1009,Chief Executive,Tools & Equipment - Purchase,40003,"Equipment, Furniture & Materia",5023,Dishwasher Cleaner,07/10/2019,0141246,1.67,Revenue,Chorley BC Petty Cash,16301,,
Chorley Borough Council,http://statistics.data.gov.uk/id/local-authority/30UE,Economic Development,1096,Chief Executive,Miscellaneous Expenses,40200,Miscellaneous Expenses,5034,Woodchat voucher,07/10/2019,0141246,5.00,Revenue,Chorley BC Petty Cash,16301,,
Chorley Borough Council,http://statistics.data.gov.uk/id/local-authority/30UE,Unapportionable Central OHeads,1009,Chief Executive,Tools & Equipment - Purchase,40003,"Equipment, Furniture & Materia",5023,tools and equipment for Astley,07/10/2019,0141246,2.21,Revenue,Chorley BC Petty Cash,16301,,
Chorley Borough Council,http://statistics.data.gov.uk/id/local-authority/30UE,Unapportionable Central OHeads,1009,Chief Executive,Cleaning Materials,40019,"Equipment, Furniture & Materia",5023,dishwasher tablets,07/10/2019,0141246,14.98,Revenue,Chorley BC Petty Cash,16301,,
Chorley Borough Council,http://statistics.data.gov.uk/id/local-authority/30UE,Unapportionable Central OHeads,1009,Chief Executive,Exhibitions & Special Events,40158,Miscellaneous Expenses,5034,Props for Chorley Live,07/10/2019,0141246,20.00,Revenue,Chorley BC Petty Cash,16301,,
Chorley Borough Council,http://statistics.data.gov.uk/id/local-authority/30UE,Unapportionable Central OHeads,1009,Chief Executive,Uniforms,40039,"Clothing, Uniforms and Laundry",5025,3 Shirts,07/10/2019,0141246,18.00,Revenue,Chorley BC Petty Cash,16301,,
Chorley Borough Council,http://statistics.data.gov.uk/id/local-authority/30UE,Democratic Represent and  Mgnt,1007,Chief Executive,Refreshments,40036,Catering,5024,wicker baskets and sugar,07/10/2019,0141246,9.98,Revenue,Chorley BC Petty Cash,16301,,
Chorley Borough Council,http://statistics.data.gov.uk/id/local-authority/30UE,Democratic Represent and  Mgnt,1007,Chief Executive,Refreshments,40036,Catering,5024,sugar,07/10/2019,0141246,1.00,Revenue,Chorley BC Petty Cash,16301,,
Chorley Borough Council,http://statistics.data.gov.uk/id/local-authority/30UE,Economic Development,1096,Chief Executive,Miscellaneous Expenses,40200,Miscellaneous Expenses,5034,Woodchat voucher,07/10/2019,0141246,5.00,Revenue,Chorley BC Petty Cash,16301,,
Chorley Borough Council,http://statistics.data.gov.uk/id/local-authority/30UE,Unapportionable Central OHeads,1009,Chief Executive,Miscellaneous Expenses,40200,Miscellaneous Expenses,5034,photo frames,07/10/2019,0141246,4.38,Revenue,Chorley BC Petty Cash,16301,,
Chorley Borough Council,http://statistics.data.gov.uk/id/local-authority/30UE,Central Support Services,1009,Chief Executive,Community Develop Initiatives,40185,Miscellaneous Expenses,5034,Engagement event refreshments,07/10/2019,0141246,6.00,Revenue,Chorley BC Petty Cash,16301,,
Chorley Borough Council,http://statistics.data.gov.uk/id/local-authority/30UE,Central Support Services,1009,Chief Executive,Community Develop Initiatives,40185,Miscellaneous Expenses,5034,Engagement event refreshments,07/10/2019,0141246,3.33,Revenue,Chorley BC Petty Cash,16301,,
Chorley Borough Council,http://statistics.data.gov.uk/id/local-authority/30UE,Central Support Services,1009,Chief Executive,Community Develop Initiatives,40185,Miscellaneous Expenses,5034,Key Cuts Tatton,07/10/2019,0141246,10.00,Revenue,Chorley BC Petty Cash,16301,,
Chorley Borough Council,http://statistics.data.gov.uk/id/local-authority/30UE,Economic Development,1096,Chief Executive,Miscellaneous Expenses,40200,Miscellaneous Expenses,5034,Woodchats voucher,07/10/2019,0141246,20.00,Revenue,Chorley BC Petty Cash,16301,,
Chorley Borough Council,http://statistics.data.gov.uk/id/local-authority/30UE,Unapportionable Central OHeads,1009,Chief Executive,Fixtures & Fittings - Repair/Mtnce,20028,Fixtures and Fittings,5010,Convection heater,07/10/2019,0141246,16.66,Revenue,Chorley BC Petty Cash,16301,,
Chorley Borough Council,http://statistics.data.gov.uk/id/local-authority/30UE,Unapportionable Central OHeads,1009,Chief Executive,Tools & Equipment - Purchase,40003,"Equipment, Furniture & Materia",5023,Keys cut Bengal street,07/10/2019,0141246,14.17,Revenue,Chorley BC Petty Cash,16301,,
Chorley Borough Council,http://statistics.data.gov.uk/id/local-authority/30UE,Central Support Services,1009,Early Intervention,Core Funding Grants,40133,Grants and Subscriptions,5031,small comm grant funding,18/10/2019,0141155,300.00,Revenue,Chorley Community First Responders,77569,,
Chorley Borough Council,http://statistics.data.gov.uk/id/local-authority/30UE,Democratic Represent and  Mgnt,1007,Policy & Governance,Grants To Other Organisations,40127,Grants and Subscriptions,5031,cllr grant,18/10/2019,0141413,250.00,Revenue,Chorley FC Women U18s,78310,,
Chorley Borough Council,http://statistics.data.gov.uk/id/local-authority/30UE,Central Support Services,1009,Early Intervention,Core Funding Grants,40133,Grants and Subscriptions,5031,small comm grant,24/10/2019,0141148,300.00,Revenue,Chorley In Bloom group,70247,,
Chorley Borough Council,http://statistics.data.gov.uk/id/local-authority/30UE,Central Support Services,1009,Early Intervention,Core Funding Grants,40133,Grants and Subscriptions,5031,small comm grant,24/10/2019,0141150,260.00,Revenue,Chorley Runners,78271,,
Chorley Borough Council,http://statistics.data.gov.uk/id/local-authority/30UE,Central Support Services,1009,Early Intervention,Core Funding Grants,40133,Grants and Subscriptions,5031,small comm grant,24/10/2019,0141153,250.00,Revenue,Chorley Sheds,77469,,
Chorley Borough Council,http://statistics.data.gov.uk/id/local-authority/30UE,Central Support Services,1009,Early Intervention,Core Funding Grants,40133,Grants and Subscriptions,5031,small comm grant,24/10/2019,0141152,300.00,Revenue,Chorley Wanderers Junior Football Club,78260,,
Chorley Borough Council,http://statistics.data.gov.uk/id/local-authority/30UE,Central Support Services,1009,Early Intervention,Children's Activities,40188,Miscellaneous Expenses,5034,Lancashire Breaktime respite service at Inspire Youth Zone. June 2019 Term Time. Total 1452.36,02/10/2019,0140777,"1,452.36",Revenue,Chorley Youth Zone,77339,,
Chorley Borough Council,http://statistics.data.gov.uk/id/local-authority/30UE,Central Support Services,1009,Early Intervention,Children's Activities,40188,Miscellaneous Expenses,5034,"March LBT respite service. 180 hours claimed, (201 actual) Funding confirmed as received 6.6.19 NAME REDACTED",02/10/2019,0141010,"1,532.32",Revenue,Chorley Youth Zone,77339,,
Chorley Borough Council,http://statistics.data.gov.uk/id/local-authority/30UE,Central Support Services,1009,Early Intervention,Children's Activities,40188,Miscellaneous Expenses,5034,Lancashire Breaktime respite care by Inspire Youth Zone Summer Holiday 2019 Total 7710.36,04/10/2019,0141109,"7,710.36",Revenue,Chorley Youth Zone,77339,,
Chorley Borough Council,http://statistics.data.gov.uk/id/local-authority/30UE,Homelessness,1075,Business Development & Growth,Miscellaneous Expenses,40200,Miscellaneous Expenses,5034,Conversation classes - Tutor payment - Syrian Resettlement Programme,30/10/2019,0141740,875.00,Revenue,Christine Edwards,77601,,
Chorley Borough Council,http://statistics.data.gov.uk/id/local-authority/30UE,Unapportionable Central OHeads,1009,Chief Executive,Consultants` Fees,40077,Services,5027,50 days consultancy work to support the further development of shared services between Chorley and South Ribble.,18/10/2019,0141278,"17,551.15",Revenue,CIPFA C.Co,77634,,
Chorley Borough Council,http://statistics.data.gov.uk/id/local-authority/30UE,Unapportionable Central OHeads,1009,Chief Executive,Consultants` Fees,40077,Services,5027,Further shared services consultancy work,18/10/2019,0141278,"18,379.85",Revenue,CIPFA C.Co,77634,,
Chorley Borough Council,http://statistics.data.gov.uk/id/local-authority/30UE,Private Sector HSG Renewal,1073,Early Intervention,External Contractor,40198,Miscellaneous Expenses,5034,Provision of Energy Switching Support Services (Funded by LCC IHIS scheme) during July 2019,11/10/2019,0141334,287.87,Revenue,Citizens Advice Lancashire,17035,,
Chorley Borough Council,http://statistics.data.gov.uk/id/local-authority/30UE,Private Sector HSG Renewal,1073,Early Intervention,External Contractor,40198,Miscellaneous Expenses,5034,Provision of Energy Switching Support services (funded by LCC IHIS scheme) during August & September 2019,16/10/2019,0141414,594.98,Revenue,Citizens Advice Lancashire,17035,,
Chorley Borough Council,http://statistics.data.gov.uk/id/local-authority/30UE,Economic Development,1096,Business Development & Growth,Miscellaneous Expenses,40200,Miscellaneous Expenses,5034,"Full anchor tests and certification at 27 x 73 Installation of approx. 850 metres of summer bunting, removal of summer bunting",09/10/2019,0141272,"1,308.00",Revenue,City Illuminations Ltd,77388,,
Chorley Borough Council,http://statistics.data.gov.uk/id/local-authority/30UE,Service Management & Support,1009,Customer & Digital,Grounds Maintenance Contractor,20043,Grounds Maintenance Costs,5013,"Remove lamp post/hanging baskets from Chorley Town Centre, Coppull Parish & Adlington Parish. Store at Bengal St depot",16/10/2019,0141403,"1,160.00",Revenue,City Illuminations Ltd,77388,,
Chorley Borough Council,http://statistics.data.gov.uk/id/local-authority/30UE,Central Support Services,1009,Customer & Digital,Computer Software-Purchase,40100,Communication and Computing,5028,Modern Mindset Ltd - Electoral Reform Service Group (ERS),43749,0140946,3000,Revenue,Civica UK Limited,17463,,
Chorley Borough Council,http://statistics.data.gov.uk/id/local-authority/30UE,Unapportionable Central OHeads,1009,Policy & Governance,IT Software - Annual Licences,40101,Communication and Computing,5028,Kofax eMail upgrade annual licence support and maintenance 01/11/2019 to 31/10/2020,04/10/2019,0140982,"1,157.16",Revenue,Civica UK Limited,17463,,
Chorley Borough Council,http://statistics.data.gov.uk/id/local-authority/30UE,Capital,Capital,Business Development & Growth,Main Contractor,03007,Capital Expenditure,Capital,Yarrow Meadows Phase 2 works.  Various ecological enhancements and footpath works. To be complete 30 November 2019,16/10/2019,0141393,"5,000.00",Capital,Conservation Contracts North West,20520,,
Chorley Borough Council,http://statistics.data.gov.uk/id/local-authority/30UE,Central Support Services,1009,Early Intervention,Core Funding Grants,40133,Grants and Subscriptions,5031,small comm grant,24/10/2019,0141156,250.00,Revenue,Coppull Morris Dancers,78278,,
Chorley Borough Council,http://statistics.data.gov.uk/id/local-authority/30UE,Unapportionable Central OHeads,1009,Business Development & Growth,General Repairs - Reactive,20004,Repairs Maintenance & Alts,5005,Reactive repairs April onwards,02/10/2019,0140559,985.95,Revenue,Corlett Electrical Eng Co Ltd,16271,,
Chorley Borough Council,http://statistics.data.gov.uk/id/local-authority/30UE,Unapportionable Central OHeads,1009,Business Development & Growth,General Repairs - Reactive,20004,Repairs Maintenance & Alts,5005,Reactive repairs April onwards,02/10/2019,0140565,"2,950.60",Revenue,Corlett Electrical Eng Co Ltd,16271,,
Chorley Borough Council,http://statistics.data.gov.uk/id/local-authority/30UE,Unapportionable Central OHeads,1009,Business Development & Growth,Asset Maintenance Fund,20012,Repairs Maintenance & Alts,5005,Refugee Initial renovation works x 5 houses,02/10/2019,0140624,"2,307.15",Revenue,Corlett Electrical Eng Co Ltd,16271,,
Chorley Borough Council,http://statistics.data.gov.uk/id/local-authority/30UE,Unapportionable Central OHeads,1009,Business Development & Growth,Asset Maintenance Fund,20012,Repairs Maintenance & Alts,5005,Refugee Initial renovation works x 5 houses,02/10/2019,0140626,632.03,Revenue,Corlett Electrical Eng Co Ltd,16271,,
Chorley Borough Council,http://statistics.data.gov.uk/id/local-authority/30UE,Democratic Represent and  Mgnt,1007,Business Development & Growth,Burglar Alarms & Security Systems,20075,Fixtures and Fittings,5010,Mayoral alarm fitting as per discussion and quote,02/10/2019,0140627,860.00,Revenue,Corlett Electrical Eng Co Ltd,16271,,
Chorley Borough Council,http://statistics.data.gov.uk/id/local-authority/30UE,Unapportionable Central OHeads,1009,Business Development & Growth,Asset Maintenance Fund,20012,Repairs Maintenance & Alts,5005,Refugee Initial renovation works x 5 houses,02/10/2019,0140628,861.56,Revenue,Corlett Electrical Eng Co Ltd,16271,,
Chorley Borough Council,http://statistics.data.gov.uk/id/local-authority/30UE,Unapportionable Central OHeads,1009,Business Development & Growth,Asset Maintenance Fund,20012,Repairs Maintenance & Alts,5005,Refugee Initial renovation works x 5 houses,02/10/2019,0140629,"3,475.15",Revenue,Corlett Electrical Eng Co Ltd,16271,,
Chorley Borough Council,http://statistics.data.gov.uk/id/local-authority/30UE,Democratic Represent and  Mgnt,1007,Business Development & Growth,Gas,20014,Energy Costs,5006,aug to sept19,16/10/2019,0141139,584.69,Revenue,Corona Energy Retail 2 Ltd,67249,,
Chorley Borough Council,http://statistics.data.gov.uk/id/local-authority/30UE,Unapportionable Central OHeads,1009,Business Development & Growth,Gas,20014,Energy Costs,5006,aug to sept19,16/10/2019,0141184,574.52,Revenue,Corona Energy Retail 2 Ltd,67249,,
Chorley Borough Council,http://statistics.data.gov.uk/id/local-authority/30UE,Homelessness,1075,Business Development & Growth,Gas,20014,Energy Costs,5006,aug to sept19,16/10/2019,0141186,504.09,Revenue,Corona Energy Retail 2 Ltd,67249,,
Chorley Borough Council,http://statistics.data.gov.uk/id/local-authority/30UE,Unapportionable Central OHeads,1009,Business Development & Growth,Gas,20014,Energy Costs,5006,sept to oct 19,30/10/2019,0141622,889.86,Revenue,Corona Energy Retail 2 Ltd,67249,,
Chorley Borough Council,http://statistics.data.gov.uk/id/local-authority/30UE,Homelessness,1075,Business Development & Growth,Gas,20014,Energy Costs,5006,sept to oct 19,30/10/2019,0141624,597.97,Revenue,Corona Energy Retail 2 Ltd,67249,,
Chorley Borough Council,http://statistics.data.gov.uk/id/local-authority/30UE,Democratic Represent and  Mgnt,1007,Business Development & Growth,Gas,20014,Energy Costs,5006,sept to oct 19,30/10/2019,0141629,435.77,Revenue,Corona Energy Retail 2 Ltd,67249,,
Chorley Borough Council,http://statistics.data.gov.uk/id/local-authority/30UE,Central Support Services,1009,Customer & Digital,Computer Equipment-Purchase,40098,Communication and Computing,5028,Jabra BIZ 2400 II Mon Headset Jabra LINK 265 - 2x QD to USB for PC Standard Delivery & Packaging,24/10/2019,0140817,271.95,Revenue,Corporte Direct (Europe) Ltd (Trading as Corptel),22135,,
Chorley Borough Council,http://statistics.data.gov.uk/id/local-authority/30UE,Central Support Services,1009,Customer & Digital,Telephones - Other,40085,Communication and Computing,5028,"2 x Jabra Biz 2400,  Jabra Evolve 30, Sennheiser speaker SP30, Jabra speaker,2 X JABRA LINK 265 FOR THE JABRA 2400'S",24/10/2019,0141276,624.27,Revenue,Corporte Direct (Europe) Ltd (Trading as Corptel),22135,,
Chorley Borough Council,http://statistics.data.gov.uk/id/local-authority/30UE,Capital,Capital,Customer & Digital,Equipment,03014,Capital Expenditure,Capital,600 X 240 L wheeled bins.  Anthracite Grey To include RFID chip and Chorley Council logo.SPLIT DELIVERY of 2 X 300 bins,30/10/2019,0141011,"4,902.50",Capital,Craemer UK Ltd,64712,,
Chorley Borough Council,http://statistics.data.gov.uk/id/local-authority/30UE,Capital,Capital,Customer & Digital,Equipment,03014,Capital Expenditure,Capital,240L Wheels    Quantity = 400,30/10/2019,0141602,340.00,Capital,Craemer UK Ltd,64712,,
Chorley Borough Council,http://statistics.data.gov.uk/id/local-authority/30UE,Capital,Capital,Customer & Digital,Equipment,03014,Capital Expenditure,Capital,240L Axles    Quantity 200,30/10/2019,0141602,220.00,Capital,Craemer UK Ltd,64712,,
Chorley Borough Council,http://statistics.data.gov.uk/id/local-authority/30UE,Recognised Cap Grants & Conts,,Customer & Digital,Contributions Parish Councils,40144,Grants and Subscriptions,5031,cil 1 apr to 30 sept2019,16/10/2019,0141360,"2,472.05",Revenue,Croston Parish Council,17026,,
Chorley Borough Council,http://statistics.data.gov.uk/id/local-authority/30UE,Central Support Services,1009,Early Intervention,Core Funding Grants,40133,Grants and Subscriptions,5031,small comm grant,30/10/2019,0141189,345.00,Revenue,Croston Village Festivities Group,59024,,
Chorley Borough Council,http://statistics.data.gov.uk/id/local-authority/30UE,Service Management & Support,1009,Customer & Digital,Diesel/Derv,30007,Direct Transport Costs,5016,"7,000 litres of road diesel to Chorley Council�s Bengal Street Depot, Bengal Street, Chorley, PR7 1SA. Delivery on 10/09/2019",22/10/2019,0140784,"7,207.12",Revenue,Crown Oil Ltd,16739,,
Chorley Borough Council,http://statistics.data.gov.uk/id/local-authority/30UE,Service Management & Support,1009,Customer & Digital,Diesel/Derv,30007,Direct Transport Costs,5016,"2,000litres gas oil to Chorley Council�s Bengal Street Depot, Bengal Street, Chorley, PR7 1SA. Delivery on 10/09/2019",22/10/2019,0140790,"1,123.00",Revenue,Crown Oil Ltd,16739,,
Chorley Borough Council,http://statistics.data.gov.uk/id/local-authority/30UE,Service Management & Support,1009,Customer & Digital,Diesel/Derv,30007,Direct Transport Costs,5016,as per your quotation on the chest for 1500 Litres Gas Oil @ 0.5490,22/10/2019,0141391,823.50,Revenue,Crown Oil Ltd,16739,,
Chorley Borough Council,http://statistics.data.gov.uk/id/local-authority/30UE,Service Management & Support,1009,Customer & Digital,Diesel/Derv,30007,Direct Transport Costs,5016,as per your quotation on the chest for 6000 Litres DERV @ 1.0350,22/10/2019,0141415,"6,189.30",Revenue,Crown Oil Ltd,16739,,
Chorley Borough Council,http://statistics.data.gov.uk/id/local-authority/30UE,Service Management & Support,1009,Customer & Digital,Supplies-Grounds Maintenance,40025,"Equipment, Furniture & Materia",5023,1 x 1.8m Balmoral Bench KD with carriage,22/10/2019,0140977,307.08,Revenue,Cyan t/a Lindsey,61782,,
Chorley Borough Council,http://statistics.data.gov.uk/id/local-authority/30UE,Business Support,1095,Early Intervention,Furniture - Purchase,40012,"Equipment, Furniture & Materia",5023,1 X CS130 - Sandringham Rectangular  - 1.5m Table & Windsor Benches & Chair set 669.99,30/10/2019,0140978,558.32,Revenue,Cyan t/a Lindsey,61782,,
Chorley Borough Council,http://statistics.data.gov.uk/id/local-authority/30UE,Business Support,1095,Early Intervention,Furniture - Purchase,40012,"Equipment, Furniture & Materia",5023,1 X JP021 - Taupe/parasol octagonal-eucalyptus hard wood 79.99,30/10/2019,0140978,66.66,Revenue,Cyan t/a Lindsey,61782,,
Chorley Borough Council,http://statistics.data.gov.uk/id/local-authority/30UE,Business Support,1095,Early Intervention,Furniture - Purchase,40012,"Equipment, Furniture & Materia",5023,1 x PB348ss - Garden parasol base square stainless steel 13kg 37.50,30/10/2019,0140978,31.25,Revenue,Cyan t/a Lindsey,61782,,
Chorley Borough Council,http://statistics.data.gov.uk/id/local-authority/30UE,Business Support,1095,Early Intervention,Furniture - Purchase,40012,"Equipment, Furniture & Materia",5023,Delivery,30/10/2019,0140978,40.00,Revenue,Cyan t/a Lindsey,61782,,
Chorley Borough Council,http://statistics.data.gov.uk/id/local-authority/30UE,Capital,Capital,Policy & Governance,Main Contractor,03007,Capital Expenditure,Capital,Repayment of CIS deducted,18/10/2019,0141530,"1,190.83",Capital,Danvic Turf Care Ltd,16336,,
Chorley Borough Council,http://statistics.data.gov.uk/id/local-authority/30UE,Capital,Capital,Business Development & Growth,Main Contractor,03007,Capital Expenditure,Capital,Verti draining of King George V Playing Pitches in October 2019,30/10/2019,0141704,"1,070.00",Capital,Danvic Turf Care Ltd,16336,,
Chorley Borough Council,http://statistics.data.gov.uk/id/local-authority/30UE,Business Support,1095,Business Development & Growth,Tools & Equipment - Maintenance,40005,"Equipment, Furniture & Materia",5023,Annual on site maintenance costs - 24/7 maintenance cover Motorola SLR5500 repeater infrastructure as ref DP/DCS00945,09/10/2019,0141254,950.00,Revenue,DCS 2 Way Radio Ltd,77666,,
Chorley Borough Council,http://statistics.data.gov.uk/id/local-authority/30UE,Business Support,1095,Business Development & Growth,Tools & Equipment - Purchase,40003,"Equipment, Furniture & Materia",5023,"50 x Hytera PD405 UHF DMR Tier II & analogue, 50 x General MCU rapid rate single way charger 50 x PS1044 UK",24/10/2019,0141544,"6,800.00",Revenue,DCS 2 Way Radio Ltd,77666,,
Chorley Borough Council,http://statistics.data.gov.uk/id/local-authority/30UE,Democratic Represent and  Mgnt,1007,Customer & Digital,Grounds Maintenance Contractor,20043,Grounds Maintenance Costs,5013,2 Days work for man and machine at Brinscall  13/14th August,09/10/2019,0140430,500.00,Revenue,Derek R Smith,21092,,
Chorley Borough Council,http://statistics.data.gov.uk/id/local-authority/30UE,Democratic Represent and  Mgnt,1007,Customer & Digital,Grounds Maintenance Contractor,20043,Grounds Maintenance Costs,5013,Hire of 1 ton dumper and trailer for 1 week,09/10/2019,0140504,255.00,Revenue,Derek R Smith,21092,,
Chorley Borough Council,http://statistics.data.gov.uk/id/local-authority/30UE,Central Support Services,1009,Customer & Digital,Miscellaneous Expenses,40200,Miscellaneous Expenses,5034,"Works completed @ Bolton Road Backs, Adlington",11/10/2019,0140766,300.00,Revenue,Derek R Smith,21092,,
Chorley Borough Council,http://statistics.data.gov.uk/id/local-authority/30UE,Unapportionable Central OHeads,1009,Policy & Governance,HR Recruitment Expenses,15200,Indirect Employee Expenses,5002,Fees for DBS Checks,18/10/2019,0139789,352.00,Revenue,Disclosure & Barring Service,16387,,
Chorley Borough Council,http://statistics.data.gov.uk/id/local-authority/30UE,Central Support Services,1009,Early Intervention,Core Funding Grants,40133,Grants and Subscriptions,5031,small comm grant,30/10/2019,0141478,250.00,Revenue,Drakes Hollow Community Improvement Group,78317,,
Chorley Borough Council,http://statistics.data.gov.uk/id/local-authority/30UE,Business Support,1095,Business Development & Growth,Miscellaneous Expenses,40200,Miscellaneous Expenses,5034,Delivery of BREAAM Services,30/10/2019,0141700,"2,500.00",Revenue,EC Energy Ltd trading as Energy Council,76841,,
Chorley Borough Council,http://statistics.data.gov.uk/id/local-authority/30UE,Central Support Services,1009,Early Intervention,Core Funding Grants,40133,Grants and Subscriptions,5031,small comm grant,30/10/2019,0141182,255.00,Revenue,Eccleston Brass Band,78275,,
Chorley Borough Council,http://statistics.data.gov.uk/id/local-authority/30UE,Central Support Services,1009,Customer & Digital,Mobile Voice and Data,40086,Communication and Computing,5028,03-Oct-19,24/10/2019,0141495,"2,360.22",Revenue,EE - Orange,16486,,
Chorley Borough Council,http://statistics.data.gov.uk/id/local-authority/30UE,Central Support Services,1009,Business Development & Growth,Professional Fees,40063,Services,5027,Earthworks for Cowling Farm.,09/10/2019,0141263,"3,950.00",Revenue,Egniol Environmental Ltd,78236,,
Chorley Borough Council,http://statistics.data.gov.uk/id/local-authority/30UE,Capital,Capital,Business Development & Growth,Main Contractor,03007,Capital Expenditure,Capital,Electricity connection at OC1824284 CCTV Steeley Lane / Seymour St PR6 0RD,02/10/2019,0141047,"2,051.14",Capital,Electricity North West Ltd,17118,,
Chorley Borough Council,http://statistics.data.gov.uk/id/local-authority/30UE,Capital,Capital,Business Development & Growth,Main Contractor,03007,Capital Expenditure,Capital,Market Walk Extension Contract - Phase 2,18/10/2019,0141417,"558,433.90",Capital,Eric Wright Construction Ltd,76464,,
Chorley Borough Council,http://statistics.data.gov.uk/id/local-authority/30UE,Corporate Management,1008,Customer & Digital,Printing,40043,"Printing, Stationery & General",5026,Chorley Garden Waste Collection Permits 2019-2020,11/10/2019,0140812,446.12,Revenue,Euro Labels Printers Ltd,77202,,
Chorley Borough Council,http://statistics.data.gov.uk/id/local-authority/30UE,Corporate Management,1008,Customer & Digital,Printing,40043,"Printing, Stationery & General",5026,Chorley Garden Waste Collection Permits for Sept 19-Feb 20.,22/10/2019,0141408,447.64,Revenue,Euro Labels Printers Ltd,77202,,
Chorley Borough Council,http://statistics.data.gov.uk/id/local-authority/30UE,Unapportionable Central OHeads,1009,Business Development & Growth,Planned Maintenance,20006,Repairs Maintenance & Alts,5005,Annual inspection of fall arrest system at the Town Hall,11/10/2019,0140380,455.00,Revenue,Eurosafe Solutions Limited,66302,,
Chorley Borough Council,http://statistics.data.gov.uk/id/local-authority/30UE,Recognised Cap Grants & Conts,,Customer & Digital,Contributions Parish Councils,40144,Grants and Subscriptions,5031,cil 1 apr to 30 sept 2019,16/10/2019,0141351,"6,539.88",Revenue,Euxton Parish Council,16838,,
Chorley Borough Council,http://statistics.data.gov.uk/id/local-authority/30UE,Service Management & Support,1009,Customer & Digital,Vehicles and Plant Maintenance,30045,Direct Transport Costs,5016,as per pro-forma 139412 4 x belt cut sha/ tou20-24`` 2 x roller end assembly for Wessex,02/10/2019,0141000,275.66,Revenue,F R Sharrock Ltd,18091,,
Chorley Borough Council,http://statistics.data.gov.uk/id/local-authority/30UE,Service Management & Support,1009,Customer & Digital,Vehicles and Plant Maintenance,30045,Direct Transport Costs,5016,"as per pro-forma 139483 6 x bottom blade, 4 x roller assembly non grease, 4 x when assy, 3 x pinion, 10 x ball bearing",02/10/2019,0141005,531.10,Revenue,F R Sharrock Ltd,18091,,
Chorley Borough Council,http://statistics.data.gov.uk/id/local-authority/30UE,Service Management & Support,1009,Customer & Digital,Vehicles and Plant Maintenance,30045,Direct Transport Costs,5016,"FUEL FILTER x 3, ASSY CARTRIDGE OIL x 3, AIR FILTER ELEMENT x 3, PIVOT BEARING x 2, TRACK ROD END (MALE) x 6",30/10/2019,0141634,462.67,Revenue,F R Sharrock Ltd,18091,,
Chorley Borough Council,http://statistics.data.gov.uk/id/local-authority/30UE,Corporate Management,1008,Customer & Digital,Tools & Equipment - Maintenance,40005,"Equipment, Furniture & Materia",5023,"5x 1100 bin repairs, all at Naylors Transport Depot, off Comet Road, Leyland.",30/10/2019,0140902,375.00,Revenue,Fairport Containers Ltd,17735,,
Chorley Borough Council,http://statistics.data.gov.uk/id/local-authority/30UE,Democratic Represent and  Mgnt,1007,Early Intervention,Grants to Voluntary Organisations,40124,Grants and Subscriptions,5031,"Fairview Youth & Community Centre Annual maintenance grant - 2018/19	8000.00 Invoice Ref: 1028",16/10/2019,0141350,"8,000.00",Revenue,Fairview Youth & Community Association,20589,,
Chorley Borough Council,http://statistics.data.gov.uk/id/local-authority/30UE,Corporate Management,1008,Policy & Governance,Miscellaneous Expenses,40200,Miscellaneous Expenses,5034,Deep Freeze Standard Maintenance x 48 3 year renewal,04/10/2019,0140836,779.52,Revenue,Faronics,78246,,
Chorley Borough Council,http://statistics.data.gov.uk/id/local-authority/30UE,Corporate Management,1008,Customer & Digital,Unitary Payment(S),50009,Private Contractors,5042,Provision of waste and recycling collection services 2019-20,30/10/2019,0141593,"178,030.18",Revenue,FCC Environment Services (UK) Limited,77903,,
Chorley Borough Council,http://statistics.data.gov.uk/id/local-authority/30UE,Corporate Management,1008,Customer & Digital,Unitary Payment(S),50009,Private Contractors,5042,Provision of waste and recycling collection services 2019-20,30/10/2019,0141612,"176,675.78",Revenue,FCC Environment Services (UK) Limited,77903,,
Chorley Borough Council,http://statistics.data.gov.uk/id/local-authority/30UE,Corporate Management,1008,Customer & Digital,Unitary Payment(S),50009,Private Contractors,5042,Provision of waste and recycling collection services 2019-20,30/10/2019,0141613,"176,833.94",Revenue,FCC Environment Services (UK) Limited,77903,,
Chorley Borough Council,http://statistics.data.gov.uk/id/local-authority/30UE,Central Support Services,1009,Customer & Digital,Computer - Support Services,40111,Communication and Computing,5028,PSN ITHC/Penetration Test for 2019/2020,30/10/2019,0141582,"5,200.00",Revenue,Fidus Information Security,76955,,
Chorley Borough Council,http://statistics.data.gov.uk/id/local-authority/30UE,Central Support Services,1009,Early Intervention,Core Funding Grants,40133,Grants and Subscriptions,5031,small grant,30/10/2019,0141180,270.00,Revenue,Friends of Adlington Library,76734,,
Chorley Borough Council,http://statistics.data.gov.uk/id/local-authority/30UE,Central Support Services,1009,Early Intervention,Core Funding Grants,40133,Grants and Subscriptions,5031,small comm grant,30/10/2019,0141179,300.00,Revenue,Friends of Coppull Library,77713,,
Chorley Borough Council,http://statistics.data.gov.uk/id/local-authority/30UE,Central Support Services,1009,Early Intervention,Core Funding Grants,40133,Grants and Subscriptions,5031,small comm grant,30/10/2019,0141188,325.00,Revenue,Galaxy Cheerleading Club,78261,,
Chorley Borough Council,http://statistics.data.gov.uk/id/local-authority/30UE,Business Support,1095,Business Development & Growth,Gas,20014,Energy Costs,5006,Jun-19,18/10/2019,0139510,388.84,Revenue,Gazprom Energy,56502,,
Chorley Borough Council,http://statistics.data.gov.uk/id/local-authority/30UE,Capital,Capital,Policy & Governance,Other Capital Related Fees,03024,Capital Expenditure,Capital,"Consultant Fees for the purchase of TVS Logistics House, Buckshaw Avenue, Chorley, Lancashire.",18/10/2019,0140867,"307,300.00",Capital,Gerald Eve LLP,76219,,
Chorley Borough Council,http://statistics.data.gov.uk/id/local-authority/30UE,Business Support,1095,Business Development & Growth,Cleaning/Attendants' Services,20041,Cleaning and Domestic Supplies,5012,Internal bins for caf�/breakout areas at SF,30/10/2019,0140657,"1,567.84",Revenue,Glasdon UK Ltd,17505,,
Chorley Borough Council,http://statistics.data.gov.uk/id/local-authority/30UE,Business Support,1095,Business Development & Growth,Fixtures & Fittings - Purchase,20027,Fixtures and Fittings,5010,"x2 external bins, smoking shelter and cigarette bin for Strawberry Fields",30/10/2019,0141348,"2,423.38",Revenue,Glasdon UK Ltd,17505,,
Chorley Borough Council,http://statistics.data.gov.uk/id/local-authority/30UE,Service Management & Support,1009,Customer & Digital,Supplies-Grounds Maintenance,40025,"Equipment, Furniture & Materia",5023,"10x Poly/wire Swingo brushes, VT651 Channel Brush wire, Plus 40 delivery cost- Total 593.30",02/10/2019,0140979,593.30,Revenue,Go Plant Ltd,77990,,
Chorley Borough Council,http://statistics.data.gov.uk/id/local-authority/30UE,Service Management & Support,1009,Customer & Digital,Vehicles and Plant Maintenance,30045,Direct Transport Costs,5016,6x side skids for Schmidt Swingos 200,16/10/2019,0141385,275.00,Revenue,Go Plant Ltd,77990,,
Chorley Borough Council,http://statistics.data.gov.uk/id/local-authority/30UE,Corporate Management,1008,Customer & Digital,Professional Fees,40063,Services,5027,2019-2020 Garden Waste Subscriptions,11/10/2019,0141347,266.12,Revenue,GoCardless,77457,,
Chorley Borough Council,http://statistics.data.gov.uk/id/local-authority/30UE,Central Support Services,1009,Customer & Digital,Vandalism Repairs,20005,Repairs Maintenance & Alts,5005,Contract for graffiti removal half year 2019 - 2020,02/10/2019,0141081,330.00,Revenue,Graffiti Away,76316,,
Chorley Borough Council,http://statistics.data.gov.uk/id/local-authority/30UE,Corporate Management,1008,Business Development & Growth,Publicity - Advertising,40157,Miscellaneous Expenses,5034,MW Social media for October,09/10/2019,0141255,500.00,Revenue,Gravity,77837,,
Chorley Borough Council,http://statistics.data.gov.uk/id/local-authority/30UE,Central Support Services,1009,Early Intervention,Core Funding Grants,40133,Grants and Subscriptions,5031,small grant,30/10/2019,0141190,330.00,Revenue,Green Living Chorley,78279,,
Chorley Borough Council,http://statistics.data.gov.uk/id/local-authority/30UE,Service Management & Support,1009,Customer & Digital,Supplies-Grounds Maintenance,40025,"Equipment, Furniture & Materia",5023,"White Printed Sack  500 x 855x 975mm x 200g, Bimodel Super Plus Material, Printed Chorley Borough, 25 Per Roll  60K",22/10/2019,0141539,"5,205.98",Revenue,Harrisons Packaging Ltd,17555,,
Chorley Borough Council,http://statistics.data.gov.uk/id/local-authority/30UE,Central Support Services,1009,Business Development & Growth,Operational Employees Salaries,10000,Direct Employee Expenses,5001,Surveyor fees for Property services,11/10/2019,0140537,977.30,Revenue,Hays Senior Finance,20078,,
Chorley Borough Council,http://statistics.data.gov.uk/id/local-authority/30UE,Central Support Services,1009,Business Development & Growth,Operational Employees Salaries,10000,Direct Employee Expenses,5001,Surveyor fees for Property services,11/10/2019,0140727,289.82,Revenue,Hays Senior Finance,20078,,
Chorley Borough Council,http://statistics.data.gov.uk/id/local-authority/30UE,Central Support Services,1009,Business Development & Growth,Operational Employees Salaries,10000,Direct Employee Expenses,5001,Surveyor fees for Property services,11/10/2019,0140747,969.38,Revenue,Hays Senior Finance,20078,,
Chorley Borough Council,http://statistics.data.gov.uk/id/local-authority/30UE,Central Support Services,1009,Business Development & Growth,Operational Employees Salaries,10000,Direct Employee Expenses,5001,Surveyor fees for Property services,11/10/2019,0140750,631.94,Revenue,Hays Senior Finance,20078,,
Chorley Borough Council,http://statistics.data.gov.uk/id/local-authority/30UE,Central Support Services,1009,Business Development & Growth,Operational Employees Salaries,10000,Direct Employee Expenses,5001,Surveyor fees for Property services,11/10/2019,0140753,893.00,Revenue,Hays Senior Finance,20078,,
Chorley Borough Council,http://statistics.data.gov.uk/id/local-authority/30UE,Central Support Services,1009,Business Development & Growth,Operational Employees Salaries,10000,Direct Employee Expenses,5001,Surveyor fees for Property services,11/10/2019,0140847,977.30,Revenue,Hays Senior Finance,20078,,
Chorley Borough Council,http://statistics.data.gov.uk/id/local-authority/30UE,Central Support Services,1009,Business Development & Growth,Operational Employees Salaries,10000,Direct Employee Expenses,5001,Surveyor fees for Property services,11/10/2019,0140848,"1,016.50",Revenue,Hays Senior Finance,20078,,
Chorley Borough Council,http://statistics.data.gov.uk/id/local-authority/30UE,Central Support Services,1009,Business Development & Growth,Operational Employees Salaries,10000,Direct Employee Expenses,5001,Surveyor fees for Property services,11/10/2019,0140949,999.02,Revenue,Hays Senior Finance,20078,,
Chorley Borough Council,http://statistics.data.gov.uk/id/local-authority/30UE,Central Support Services,1009,Business Development & Growth,Operational Employees Salaries,10000,Direct Employee Expenses,5001,Surveyor fees for Property services,11/10/2019,0140956,977.30,Revenue,Hays Senior Finance,20078,,
Chorley Borough Council,http://statistics.data.gov.uk/id/local-authority/30UE,Central Support Services,1009,Business Development & Growth,Operational Employees Salaries,10000,Direct Employee Expenses,5001,Surveyor fees for Property services,30/10/2019,0141056,977.30,Revenue,Hays Senior Finance,20078,,
Chorley Borough Council,http://statistics.data.gov.uk/id/local-authority/30UE,Central Support Services,1009,Business Development & Growth,Operational Employees Salaries,10000,Direct Employee Expenses,5001,Surveyor fees for Property services,30/10/2019,0141082,981.54,Revenue,Hays Senior Finance,20078,,
Chorley Borough Council,http://statistics.data.gov.uk/id/local-authority/30UE,Central Support Services,1009,Business Development & Growth,Operational Employees Salaries,10000,Direct Employee Expenses,5001,Surveyor fees for Property services,30/10/2019,0141110,781.84,Revenue,Hays Senior Finance,20078,,
Chorley Borough Council,http://statistics.data.gov.uk/id/local-authority/30UE,Central Support Services,1009,Business Development & Growth,Operational Employees Salaries,10000,Direct Employee Expenses,5001,Surveyor fees for Property services,30/10/2019,0141418,674.12,Revenue,Hays Senior Finance,20078,,
Chorley Borough Council,http://statistics.data.gov.uk/id/local-authority/30UE,Central Support Services,1009,Business Development & Growth,Operational Employees Salaries,10000,Direct Employee Expenses,5001,Surveyor fees for Property services,30/10/2019,0141419,977.30,Revenue,Hays Senior Finance,20078,,
Chorley Borough Council,http://statistics.data.gov.uk/id/local-authority/30UE,Central Support Services,1009,Business Development & Growth,Operational Employees Salaries,10000,Direct Employee Expenses,5001,Surveyor fees for Property services,30/10/2019,0141420,327.94,Revenue,Hays Senior Finance,20078,,
Chorley Borough Council,http://statistics.data.gov.uk/id/local-authority/30UE,Central Support Services,1009,Business Development & Growth,Operational Employees Salaries,10000,Direct Employee Expenses,5001,Surveyor fees for Property services,30/10/2019,0141506,977.30,Revenue,Hays Senior Finance,20078,,
Chorley Borough Council,http://statistics.data.gov.uk/id/local-authority/30UE,Central Support Services,1009,Business Development & Growth,Operational Employees Salaries,10000,Direct Employee Expenses,5001,Surveyor fees for Property services,30/10/2019,0141532,"1,007.00",Revenue,Hays Senior Finance,20078,,
Chorley Borough Council,http://statistics.data.gov.uk/id/local-authority/30UE,Unapportionable Central OHeads,1009,Policy & Governance,Exhibitions & Special Events,40158,Miscellaneous Expenses,5034,3568.60 - Heartbreak`s 70% of the ticket sales for Romeo and Juliet and Wuthering Heights at Astley Hall in Aug 2019.,18/10/2019,0141505,"3,568.60",Revenue,Heartbreak Productions,56110,,
Chorley Borough Council,http://statistics.data.gov.uk/id/local-authority/30UE,Democratic Represent and  Mgnt,1007,Early Intervention,Miscellaneous Expenses,40200,Miscellaneous Expenses,5034,"Main Hall-Walls cleaned, holes filled, walls painted with eggshell. Woodwork rubbed down + painted-Emulsion",09/10/2019,0141191,680.00,Revenue,Henry Nightingale & Son,17923,,
Chorley Borough Council,http://statistics.data.gov.uk/id/local-authority/30UE,Democratic Represent and  Mgnt,1007,Early Intervention,Miscellaneous Expenses,40200,Miscellaneous Expenses,5034,"Entrance/foyer and all toilets: Walls cleaned, holes filled, wall painted with eggshell grey/magnolia TBA",09/10/2019,0141191,385.00,Revenue,Henry Nightingale & Son,17923,,
Chorley Borough Council,http://statistics.data.gov.uk/id/local-authority/30UE,Central Support Services,1009,Business Development & Growth,Professional Fees,40063,Services,5027,Support with Growth Deal Funding Application - Alker Lane,30/10/2019,0141051,729.00,Revenue,Hive Land & Planning Limited,77330,,
Chorley Borough Council,http://statistics.data.gov.uk/id/local-authority/30UE,Central Support Services,1009,Early Intervention,Core Funding Grants,40133,Grants and Subscriptions,5031,small comm grant,30/10/2019,0141199,300.00,Revenue,Hoghton Cricket Club,76674,,
Chorley Borough Council,http://statistics.data.gov.uk/id/local-authority/30UE,Homelessness,1075,Early Intervention,Conferences - Staff,40120,Expenses,5030,Two places at the Northern Housing Conference 25/10/19,04/10/2019,0141200,460.00,Revenue,Housing Reviews Ltd,76269,,
Chorley Borough Council,http://statistics.data.gov.uk/id/local-authority/30UE,Unapportionable Central OHeads,1009,Policy & Governance,Training Course Fees,17010,Indirect Employee Expenses,5002,One place on 2020 vision - a practical guide to the new Rent Standard event on 17th October 2019. Delegate - NAME REDACTED,18/10/2019,0141525,259.00,Revenue,HQN Ltd,76312,,
Chorley Borough Council,http://statistics.data.gov.uk/id/local-authority/30UE,Central Support Services,1009,Customer & Digital,Telephones - Other,40085,Communication and Computing,5028,Hybrit SIP Charges September 19,11/10/2019,0141052,390.00,Revenue,Hybrit LLP,77925,,
Chorley Borough Council,http://statistics.data.gov.uk/id/local-authority/30UE,Corporate Management,1008,Policy & Governance,Other Fees,40212,Miscellaneous Expenses,5034,Subsidy for the provision of meals on wheels for period 19/08/19 to 15/09/19,24/10/2019,0141571,"2,000.00",Revenue,I Care GB Ltd,77247,,
Chorley Borough Council,http://statistics.data.gov.uk/id/local-authority/30UE,Corporate Management,1008,Policy & Governance,Other Fees,40212,Miscellaneous Expenses,5034,Subsidy for the provision of meals on wheels for the period 16/09/19 to 13/10/19,30/10/2019,0141579,"2,025.00",Revenue,I Care GB Ltd,77247,,
Chorley Borough Council,http://statistics.data.gov.uk/id/local-authority/30UE,Planning Policy,1092,Business Development & Growth,Miscellaneous Expenses,40200,Miscellaneous Expenses,5034,18 hours work in creating a finished version of the Issues and Options consultation document.,11/10/2019,0141340,"1,080.00",Revenue,Iced Graphics,77424,,
Chorley Borough Council,http://statistics.data.gov.uk/id/local-authority/30UE,Elections,1012,Policy & Governance,Computer - Support Services,40111,Communication and Computing,5028,"Annual Canvass 2019 - IVR set up, Responses, E reminder set up, Data reload",04/10/2019,0141013,"7,207.43",Revenue,IDOX Software Limited,17542,,
Chorley Borough Council,http://statistics.data.gov.uk/id/local-authority/30UE,Central Support Services,1009,Early Intervention,Miscellaneous Expenses,40200,Miscellaneous Expenses,5034,"7 x TILLREDA Portable Induction Hob, 5 x OUMBARLIG Saucepan with lid, 2 l, Postage to Coppull Primary School, PR7 5AH",24/10/2019,0140729,281.66,Revenue,Ikea Business Accounts,77877,,
Chorley Borough Council,http://statistics.data.gov.uk/id/local-authority/30UE,Business Support,1095,Business Development & Growth,Refuse Collection,20037,Cleaning and Domestic Supplies,5012,Waste Compactor Rental Services @ 270 per month for 01 April 2019 - 31 March 2020,02/10/2019,0141054,270.00,Revenue,J&H Rentals Limited,70699,,
Chorley Borough Council,http://statistics.data.gov.uk/id/local-authority/30UE,Service Management & Support,1009,Policy & Governance,Vehicles and Plant Operating Lease,30029,Contrct Hire & Operating Lease,5018,2 months lease extension Wessex RMX-560 Mower 27th Aug 19 to 27th Oct 19,02/10/2019,0140944,584.15,Revenue,Jcb Finance Ltd,17684,,
Chorley Borough Council,http://statistics.data.gov.uk/id/local-authority/30UE,Service Management & Support,1009,Policy & Governance,Vehicles and Plant Operating Lease,30029,Contrct Hire & Operating Lease,5018,2 months lease extension Ransome Parkway Mower YX14 FCL 27th Aug 19 to 27th Oct 19,02/10/2019,0140944,709.06,Revenue,Jcb Finance Ltd,17684,,
Chorley Borough Council,http://statistics.data.gov.uk/id/local-authority/30UE,Service Management & Support,1009,Policy & Governance,Vehicles and Plant Operating Lease,30029,Contrct Hire & Operating Lease,5018,2 months lease extension John Deere Front Mower P14 VMZ 27th Aug 19 to 27th Oct 19,02/10/2019,0140944,506.47,Revenue,Jcb Finance Ltd,17684,,
Chorley Borough Council,http://statistics.data.gov.uk/id/local-authority/30UE,Service Management & Support,1009,Policy & Governance,Vehicles and Plant Operating Lease,30029,Contrct Hire & Operating Lease,5018,2 months lease extension John Deere Front Mower PN14 VNF 27th Aug 19 to 27th Oct 19,02/10/2019,0140944,506.47,Revenue,Jcb Finance Ltd,17684,,
Chorley Borough Council,http://statistics.data.gov.uk/id/local-authority/30UE,Capital,Capital,Business Development & Growth,Main Contractor,03007,Capital Expenditure,Capital,Works to Chorley Cemtery Roads as per tender award,30/10/2019,0140900,"101,293.57",Capital,John Wade Groundworks Ltd,76676,,
Chorley Borough Council,http://statistics.data.gov.uk/id/local-authority/30UE,Capital,Capital,Business Development & Growth,Other Contractor,03012,Capital Expenditure,Capital,"Bus shelter relocation & footway works adjacent to Booths, Union St, Chorley as quoted - commencing 16th September.",02/10/2019,0141028,"8,941.00",Capital,John Wade Groundworks Ltd,76676,,
Chorley Borough Council,http://statistics.data.gov.uk/id/local-authority/30UE,Democratic Represent and  Mgnt,1007,Customer & Digital,External Contractor,40198,Miscellaneous Expenses,5034,Resurfacing works @ Harpers Rec,02/10/2019,0141077,"5,987.00",Revenue,John Wade Groundworks Ltd,76676,,
Chorley Borough Council,http://statistics.data.gov.uk/id/local-authority/30UE,Capital,Capital,Early Intervention,Grants,03002,Capital Expenditure,Capital,,18/10/2019,0140789,"4,670.00",Capital,K Berry Ltd,16421,,
Chorley Borough Council,http://statistics.data.gov.uk/id/local-authority/30UE,Capital,Capital,Early Intervention,Grants,03002,Capital Expenditure,Capital,ADDRESS REDACTED,16/10/2019,0141423,"2,485.00",Capital,K Berry Ltd,16421,,
Chorley Borough Council,http://statistics.data.gov.uk/id/local-authority/30UE,Capital,Capital,Early Intervention,Grants,03002,Capital Expenditure,Capital,ADDRESS REDACTED,16/10/2019,0141435,"4,183.75",Capital,K Berry Ltd,16421,,
Chorley Borough Council,http://statistics.data.gov.uk/id/local-authority/30UE,Service Management & Support,1009,Customer & Digital,Protective Clothing,40040,"Clothing, Uniforms and Laundry",5025,"SF85 Victor Waterproof Safety Boot  Size 10   x 2, size 11   x 1, size 12   x 2",22/10/2019,0141430,149.75,Revenue,Key Engineering & Hygene Supplies,51615,,
Chorley Borough Council,http://statistics.data.gov.uk/id/local-authority/30UE,Service Management & Support,1009,Customer & Digital,Protective Clothing,40040,"Clothing, Uniforms and Laundry",5025,"20 x Just One Source Red PVC knit wrist glove, 100% cotton knitted wrist liner, cut resistant level 1, elasticated cuff 0.58each",22/10/2019,0141430,11.60,Revenue,Key Engineering & Hygene Supplies,51615,,
Chorley Borough Council,http://statistics.data.gov.uk/id/local-authority/30UE,Service Management & Support,1009,Customer & Digital,Protective Clothing,40040,"Clothing, Uniforms and Laundry",5025,"100 x B Flex Thermo-Star Fully Dipped thermal glovesLvl 2�Abrasion & Cut Resistance, Lvl 4�Tear Resistance, Lvl 1�Puncture",22/10/2019,0141430,125.00,Revenue,Key Engineering & Hygene Supplies,51615,,
Chorley Borough Council,http://statistics.data.gov.uk/id/local-authority/30UE,Central Support Services,1009,Customer & Digital,Computer Equipment-Purchase,40098,Communication and Computing,5028,apple lightening cables X 20,30/10/2019,0141112,309.75,Revenue,Kingsfield Computer Products LTD,77551,,
Chorley Borough Council,http://statistics.data.gov.uk/id/local-authority/30UE,Unapportionable Central OHeads,1009,Policy & Governance,Consultants` Fees,40077,Services,5027,Marketing support for events,04/10/2019,0140974,"2,000.00",Revenue,KR Public Relations Limited,78009,,
Chorley Borough Council,http://statistics.data.gov.uk/id/local-authority/30UE,Control Accounts,Control,Policy & Governance,General Balances,00100,Balance Sheet,Balance,monthly deductions,30/10/2019,0141615,"1,407.62",Revenue,Labour Councillors Association,17577,,
Chorley Borough Council,http://statistics.data.gov.uk/id/local-authority/30UE,Precepts and Collection Fund,Precepts,Policy & Governance,LCC Precept,02009,Precepts & Collection Fund,Precept,LCC Council Tax Precept,18/10/2019,0139665,"5,044,969.00",Revenue,Lancashire County Council,18386,,
Chorley Borough Council,http://statistics.data.gov.uk/id/local-authority/30UE,Collection Fund Revenue Accoun,,Policy & Governance,NNDR County Share,02036,Precepts & Collection Fund,Precept,LCC Business Rates Precept,18/10/2019,0139665,"422,163.00",Revenue,Lancashire County Council,18386,,
Chorley Borough Council,http://statistics.data.gov.uk/id/local-authority/30UE,Precepts and Collection Fund,Precepts,Policy & Governance,LCC Precept,02009,Precepts & Collection Fund,Precept,LCC Council Tax Precept,18/10/2019,0139666,"5,044,969.00",Revenue,Lancashire County Council,18386,,
Chorley Borough Council,http://statistics.data.gov.uk/id/local-authority/30UE,Collection Fund Revenue Accoun,,Policy & Governance,NNDR County Share,02036,Precepts & Collection Fund,Precept,LCC Business Rates Precept,18/10/2019,0139666,"422,163.00",Revenue,Lancashire County Council,18386,,
Chorley Borough Council,http://statistics.data.gov.uk/id/local-authority/30UE,Precepts and Collection Fund,Precepts,Policy & Governance,LCC Precept,02009,Precepts & Collection Fund,Precept,LCC council tax precept,18/10/2019,0140713,"5,044,969.00",Revenue,Lancashire County Council,18386,,
Chorley Borough Council,http://statistics.data.gov.uk/id/local-authority/30UE,Collection Fund Revenue Accoun,,Policy & Governance,NNDR County Share,02036,Precepts & Collection Fund,Precept,LCC business rates precept,18/10/2019,0140713,"422,163.00",Revenue,Lancashire County Council,18386,,
Chorley Borough Council,http://statistics.data.gov.uk/id/local-authority/30UE,Capital,Capital,Early Intervention,Grants,03002,Capital Expenditure,Capital,18/00021/DFG NAME REDACTED - ADDRESS REDACTED,04/10/2019,0141113,"10,929.50",Capital,Lancashire County Council,17758,,
Chorley Borough Council,http://statistics.data.gov.uk/id/local-authority/30UE,Capital,Capital,Early Intervention,Grants,03002,Capital Expenditure,Capital,17/00070/DFG NAME REDACTED - ADDRESS REDACTED,04/10/2019,0141114,"8,815.00",Capital,Lancashire County Council,17758,,
Chorley Borough Council,http://statistics.data.gov.uk/id/local-authority/30UE,Precepts and Collection Fund,Precepts,Policy & Governance,LCC Precept,02009,Precepts & Collection Fund,Precept,lcc council tax precept,18/10/2019,0141196,"5,044,969.00",Revenue,Lancashire County Council,18386,,
Chorley Borough Council,http://statistics.data.gov.uk/id/local-authority/30UE,Collection Fund Revenue Accoun,,Policy & Governance,NNDR County Share,02036,Precepts & Collection Fund,Precept,lcc business rates precept,18/10/2019,0141196,"422,163.00",Revenue,Lancashire County Council,18386,,
Chorley Borough Council,http://statistics.data.gov.uk/id/local-authority/30UE,Capital,Capital,Early Intervention,Grants,03002,Capital Expenditure,Capital,ADDRESS REDACTED,11/10/2019,0141366,"3,078.97",Capital,Lancashire County Council,17758,,
Chorley Borough Council,http://statistics.data.gov.uk/id/local-authority/30UE,Capital,Capital,Early Intervention,Grants,03002,Capital Expenditure,Capital,ADDRESS REDACTED,11/10/2019,0141375,"1,409.98",Capital,Lancashire County Council,17758,,
Chorley Borough Council,http://statistics.data.gov.uk/id/local-authority/30UE,Capital,Capital,Early Intervention,Grants,03002,Capital Expenditure,Capital,ADDRESS REDACTED,11/10/2019,0141376,"4,984.00",Capital,Lancashire County Council,17758,,
Chorley Borough Council,http://statistics.data.gov.uk/id/local-authority/30UE,Capital,Capital,Business Development & Growth,Other Expenses,03030,Capital Expenditure,Capital,"To supply TRO for Union Street, Chorley. (as per email with NAME REDACTED)  if any objections, may be an additional 500",30/10/2019,0141504,"2,500.00",Capital,Lancashire County Council,20027,,
Chorley Borough Council,http://statistics.data.gov.uk/id/local-authority/30UE,Development Control,1091,Customer & Digital,Tools & Equipment - Purchase,40003,"Equipment, Furniture & Materia",5023,SLA for Archaeology for 2019 - 2020,22/10/2019,0141552,"5,723.00",Revenue,Lancashire County Council,17758,,
Chorley Borough Council,http://statistics.data.gov.uk/id/local-authority/30UE,Capital,Capital,Policy & Governance,Other Expenses,03030,Capital Expenditure,Capital,payment of 278 Agreement,11/10/2019,0141207,"2,500.00",Capital,Lancashire County Council Highways,18845,,
Chorley Borough Council,http://statistics.data.gov.uk/id/local-authority/30UE,Other Short Term Creditors,,Policy & Governance,General Balances,00100,Balance Sheet,Balance,EE`s Contributions,18/10/2019,0140865,"44,961.68",Revenue,Lancashire Pensions Services,16696,,
Chorley Borough Council,http://statistics.data.gov.uk/id/local-authority/30UE,Other Short Term Creditors,,Policy & Governance,General Balances,00100,Balance Sheet,Balance,ER`s Contributions,18/10/2019,0140865,"99,428.80",Revenue,Lancashire Pensions Services,16696,,
Chorley Borough Council,http://statistics.data.gov.uk/id/local-authority/30UE,Unapportionable Central OHeads,1009,Policy & Governance,Pensions Deficit Recovery Contributions,12003,Direct Employee Expenses,5001,Deficit,18/10/2019,0140865,"80,525.00",Revenue,Lancashire Pensions Services,16696,,
Chorley Borough Council,http://statistics.data.gov.uk/id/local-authority/30UE,Precepts and Collection Fund,Precepts,Policy & Governance,LCFA Precept,02011,Precepts & Collection Fund,Precept,LCFA council tax precept,18/10/2019,0140714,"260,330.00",Revenue,Lancs Combined Fire Authority,17768,,
Chorley Borough Council,http://statistics.data.gov.uk/id/local-authority/30UE,Collection Fund Revenue Accoun,,Policy & Governance,NNDR Fire Share,02037,Precepts & Collection Fund,Precept,LCFA business rates precept,18/10/2019,0140714,"36,052.00",Revenue,Lancs Combined Fire Authority,17768,,
Chorley Borough Council,http://statistics.data.gov.uk/id/local-authority/30UE,Precepts and Collection Fund,Precepts,Policy & Governance,LCFA Precept,02011,Precepts & Collection Fund,Precept,lcfa council tax,18/10/2019,0141205,"260,330.00",Revenue,Lancs Combined Fire Authority,17768,,
Chorley Borough Council,http://statistics.data.gov.uk/id/local-authority/30UE,Collection Fund Revenue Accoun,,Policy & Governance,NNDR Fire Share,02037,Precepts & Collection Fund,Precept,lcfa bus rates p,18/10/2019,0141205,"36,052.00",Revenue,Lancs Combined Fire Authority,17768,,
Chorley Borough Council,http://statistics.data.gov.uk/id/local-authority/30UE,Planning Policy,1092,Business Development & Growth,Professional Fees,40063,Services,5027,Inspection / Valuation of land adjacent Sumner House Apartments and also Hut Lane Site,30/10/2019,0141015,750.00,Revenue,Lea Hough & Co LLP,76318,,
Chorley Borough Council,http://statistics.data.gov.uk/id/local-authority/30UE,Development Control,1091,Policy & Governance,Car Leasing Payment,14100,Direct Employee Expenses,5001,VIN REDACTED - NAME REDACTED,11/10/2019,0141115,257.13,Revenue,LeasePlan UK Ltd T/A Automotive Leasing,65197,,
Chorley Borough Council,http://statistics.data.gov.uk/id/local-authority/30UE,Development Control,1091,Policy & Governance,Car Leasing Payment,14100,Direct Employee Expenses,5001,vat,11/10/2019,0141115,21.97,Revenue,LeasePlan UK Ltd T/A Automotive Leasing,65197,,
Chorley Borough Council,http://statistics.data.gov.uk/id/local-authority/30UE,Corporate Management,1008,Policy & Governance,Car Leasing Payment,14100,Direct Employee Expenses,5001,VIN REDACTED - NAME REDACTED,09/10/2019,0141116,280.86,Revenue,LeasePlan UK Ltd T/A Automotive Leasing,65197,,
Chorley Borough Council,http://statistics.data.gov.uk/id/local-authority/30UE,Corporate Management,1008,Policy & Governance,Car Leasing Payment,14100,Direct Employee Expenses,5001,vat,09/10/2019,0141116,25.02,Revenue,LeasePlan UK Ltd T/A Automotive Leasing,65197,,
Chorley Borough Council,http://statistics.data.gov.uk/id/local-authority/30UE,Unapportionable Central OHeads,1009,Policy & Governance,Car Leasing Payment,14100,Direct Employee Expenses,5001,VIN REDACTED - NAME REDACTED,09/10/2019,0141117,"2,553.93",Revenue,LeasePlan UK Ltd T/A Automotive Leasing,65197,,
Chorley Borough Council,http://statistics.data.gov.uk/id/local-authority/30UE,Unapportionable Central OHeads,1009,Policy & Governance,Car Leasing Payment,14100,Direct Employee Expenses,5001,vat,09/10/2019,0141117,214.75,Revenue,LeasePlan UK Ltd T/A Automotive Leasing,65197,,
Chorley Borough Council,http://statistics.data.gov.uk/id/local-authority/30UE,Central Support Services,1009,Policy & Governance,Car Leasing Payment,14100,Direct Employee Expenses,5001,VIN REDACTED - NAME REDACTED,09/10/2019,0141118,294.23,Revenue,LeasePlan UK Ltd T/A Automotive Leasing,65197,,
Chorley Borough Council,http://statistics.data.gov.uk/id/local-authority/30UE,Central Support Services,1009,Policy & Governance,Car Leasing Payment,14100,Direct Employee Expenses,5001,vat,09/10/2019,0141118,25.79,Revenue,LeasePlan UK Ltd T/A Automotive Leasing,65197,,
Chorley Borough Council,http://statistics.data.gov.uk/id/local-authority/30UE,Development Control,1091,Policy & Governance,Car Leasing Payment,14100,Direct Employee Expenses,5001,"NAME REDACTED Land Rover Evoque 2.0 D150 R-Dynamic S 5DR, Fuji White, Nav Lease, 3 Years, 17,000 m/yr, 143 g/km",16/10/2019,0141121,"3,790.38",Revenue,LeasePlan UK Ltd T/A Automotive Leasing,65197,,
Chorley Borough Council,http://statistics.data.gov.uk/id/local-authority/30UE,Central Support Services,1009,Policy & Governance,Car Leasing Payment,14100,Direct Employee Expenses,5001,termination fee VIN REDACTED,16/10/2019,0140137,"1,200.80",Revenue,Lex Autolease Ltd,70682,,
Chorley Borough Council,http://statistics.data.gov.uk/id/local-authority/30UE,Democratic Represent and  Mgnt,1007,Policy & Governance,Car Leasing Payment,14100,Direct Employee Expenses,5001,VIN REDACTED - NAME REDACTED,16/10/2019,0141339,"3,260.76",Revenue,Lex Autolease Ltd,70682,,
Chorley Borough Council,http://statistics.data.gov.uk/id/local-authority/30UE,Democratic Represent and  Mgnt,1007,Policy & Governance,Car Leasing Payment,14100,Direct Employee Expenses,5001,vat,16/10/2019,0141339,293.22,Revenue,Lex Autolease Ltd,70682,,
Chorley Borough Council,http://statistics.data.gov.uk/id/local-authority/30UE,Unapportionable Central OHeads,1009,Customer & Digital,Professional Fees,40063,Services,5027,Empty Homes Review 2019,16/10/2019,0140702,"3,208.32",Revenue,Liberata (Capacity Grid),67989,,
Chorley Borough Council,http://statistics.data.gov.uk/id/local-authority/30UE,Corporate Management,1008,Policy & Governance,Treasury Management Service,40065,Services,5027,Treasury Management Services for the period 01/04/19 - 30/09/2019,02/10/2019,0141033,"7,450.00",Revenue,Link Treasury Services Limited,16428,,
Chorley Borough Council,http://statistics.data.gov.uk/id/local-authority/30UE,Democratic Represent and  Mgnt,1007,Policy & Governance,Exhibitions,40176,Miscellaneous Expenses,5034,"13 x STAS Zipper Adjustable Hook pack of 10 Code 5398 25.55 each Delivery to Astley Hall, Chorley, PR7 1NP",30/10/2019,0140954,332.15,Revenue,Lion Picture Framing Supplies Ltd,21731,,
Chorley Borough Council,http://statistics.data.gov.uk/id/local-authority/30UE,Capital,Capital,Customer & Digital,Purchase Of Vehicles & Plant,03013,Capital Expenditure,Capital,Quote via email from NAME REDACTED. GDS150R with Beacon GDS106 and Cover GDS108. Delivery Bengal Street Depot,22/10/2019,0141004,"5,922.00",Capital,Logic Manufacturing Ltd,21058,,
Chorley Borough Council,http://statistics.data.gov.uk/id/local-authority/30UE,Unapportionable Central OHeads,1009,Policy & Governance,Exhibitions & Special Events,40158,Miscellaneous Expenses,5034,Performances to promote Chorley Live in the Town Centre 28 September 11am and12.30pm,04/10/2019,0141197,375.00,Revenue,Louby Lou Ltd,76335,,
Chorley Borough Council,http://statistics.data.gov.uk/id/local-authority/30UE,Corporate Management,1008,Policy & Governance,Exhibitions & Special Events,40158,Miscellaneous Expenses,5034,"Performance on Market Walk, Thursday 24 October",30/10/2019,0141682,500.00,Revenue,Louby Lou Ltd,76335,,
Chorley Borough Council,http://statistics.data.gov.uk/id/local-authority/30UE,Business Support,1095,Business Development & Growth,Stationery,40050,"Printing, Stationery & General",5026,"Shedder, office trays, flip chart charts, flip chart pads for meeting rooms etc",02/10/2019,0141064,474.00,Revenue,Lyreco UK Ltd,17623,,
Chorley Borough Council,http://statistics.data.gov.uk/id/local-authority/30UE,Unapportionable Central OHeads,1009,Chief Executive,Stationery,40050,"Printing, Stationery & General",5026,Lyreco correction tape side roll,02/10/2019,0141067,1.28,Revenue,Lyreco UK Ltd,17623,,
Chorley Borough Council,http://statistics.data.gov.uk/id/local-authority/30UE,Unapportionable Central OHeads,1009,Chief Executive,Stationery,40050,"Printing, Stationery & General",5026,4340HP Black Ink Cartridge 953,02/10/2019,0141067,48.52,Revenue,Lyreco UK Ltd,17623,,
Chorley Borough Council,http://statistics.data.gov.uk/id/local-authority/30UE,Unapportionable Central OHeads,1009,Chief Executive,Stationery,40050,"Printing, Stationery & General",5026,HP Blue Ink Cartridge 953,02/10/2019,0141067,17.77,Revenue,Lyreco UK Ltd,17623,,
Chorley Borough Council,http://statistics.data.gov.uk/id/local-authority/30UE,Unapportionable Central OHeads,1009,Chief Executive,Stationery,40050,"Printing, Stationery & General",5026,HP Yellow Ink Cartridge 953,02/10/2019,0141067,17.77,Revenue,Lyreco UK Ltd,17623,,
Chorley Borough Council,http://statistics.data.gov.uk/id/local-authority/30UE,Unapportionable Central OHeads,1009,Chief Executive,Stationery,40050,"Printing, Stationery & General",5026,HP Magenta Ink Cartridge 953,02/10/2019,0141067,17.77,Revenue,Lyreco UK Ltd,17623,,
Chorley Borough Council,http://statistics.data.gov.uk/id/local-authority/30UE,Unapportionable Central OHeads,1009,Chief Executive,Stationery,40050,"Printing, Stationery & General",5026,BX100 LYRECO LAM POUCH 2X125MI A4 GLOSS,02/10/2019,0141067,3.98,Revenue,Lyreco UK Ltd,17623,,
Chorley Borough Council,http://statistics.data.gov.uk/id/local-authority/30UE,Unapportionable Central OHeads,1009,Chief Executive,Stationery,40050,"Printing, Stationery & General",5026,Matte Laminating Pouches,02/10/2019,0141067,9.42,Revenue,Lyreco UK Ltd,17623,,
Chorley Borough Council,http://statistics.data.gov.uk/id/local-authority/30UE,Unapportionable Central OHeads,1009,Chief Executive,Stationery,40050,"Printing, Stationery & General",5026,Lyreco Budget Cloud-Finish Foolscap Box File,02/10/2019,0141067,2.92,Revenue,Lyreco UK Ltd,17623,,
Chorley Borough Council,http://statistics.data.gov.uk/id/local-authority/30UE,Unapportionable Central OHeads,1009,Chief Executive,Stationery,40050,"Printing, Stationery & General",5026,LYRECO BUDGET PIN/CLIP BADGES 55 X 90MM - BOX OF 50,02/10/2019,0141067,5.78,Revenue,Lyreco UK Ltd,17623,,
Chorley Borough Council,http://statistics.data.gov.uk/id/local-authority/30UE,Unapportionable Central OHeads,1009,Chief Executive,Stationery,40050,"Printing, Stationery & General",5026,box 25 DVD printable,02/10/2019,0141067,102.96,Revenue,Lyreco UK Ltd,17623,,
Chorley Borough Council,http://statistics.data.gov.uk/id/local-authority/30UE,Unapportionable Central OHeads,1009,Chief Executive,Stationery,40050,"Printing, Stationery & General",5026,LYRECO I/JET COMP HP CN046A CYA,02/10/2019,0141067,4.42,Revenue,Lyreco UK Ltd,17623,,
Chorley Borough Council,http://statistics.data.gov.uk/id/local-authority/30UE,Unapportionable Central OHeads,1009,Chief Executive,Stationery,40050,"Printing, Stationery & General",5026,BLACK N` RED A5 RULED MANUSCRIPT BOOK - 96 SHEETS,02/10/2019,0141067,10.38,Revenue,Lyreco UK Ltd,17623,,
Chorley Borough Council,http://statistics.data.gov.uk/id/local-authority/30UE,Unapportionable Central OHeads,1009,Chief Executive,Stationery,40050,"Printing, Stationery & General",5026,ALBA 3 Hooks Wood/Metal Coat Hook,02/10/2019,0141067,19.98,Revenue,Lyreco UK Ltd,17623,,
Chorley Borough Council,http://statistics.data.gov.uk/id/local-authority/30UE,Unapportionable Central OHeads,1009,Chief Executive,Stationery,40050,"Printing, Stationery & General",5026,Bostik Blu Tak - Economy 121G Pack,02/10/2019,0141067,1.42,Revenue,Lyreco UK Ltd,17623,,
Chorley Borough Council,http://statistics.data.gov.uk/id/local-authority/30UE,Unapportionable Central OHeads,1009,Chief Executive,Stationery,40050,"Printing, Stationery & General",5026,Lyreco  Hard Back Twin Wire Notebook A5 - Pack Of 5,02/10/2019,0141067,3.00,Revenue,Lyreco UK Ltd,17623,,
Chorley Borough Council,http://statistics.data.gov.uk/id/local-authority/30UE,Unapportionable Central OHeads,1009,Chief Executive,Stationery,40050,"Printing, Stationery & General",5026,Lyreco White C4 Self Seal Plain Envelopes 100Gsm - Box Of 250,02/10/2019,0141067,5.90,Revenue,Lyreco UK Ltd,17623,,
Chorley Borough Council,http://statistics.data.gov.uk/id/local-authority/30UE,Business Support,1095,Business Development & Growth,Stationery,40050,"Printing, Stationery & General",5026,"Additional key safe, tape measure, screwdrivers, table signs for meetings",02/10/2019,0141068,262.85,Revenue,Lyreco UK Ltd,17623,,
Chorley Borough Council,http://statistics.data.gov.uk/id/local-authority/30UE,Homelessness,1075,Early Intervention,Stationery,40050,"Printing, Stationery & General",5026,"Diary 2020 - 1.03 ea - 2, Compatible Cartridges (Black) - 41.30 ea - 2, (Cyan) - 39.99 ea - 1, (Magenta) - 39.94 ea - 1",02/10/2019,0141069,321.34,Revenue,Lyreco UK Ltd,17623,,
Chorley Borough Council,http://statistics.data.gov.uk/id/local-authority/30UE,Service Management & Support,1009,Customer & Digital,Grounds Maintenance Contractor,20043,Grounds Maintenance Costs,5013,As per invoice INV-000050 For tree works carried out in August 2019,04/10/2019,0141198,"1,820.00",Revenue,M J Walker,62044,,
Chorley Borough Council,http://statistics.data.gov.uk/id/local-authority/30UE,Capital,Capital,Early Intervention,Grants,03002,Capital Expenditure,Capital,ADDRESS REDACTED,04/10/2019,0141201,"3,505.00",Capital,M.J Park Building Contractors,20367,,
Chorley Borough Council,http://statistics.data.gov.uk/id/local-authority/30UE,Capital,Capital,Early Intervention,Grants,03002,Capital Expenditure,Capital,ADDRESS REDACTED,11/10/2019,0141335,"4,182.50",Capital,M.J Park Building Contractors,20367,,
Chorley Borough Council,http://statistics.data.gov.uk/id/local-authority/30UE,Capital,Capital,Early Intervention,Grants,03002,Capital Expenditure,Capital,ADDRESS REDACTED,11/10/2019,0141374,"2,785.00",Capital,M.J Park Building Contractors,20367,,
Chorley Borough Council,http://statistics.data.gov.uk/id/local-authority/30UE,Central Support Services,1009,Early Intervention,Miscellaneous Expenses,40200,Miscellaneous Expenses,5034,mallard Consultancy LTD - annual membership renewal,30/10/2019,0141007,990.00,Revenue,Mallard Consultancy LTD,76458,,
Chorley Borough Council,http://statistics.data.gov.uk/id/local-authority/30UE,Central Support Services,1009,Customer & Digital,Licence Fees,60084,Customer & Client Receipts,5064,Refund of full remaining months of street trading consent minus administration charge,02/10/2019,0141084,265.83,Revenue,NAME REDACTED,78282,,
Chorley Borough Council,http://statistics.data.gov.uk/id/local-authority/30UE,Unapportionable Central OHeads,1009,Policy & Governance,Agency Staff,13000,Direct Employee Expenses,5001,NAME REDACTED,04/10/2019,0141204,742.69,Revenue,Matrix SCM Ltd,22128,,
Chorley Borough Council,http://statistics.data.gov.uk/id/local-authority/30UE,Central Support Services,1009,Policy & Governance,Agency Staff,13000,Direct Employee Expenses,5001,NAME REDACTED,04/10/2019,0141204,76.05,Revenue,Matrix SCM Ltd,22128,,
Chorley Borough Council,http://statistics.data.gov.uk/id/local-authority/30UE,Central Support Services,1009,Policy & Governance,Agency Staff,13000,Direct Employee Expenses,5001,NAME REDACTED,04/10/2019,0141204,"1,003.78",Revenue,Matrix SCM Ltd,22128,,
Chorley Borough Council,http://statistics.data.gov.uk/id/local-authority/30UE,Central Support Services,1009,Policy & Governance,Agency Staff,13000,Direct Employee Expenses,5001,NAME REDACTED,04/10/2019,0141204,803.02,Revenue,Matrix SCM Ltd,22128,,
Chorley Borough Council,http://statistics.data.gov.uk/id/local-authority/30UE,Unapportionable Central OHeads,1009,Policy & Governance,Agency Staff,13000,Direct Employee Expenses,5001,NAME REDACTED,16/10/2019,0141372,742.69,Revenue,Matrix SCM Ltd,22128,,
Chorley Borough Council,http://statistics.data.gov.uk/id/local-authority/30UE,Unapportionable Central OHeads,1009,Policy & Governance,Agency Staff,13000,Direct Employee Expenses,5001,NAME REDACTED,18/10/2019,0141425,742.69,Revenue,Matrix SCM Ltd,22128,,
Chorley Borough Council,http://statistics.data.gov.uk/id/local-authority/30UE,Central Support Services,1009,Policy & Governance,Agency Staff,13000,Direct Employee Expenses,5001,NAME REDACTED,18/10/2019,0141425,"2,007.54",Revenue,Matrix SCM Ltd,22128,,
Chorley Borough Council,http://statistics.data.gov.uk/id/local-authority/30UE,Unapportionable Central OHeads,1009,Policy & Governance,Agency Staff,13000,Direct Employee Expenses,5001,NAME REDACTED,18/10/2019,0141520,742.69,Revenue,Matrix SCM Ltd,22128,,
Chorley Borough Council,http://statistics.data.gov.uk/id/local-authority/30UE,Central Support Services,1009,Policy & Governance,Agency Staff,13000,Direct Employee Expenses,5001,NAME REDACTED,18/10/2019,0141520,803.01,Revenue,Matrix SCM Ltd,22128,,
Chorley Borough Council,http://statistics.data.gov.uk/id/local-authority/30UE,Unapportionable Central OHeads,1009,Policy & Governance,Agency Staff,13000,Direct Employee Expenses,5001,NAME REDACTED,30/10/2019,0141614,742.69,Revenue,Matrix SCM Ltd,22128,,
Chorley Borough Council,http://statistics.data.gov.uk/id/local-authority/30UE,Central Support Services,1009,Policy & Governance,Agency Staff,13000,Direct Employee Expenses,5001,NAME REDACTED,30/10/2019,0141614,"1,003.78",Revenue,Matrix SCM Ltd,22128,,
Chorley Borough Council,http://statistics.data.gov.uk/id/local-authority/30UE,Development Control,1091,Policy & Governance,Legal Fees,40171,Miscellaneous Expenses,5034,Counsel`s fee for attending conference at the Town Hall on 4 October 2019 re Woods Fold Saw Mill,16/10/2019,0141429,980.75,Revenue,Matthew Henderson,77746,,
Chorley Borough Council,http://statistics.data.gov.uk/id/local-authority/30UE,Recognised Cap Grants & Conts,,Customer & Digital,Contributions Parish Councils,40144,Grants and Subscriptions,5031,cil  1apr to 30 sept 2019,30/10/2019,0141373,"61,095.49",Revenue,Mawdesley Parish Council,17570,,
Chorley Borough Council,http://statistics.data.gov.uk/id/local-authority/30UE,Democratic Represent and  Mgnt,1007,Policy & Governance,Grants To Other Organisations,40127,Grants and Subscriptions,5031,cllr comm grant,18/10/2019,0141426,250.00,Revenue,Mawdesley Village Hall,18423,,
Chorley Borough Council,http://statistics.data.gov.uk/id/local-authority/30UE,Service Management & Support,1009,Customer & Digital,Grounds Maintenance Contractor,20043,Grounds Maintenance Costs,5013,20 tonne of 10mm to dust ultitrec delivered to railway road Brinscall,30/10/2019,0140771,454.82,Revenue,Mc & Ma Stewart (Haulage Ltd),16627,,
Chorley Borough Council,http://statistics.data.gov.uk/id/local-authority/30UE,Democratic Represent and  Mgnt,1007,Customer & Digital,Grounds Maintenance Contractor,20043,Grounds Maintenance Costs,5013,20 tonne of ultitrec delivered to layby on railway road brinscall,30/10/2019,0140772,454.82,Revenue,Mc & Ma Stewart (Haulage Ltd),16627,,
Chorley Borough Council,http://statistics.data.gov.uk/id/local-authority/30UE,Democratic Represent and  Mgnt,1007,Customer & Digital,Grounds Maintenance Contractor,20043,Grounds Maintenance Costs,5013,20 Tonne of mot delivered to layby railway road Brinscall,30/10/2019,0141136,326.70,Revenue,Mc & Ma Stewart (Haulage Ltd),16627,,
Chorley Borough Council,http://statistics.data.gov.uk/id/local-authority/30UE,Service Management & Support,1009,Customer & Digital,Supplies-Grounds Maintenance,40025,"Equipment, Furniture & Materia",5023,20 ton of Unltra Tec to be delivered to Botany Bay Car Park,30/10/2019,0141675,454.35,Revenue,Mc & Ma Stewart (Haulage Ltd),16627,,
Chorley Borough Council,http://statistics.data.gov.uk/id/local-authority/30UE,Service Management & Support,1009,Customer & Digital,Supplies-Grounds Maintenance,40025,"Equipment, Furniture & Materia",5023,20 ton of Grade 1 top soil to be delivered to Chorley Cemetery,30/10/2019,0141676,430.50,Revenue,Mc & Ma Stewart (Haulage Ltd),16627,,
Chorley Borough Council,http://statistics.data.gov.uk/id/local-authority/30UE,Capital,Capital,Customer & Digital,Equipment,03014,Capital Expenditure,Capital,Supply of LIDS for 240 Litre wheeled bin.      Quantity = 100 Colour = Blue,02/10/2019,0140674,495.00,Capital,MGB Plastics Ltd,18624,,
Chorley Borough Council,http://statistics.data.gov.uk/id/local-authority/30UE,Capital,Capital,Customer & Digital,Equipment,03014,Capital Expenditure,Capital,Supplier of LIDS for 240 L wheel bin.    Quantity = 100    Colour = Brown,02/10/2019,0140682,495.00,Capital,MGB Plastics Ltd,18624,,
Chorley Borough Council,http://statistics.data.gov.uk/id/local-authority/30UE,Capital,Capital,Customer & Digital,Equipment,03014,Capital Expenditure,Capital,Supply of LIDS for 240 L wheeled bins.    Quantity 100     Colour Green,02/10/2019,0140683,495.00,Capital,MGB Plastics Ltd,18624,,
Chorley Borough Council,http://statistics.data.gov.uk/id/local-authority/30UE,Unapportionable Central OHeads,1009,Policy & Governance,Agency Staff,13000,Direct Employee Expenses,5001,Recruitment to temporary Management Accountant post,04/10/2019,0141016,954.70,Revenue,Michael Page International Limted,78006,,
Chorley Borough Council,http://statistics.data.gov.uk/id/local-authority/30UE,Unapportionable Central OHeads,1009,Policy & Governance,Agency Staff,13000,Direct Employee Expenses,5001,Recruitment to temporary Management Accountant post,04/10/2019,0141083,967.34,Revenue,Michael Page International Limted,78006,,
Chorley Borough Council,http://statistics.data.gov.uk/id/local-authority/30UE,Unapportionable Central OHeads,1009,Policy & Governance,Agency Staff,13000,Direct Employee Expenses,5001,Recruitment to temporary Management Accountant post,11/10/2019,0141280,923.09,Revenue,Michael Page International Limted,78006,,
Chorley Borough Council,http://statistics.data.gov.uk/id/local-authority/30UE,Unapportionable Central OHeads,1009,Policy & Governance,Agency Staff,13000,Direct Employee Expenses,5001,Recruitment to temporary Management Accountant post,18/10/2019,0141477,916.76,Revenue,Michael Page International Limted,78006,,
Chorley Borough Council,http://statistics.data.gov.uk/id/local-authority/30UE,Unapportionable Central OHeads,1009,Policy & Governance,Agency Staff,13000,Direct Employee Expenses,5001,Recruitment to temporary Management Accountant post,24/10/2019,0141557,746.06,Revenue,Michael Page International Limted,78006,,
Chorley Borough Council,http://statistics.data.gov.uk/id/local-authority/30UE,Unapportionable Central OHeads,1009,Policy & Governance,Agency Staff,13000,Direct Employee Expenses,5001,Recruitment to temporary Management Accountant post,30/10/2019,0141726,942.05,Revenue,Michael Page International Limted,78006,,
Chorley Borough Council,http://statistics.data.gov.uk/id/local-authority/30UE,Collection Fund Revenue Accoun,,Policy & Governance,Transitional Protection,02033,Precepts & Collection Fund,Precept,trans protn contributions,18/10/2019,0140715,"21,944.00",Revenue,Ministry of Housing Communities & Local Government,16280,,
Chorley Borough Council,http://statistics.data.gov.uk/id/local-authority/30UE,Collection Fund Revenue Accoun,,Policy & Governance,NNDR Central Share,02034,Precepts & Collection Fund,Precept,central share BR,18/10/2019,0140715,"488,488.00",Revenue,Ministry of Housing Communities & Local Government,16280,,
Chorley Borough Council,http://statistics.data.gov.uk/id/local-authority/30UE,Collection Fund Revenue Accoun,,Policy & Governance,Transitional Protection,02033,Precepts & Collection Fund,Precept,trans probn contributions,18/10/2019,0141203,"21,942.00",Revenue,Ministry of Housing Communities & Local Government,16280,,
Chorley Borough Council,http://statistics.data.gov.uk/id/local-authority/30UE,Collection Fund Revenue Accoun,,Policy & Governance,NNDR Central Share,02034,Precepts & Collection Fund,Precept,central share BR,18/10/2019,0141203,"488,488.00",Revenue,Ministry of Housing Communities & Local Government,16280,,
Chorley Borough Council,http://statistics.data.gov.uk/id/local-authority/30UE,Capital,Capital,Early Intervention,Grants,03002,Capital Expenditure,Capital,ADDRESS REDACTED,11/10/2019,0141331,"8,668.50",Capital,Mint Northwest Ltd,65607,,
Chorley Borough Council,http://statistics.data.gov.uk/id/local-authority/30UE,Capital,Capital,Early Intervention,Grants,03002,Capital Expenditure,Capital,ADDRESS REDACTED,11/10/2019,0141332,"9,076.83",Capital,Mint Northwest Ltd,65607,,
Chorley Borough Council,http://statistics.data.gov.uk/id/local-authority/30UE,Capital,Capital,Early Intervention,Grants,03002,Capital Expenditure,Capital,ADDRESS REDACTED,30/10/2019,0141723,"4,504.60",Capital,Mint Northwest Ltd,65607,,
Chorley Borough Council,http://statistics.data.gov.uk/id/local-authority/30UE,Service Management & Support,1009,Customer & Digital,Grounds Maintenance Contractor,20043,Grounds Maintenance Costs,5013,Works carried out @ Astley Park Cenotaph (cleaning),09/10/2019,0141240,535.00,Revenue,MJR Masonry Services,56017,,
Chorley Borough Council,http://statistics.data.gov.uk/id/local-authority/30UE,Private Sector HSG Renewal,1073,Early Intervention,External Contractor,40198,Miscellaneous Expenses,5034,Ref 2446,24/10/2019,0141559,360.00,Revenue,Mobility Care Services,70841,,
Chorley Borough Council,http://statistics.data.gov.uk/id/local-authority/30UE,Private Sector HSG Renewal,1073,Early Intervention,External Contractor,40198,Miscellaneous Expenses,5034,Ref 2447,24/10/2019,0141559,222.00,Revenue,Mobility Care Services,70841,,
Chorley Borough Council,http://statistics.data.gov.uk/id/local-authority/30UE,Private Sector HSG Renewal,1073,Early Intervention,External Contractor,40198,Miscellaneous Expenses,5034,Ref 2448,24/10/2019,0141559,128.00,Revenue,Mobility Care Services,70841,,
Chorley Borough Council,http://statistics.data.gov.uk/id/local-authority/30UE,Private Sector HSG Renewal,1073,Early Intervention,External Contractor,40198,Miscellaneous Expenses,5034,Ref 2449,24/10/2019,0141559,256.00,Revenue,Mobility Care Services,70841,,
Chorley Borough Council,http://statistics.data.gov.uk/id/local-authority/30UE,Private Sector HSG Renewal,1073,Early Intervention,External Contractor,40198,Miscellaneous Expenses,5034,Ref 2450,24/10/2019,0141559,256.00,Revenue,Mobility Care Services,70841,,
Chorley Borough Council,http://statistics.data.gov.uk/id/local-authority/30UE,Private Sector HSG Renewal,1073,Early Intervention,External Contractor,40198,Miscellaneous Expenses,5034,Ref 2466,24/10/2019,0141559,111.00,Revenue,Mobility Care Services,70841,,
Chorley Borough Council,http://statistics.data.gov.uk/id/local-authority/30UE,Private Sector HSG Renewal,1073,Early Intervention,External Contractor,40198,Miscellaneous Expenses,5034,Ref 2459,24/10/2019,0141559,128.00,Revenue,Mobility Care Services,70841,,
Chorley Borough Council,http://statistics.data.gov.uk/id/local-authority/30UE,Private Sector HSG Renewal,1073,Early Intervention,External Contractor,40198,Miscellaneous Expenses,5034,Ref 2468,24/10/2019,0141559,280.00,Revenue,Mobility Care Services,70841,,
Chorley Borough Council,http://statistics.data.gov.uk/id/local-authority/30UE,Private Sector HSG Renewal,1073,Early Intervention,External Contractor,40198,Miscellaneous Expenses,5034,Ref 2469,24/10/2019,0141559,256.00,Revenue,Mobility Care Services,70841,,
Chorley Borough Council,http://statistics.data.gov.uk/id/local-authority/30UE,Private Sector HSG Renewal,1073,Early Intervention,External Contractor,40198,Miscellaneous Expenses,5034,Ref 2479,24/10/2019,0141559,132.00,Revenue,Mobility Care Services,70841,,
Chorley Borough Council,http://statistics.data.gov.uk/id/local-authority/30UE,Private Sector HSG Renewal,1073,Early Intervention,External Contractor,40198,Miscellaneous Expenses,5034,Ref 2480,24/10/2019,0141559,66.00,Revenue,Mobility Care Services,70841,,
Chorley Borough Council,http://statistics.data.gov.uk/id/local-authority/30UE,Private Sector HSG Renewal,1073,Early Intervention,External Contractor,40198,Miscellaneous Expenses,5034,Ref 2467,24/10/2019,0141559,256.00,Revenue,Mobility Care Services,70841,,
Chorley Borough Council,http://statistics.data.gov.uk/id/local-authority/30UE,Private Sector HSG Renewal,1073,Early Intervention,External Contractor,40198,Miscellaneous Expenses,5034,Ref 2470,24/10/2019,0141559,280.00,Revenue,Mobility Care Services,70841,,
Chorley Borough Council,http://statistics.data.gov.uk/id/local-authority/30UE,Private Sector HSG Renewal,1073,Early Intervention,External Contractor,40198,Miscellaneous Expenses,5034,Ref 2485,24/10/2019,0141559,66.00,Revenue,Mobility Care Services,70841,,
Chorley Borough Council,http://statistics.data.gov.uk/id/local-authority/30UE,Private Sector HSG Renewal,1073,Early Intervention,External Contractor,40198,Miscellaneous Expenses,5034,Ref 2486,24/10/2019,0141559,66.00,Revenue,Mobility Care Services,70841,,
Chorley Borough Council,http://statistics.data.gov.uk/id/local-authority/30UE,Private Sector HSG Renewal,1073,Early Intervention,External Contractor,40198,Miscellaneous Expenses,5034,Ref 2488,24/10/2019,0141559,66.00,Revenue,Mobility Care Services,70841,,
Chorley Borough Council,http://statistics.data.gov.uk/id/local-authority/30UE,Private Sector HSG Renewal,1073,Early Intervention,External Contractor,40198,Miscellaneous Expenses,5034,Ref 2489,24/10/2019,0141559,66.00,Revenue,Mobility Care Services,70841,,
Chorley Borough Council,http://statistics.data.gov.uk/id/local-authority/30UE,Private Sector HSG Renewal,1073,Early Intervention,External Contractor,40198,Miscellaneous Expenses,5034,Ref 2503,24/10/2019,0141559,80.00,Revenue,Mobility Care Services,70841,,
Chorley Borough Council,http://statistics.data.gov.uk/id/local-authority/30UE,Private Sector HSG Renewal,1073,Early Intervention,External Contractor,40198,Miscellaneous Expenses,5034,Ref 2510,24/10/2019,0141559,66.00,Revenue,Mobility Care Services,70841,,
Chorley Borough Council,http://statistics.data.gov.uk/id/local-authority/30UE,Private Sector HSG Renewal,1073,Early Intervention,External Contractor,40198,Miscellaneous Expenses,5034,Ref 2514,24/10/2019,0141559,140.00,Revenue,Mobility Care Services,70841,,
Chorley Borough Council,http://statistics.data.gov.uk/id/local-authority/30UE,Private Sector HSG Renewal,1073,Early Intervention,External Contractor,40198,Miscellaneous Expenses,5034,Ref 2529,24/10/2019,0141559,256.00,Revenue,Mobility Care Services,70841,,
Chorley Borough Council,http://statistics.data.gov.uk/id/local-authority/30UE,Private Sector HSG Renewal,1073,Early Intervention,External Contractor,40198,Miscellaneous Expenses,5034,Ref 2530,24/10/2019,0141559,66.00,Revenue,Mobility Care Services,70841,,
Chorley Borough Council,http://statistics.data.gov.uk/id/local-authority/30UE,Private Sector HSG Renewal,1073,Early Intervention,External Contractor,40198,Miscellaneous Expenses,5034,Ref 2531,24/10/2019,0141559,66.00,Revenue,Mobility Care Services,70841,,
Chorley Borough Council,http://statistics.data.gov.uk/id/local-authority/30UE,Private Sector HSG Renewal,1073,Early Intervention,External Contractor,40198,Miscellaneous Expenses,5034,Ref 2533,24/10/2019,0141559,360.00,Revenue,Mobility Care Services,70841,,
Chorley Borough Council,http://statistics.data.gov.uk/id/local-authority/30UE,Private Sector HSG Renewal,1073,Early Intervention,External Contractor,40198,Miscellaneous Expenses,5034,Ref 2535,24/10/2019,0141559,60.00,Revenue,Mobility Care Services,70841,,
Chorley Borough Council,http://statistics.data.gov.uk/id/local-authority/30UE,Private Sector HSG Renewal,1073,Early Intervention,External Contractor,40198,Miscellaneous Expenses,5034,Ref 2536,24/10/2019,0141559,128.00,Revenue,Mobility Care Services,70841,,
Chorley Borough Council,http://statistics.data.gov.uk/id/local-authority/30UE,Private Sector HSG Renewal,1073,Early Intervention,External Contractor,40198,Miscellaneous Expenses,5034,Ref 2534,24/10/2019,0141559,111.00,Revenue,Mobility Care Services,70841,,
Chorley Borough Council,http://statistics.data.gov.uk/id/local-authority/30UE,Private Sector HSG Renewal,1073,Early Intervention,External Contractor,40198,Miscellaneous Expenses,5034,Ref 2537,24/10/2019,0141559,111.00,Revenue,Mobility Care Services,70841,,
Chorley Borough Council,http://statistics.data.gov.uk/id/local-authority/30UE,Private Sector HSG Renewal,1073,Early Intervention,External Contractor,40198,Miscellaneous Expenses,5034,Ref 2538,24/10/2019,0141559,256.00,Revenue,Mobility Care Services,70841,,
Chorley Borough Council,http://statistics.data.gov.uk/id/local-authority/30UE,Development Control,1091,Policy & Governance,Legal Fees,40171,Miscellaneous Expenses,5034,CBC -v- NAME REDACTED - Counsel`s fee for perusal of papers and prep/advice and attendance at Lancaster Magistrates` Court,16/10/2019,0141392,"1,300.00",Revenue,Mr Jacob Dyer,21575,,
Chorley Borough Council,http://statistics.data.gov.uk/id/local-authority/30UE,Unapportionable Central OHeads,1009,Policy & Governance,Exhibitions & Special Events,40158,Miscellaneous Expenses,5034,"9,000 x 48PP A6 CHORLEY LIVE 2019 PROGRAMME Estimate Number 33675",04/10/2019,0141202,"1,340.00",Revenue,N B Colour Print Ltd,17917,,
Chorley Borough Council,http://statistics.data.gov.uk/id/local-authority/30UE,Economic Development,1096,Business Development & Growth,Training Course Fees,17010,Indirect Employee Expenses,5002,x 1 delegate place for NAME REDACTED on the Diploma in Market Management course starting February 2020,30/10/2019,0141597,"1,000.00",Revenue,Nabma,16257,,
Chorley Borough Council,http://statistics.data.gov.uk/id/local-authority/30UE,Elections,1012,Chief Executive,Petrol,30005,Direct Transport Costs,5016,Franking Machine top-up,02/10/2019,0140745,500.00,Revenue,Neopost Ltd RCB Credifon A/C,20009,,
Chorley Borough Council,http://statistics.data.gov.uk/id/local-authority/30UE,Unapportionable Central OHeads,1009,Policy & Governance,Exhibitions & Special Events,40158,Miscellaneous Expenses,5034,CL Event Security,30/10/2019,0141282,975.00,Revenue,New Concept Security Ltd,77501,,
Chorley Borough Council,http://statistics.data.gov.uk/id/local-authority/30UE,Unapportionable Central OHeads,1009,Policy & Governance,Laundry,40042,"Clothing, Uniforms and Laundry",5025,"Invoice number 593 Tea towels and tablecloths laundered and pressed, collected and delivered.",30/10/2019,0141683,304.00,Revenue,North West Ironing & Laundry Centre,20450,,
Chorley Borough Council,http://statistics.data.gov.uk/id/local-authority/30UE,Business Support,1095,Business Development & Growth,Refreshments,40036,Catering,5024,Various refreshments stock for the meeting rooms and the breakout areas at SF,30/10/2019,0140839,419.28,Revenue,North West Tea FM Solutions,78255,,
Chorley Borough Council,http://statistics.data.gov.uk/id/local-authority/30UE,Business Support,1095,Business Development & Growth,Refreshments,40036,Catering,5024,carriage,30/10/2019,0140839,6.99,Revenue,North West Tea FM Solutions,78255,,
Chorley Borough Council,http://statistics.data.gov.uk/id/local-authority/30UE,Business Support,1095,Business Development & Growth,Electricity,20013,Energy Costs,5006,1/8/19 to 31/8/19,18/10/2019,0140903,"2,857.30",Revenue,Npower Commercial Gas,16814,,
Chorley Borough Council,http://statistics.data.gov.uk/id/local-authority/30UE,Unapportionable Central OHeads,1009,Business Development & Growth,Electricity,20013,Energy Costs,5006,1/8/19 to 31/8/19,18/10/2019,0140906,"1,982.58",Revenue,Npower Commercial Gas,16814,,
Chorley Borough Council,http://statistics.data.gov.uk/id/local-authority/30UE,Unapportionable Central OHeads,1009,Business Development & Growth,Electricity,20013,Energy Costs,5006,1/8/19 to 31/8/19,18/10/2019,0140907,816.42,Revenue,Npower Commercial Gas,16814,,
Chorley Borough Council,http://statistics.data.gov.uk/id/local-authority/30UE,Unapportionable Central OHeads,1009,Business Development & Growth,Electricity,20013,Energy Costs,5006,1/8/19 to 31/8/19,18/10/2019,0140908,"3,622.10",Revenue,Npower Commercial Gas,16814,,
Chorley Borough Council,http://statistics.data.gov.uk/id/local-authority/30UE,Business Support,1095,Business Development & Growth,Electricity,20013,Energy Costs,5006,1/8/19 to 31/8/19,04/10/2019,0141216,867.08,Revenue,Npower Commercial Gas,16814,,
Chorley Borough Council,http://statistics.data.gov.uk/id/local-authority/30UE,Democratic Represent and  Mgnt,1007,Business Development & Growth,Electricity,20013,Energy Costs,5006,1/8/19 to 31/8/19,04/10/2019,0141221,"1,218.73",Revenue,Npower Commercial Gas,16814,,
Chorley Borough Council,http://statistics.data.gov.uk/id/local-authority/30UE,Parking Services,1066,Business Development & Growth,Electricity,20013,Energy Costs,5006,1/8/19 to 31/8/19,04/10/2019,0141222,311.11,Revenue,Npower Commercial Gas,16814,,
Chorley Borough Council,http://statistics.data.gov.uk/id/local-authority/30UE,Homelessness,1075,Business Development & Growth,Electricity,20013,Energy Costs,5006,1/8/19 to 31/8/19,04/10/2019,0141228,443.53,Revenue,Npower Commercial Gas,16814,,
Chorley Borough Council,http://statistics.data.gov.uk/id/local-authority/30UE,Parking Services,1066,Business Development & Growth,Electricity,20013,Energy Costs,5006,pay & display 1/7/19 to 30/9/19,30/10/2019,0141433,395.70,Revenue,Npower Commercial Gas,16814,,
Chorley Borough Council,http://statistics.data.gov.uk/id/local-authority/30UE,Central Support Services,1009,Business Development & Growth,Electricity,20013,Energy Costs,5006,1/7/19 to 30/9,30/10/2019,0141434,978.87,Revenue,Npower Commercial Gas,16814,,
Chorley Borough Council,http://statistics.data.gov.uk/id/local-authority/30UE,Unapportionable Central OHeads,1009,Business Development & Growth,Electricity,20013,Energy Costs,5006,1/9/19 to 30/9/19,18/10/2019,0141441,910.88,Revenue,Npower Commercial Gas,16814,,
Chorley Borough Council,http://statistics.data.gov.uk/id/local-authority/30UE,Business Support,1095,Business Development & Growth,Electricity,20013,Energy Costs,5006,1/9/19 to 30/9/19,18/10/2019,0141449,"2,733.22",Revenue,Npower Commercial Gas,16814,,
Chorley Borough Council,http://statistics.data.gov.uk/id/local-authority/30UE,Unapportionable Central OHeads,1009,Business Development & Growth,Electricity,20013,Energy Costs,5006,1./9/19 to 30/9/19,18/10/2019,0141451,"3,682.30",Revenue,Npower Commercial Gas,16814,,
Chorley Borough Council,http://statistics.data.gov.uk/id/local-authority/30UE,Unapportionable Central OHeads,1009,Business Development & Growth,Electricity,20013,Energy Costs,5006,1/9/19 to 30/9/19,18/10/2019,0141452,"2,176.95",Revenue,Npower Commercial Gas,16814,,
Chorley Borough Council,http://statistics.data.gov.uk/id/local-authority/30UE,Parking Services,1066,Business Development & Growth,Electricity,20013,Energy Costs,5006,1/9/19 to 30/9/19,30/10/2019,0141637,327.86,Revenue,Npower Commercial Gas,16814,,
Chorley Borough Council,http://statistics.data.gov.uk/id/local-authority/30UE,Business Support,1095,Business Development & Growth,Electricity,20013,Energy Costs,5006,1/9/19 to 30/9/19,30/10/2019,0141651,757.76,Revenue,Npower Commercial Gas,16814,,
Chorley Borough Council,http://statistics.data.gov.uk/id/local-authority/30UE,Homelessness,1075,Business Development & Growth,Electricity,20013,Energy Costs,5006,1/9/19 to 30/9/19,30/10/2019,0141657,429.21,Revenue,Npower Commercial Gas,16814,,
Chorley Borough Council,http://statistics.data.gov.uk/id/local-authority/30UE,Democratic Represent and  Mgnt,1007,Business Development & Growth,Electricity,20013,Energy Costs,5006,1/8/19 to 30/9/19,30/10/2019,0141663,"1,083.85",Revenue,Npower Commercial Gas,16814,,
Chorley Borough Council,http://statistics.data.gov.uk/id/local-authority/30UE,Parking Services,1066,Business Development & Growth,External Contractors,50008,Private Contractors,5042,"Provision of off street car park enforcement, cash collection, cash counting and bulk cash collections for 01.04.19 - 31.03.20",18/10/2019,0141173,"4,645.60",Revenue,NSL Limited,67253,,
Chorley Borough Council,http://statistics.data.gov.uk/id/local-authority/30UE,Central Support Services,1009,Customer & Digital,Computer Equipment-Purchase,40098,Communication and Computing,5028,NetApp buy back as requested in emails between NAME REDACTED and NAME REDACTED 18/09/19,04/10/2019,0141134,"4,700.00",Revenue,Nviron Limited,77141,,
Chorley Borough Council,http://statistics.data.gov.uk/id/local-authority/30UE,Democratic Represent and  Mgnt,1007,Policy & Governance,General Subscriptions,40146,Grants and Subscriptions,5031,Full Members Subscription April 2019 - March 2020,18/10/2019,0141479,"4,146.86",Revenue,Nwlaeo,17571,,
Chorley Borough Council,http://statistics.data.gov.uk/id/local-authority/30UE,Central Support Services,1009,Early Intervention,Core Funding Grants,40133,Grants and Subscriptions,5031,small comm grant,30/10/2019,0141174,400.00,Revenue,Panchos Place,78277,,
Chorley Borough Council,http://statistics.data.gov.uk/id/local-authority/30UE,Democratic Represent and  Mgnt,1007,Business Development & Growth,Grounds Maintenance Contractor,20043,Grounds Maintenance Costs,5013,Reprint of both Duxbury Trail Leaflets. 2000 copies of each.,18/10/2019,0141476,595.00,Revenue,Paper Rabbit Print Ltd,78305,,
Chorley Borough Council,http://statistics.data.gov.uk/id/local-authority/30UE,Parking Services,1066,Business Development & Growth,Printing,40043,"Printing, Stationery & General",5026,Please supply 200k ~Stelio Adhesive Check out Chorley tickets are 4.65 per 1000. Please deliver FAO: NAME REDACTED,16/10/2019,0141017,906.75,Revenue,Paperwork (UK) Limited,18296,,
Chorley Borough Council,http://statistics.data.gov.uk/id/local-authority/30UE,Business Support,1095,Early Intervention,Cleaning Materials,40019,"Equipment, Furniture & Materia",5023,3 x Recycle bins CB400-GY - 23.30 each,30/10/2019,0140972,387.57,Revenue,Pattersons Holdings (Bristol),77537,,
Chorley Borough Council,http://statistics.data.gov.uk/id/local-authority/30UE,Business Support,1095,Early Intervention,Cleaning Materials,40019,"Equipment, Furniture & Materia",5023,3 x Recycle bin lids - VMO199-grey  - 13.90 each,30/10/2019,0140972,198.60,Revenue,Pattersons Holdings (Bristol),77537,,
Chorley Borough Council,http://statistics.data.gov.uk/id/local-authority/30UE,Economic Development,1096,Business Development & Growth,Cleaning Materials,40019,"Equipment, Furniture & Materia",5023,Please supply cleaning materials as per e-mail,16/10/2019,0141289,359.97,Revenue,Pattersons Holdings (Bristol),77537,,
Chorley Borough Council,http://statistics.data.gov.uk/id/local-authority/30UE,Unapportionable Central OHeads,1009,Policy & Governance,Cleaning Materials,40019,"Equipment, Furniture & Materia",5023,AD104 Mini Jumbo 12 pack QTY 20 packs @ 8.91/ pack total 178.20,30/10/2019,0141513,178.20,Revenue,Pattersons Holdings (Bristol),77537,,
Chorley Borough Council,http://statistics.data.gov.uk/id/local-authority/30UE,Unapportionable Central OHeads,1009,Policy & Governance,Cleaning Materials,40019,"Equipment, Furniture & Materia",5023,AC003 Small toilet rolls 36 pack @ 6.05/pack QTY 12 packs total 72.60,30/10/2019,0141513,72.60,Revenue,Pattersons Holdings (Bristol),77537,,
Chorley Borough Council,http://statistics.data.gov.uk/id/local-authority/30UE,Unapportionable Central OHeads,1009,Policy & Governance,Cleaning Materials,40019,"Equipment, Furniture & Materia",5023,AE233 Paper towels S fold 1 ply @8.10/box QTY 25 boxes total 202.50,30/10/2019,0141513,202.50,Revenue,Pattersons Holdings (Bristol),77537,,
Chorley Borough Council,http://statistics.data.gov.uk/id/local-authority/30UE,Unapportionable Central OHeads,1009,Policy & Governance,Cleaning Materials,40019,"Equipment, Furniture & Materia",5023,BA001-5 Hard Surface Cleaner 5Ltr. @ 2.86 per container QTY 6 x 5ltr total 17.16,30/10/2019,0141513,17.16,Revenue,Pattersons Holdings (Bristol),77537,,
Chorley Borough Council,http://statistics.data.gov.uk/id/local-authority/30UE,Unapportionable Central OHeads,1009,Policy & Governance,Cleaning Materials,40019,"Equipment, Furniture & Materia",5023,BC040-5 Fragranced toilet cleaner 5Ltr @ 3.53 per container total 14.12,30/10/2019,0141513,14.12,Revenue,Pattersons Holdings (Bristol),77537,,
Chorley Borough Council,http://statistics.data.gov.uk/id/local-authority/30UE,Unapportionable Central OHeads,1009,Policy & Governance,Cleaning Materials,40019,"Equipment, Furniture & Materia",5023,BG040 Spray Air fresh 400ml @ 0.86 per 400ml QTY 24 x 400ml total 20.64,30/10/2019,0141513,20.64,Revenue,Pattersons Holdings (Bristol),77537,,
Chorley Borough Council,http://statistics.data.gov.uk/id/local-authority/30UE,Unapportionable Central OHeads,1009,Policy & Governance,Cleaning Materials,40019,"Equipment, Furniture & Materia",5023,BC115-E/P/W Gel air fresh x 12 @ 2.93 per pack QTY 3 packs total 8.79,30/10/2019,0141513,8.79,Revenue,Pattersons Holdings (Bristol),77537,,
Chorley Borough Council,http://statistics.data.gov.uk/id/local-authority/30UE,Unapportionable Central OHeads,1009,Policy & Governance,Cleaning Materials,40019,"Equipment, Furniture & Materia",5023,CM180 Black bin liners @ 11.75 per box QTY 8 boxes total 94.00,30/10/2019,0141513,94.00,Revenue,Pattersons Holdings (Bristol),77537,,
Chorley Borough Council,http://statistics.data.gov.uk/id/local-authority/30UE,Unapportionable Central OHeads,1009,Policy & Governance,Cleaning Materials,40019,"Equipment, Furniture & Materia",5023,BB034-5 Washing up liquid 5Ltr @ 3.30 per 5Ltr QTY 4 x 5Ltr Total 13.20,30/10/2019,0141513,13.20,Revenue,Pattersons Holdings (Bristol),77537,,
Chorley Borough Council,http://statistics.data.gov.uk/id/local-authority/30UE,Unapportionable Central OHeads,1009,Policy & Governance,Cleaning Materials,40019,"Equipment, Furniture & Materia",5023,DG150-S/M/L/XL Nitrile gloves MEDIUM 1 x 100 @3.52 per box QTY 20 boxes total 70.40,30/10/2019,0141513,70.40,Revenue,Pattersons Holdings (Bristol),77537,,
Chorley Borough Council,http://statistics.data.gov.uk/id/local-authority/30UE,Unapportionable Central OHeads,1009,Policy & Governance,Cleaning Materials,40019,"Equipment, Furniture & Materia",5023,HA021-G twine mop (250) @ 0.81 each QTY 10 Total 8.10,30/10/2019,0141513,8.10,Revenue,Pattersons Holdings (Bristol),77537,,
Chorley Borough Council,http://statistics.data.gov.uk/id/local-authority/30UE,Unapportionable Central OHeads,1009,Policy & Governance,Cleaning Materials,40019,"Equipment, Furniture & Materia",5023,BG045 Furniture Polish x 400ml @1.01 each QTY 12 total 12.12,30/10/2019,0141513,12.12,Revenue,Pattersons Holdings (Bristol),77537,,
Chorley Borough Council,http://statistics.data.gov.uk/id/local-authority/30UE,Unapportionable Central OHeads,1009,Policy & Governance,Cleaning Materials,40019,"Equipment, Furniture & Materia",5023,AF113 blue centre feed 2 ply 6 rolls per pack @7.37 per pack QTY 6 packs total 44.22,30/10/2019,0141513,44.22,Revenue,Pattersons Holdings (Bristol),77537,,
Chorley Borough Council,http://statistics.data.gov.uk/id/local-authority/30UE,Unapportionable Central OHeads,1009,Policy & Governance,Cleaning Materials,40019,"Equipment, Furniture & Materia",5023,HL008 Scouring pads x 10 @1.06 per pack QTY 10 packs total 10.60,30/10/2019,0141513,8.48,Revenue,Pattersons Holdings (Bristol),77537,,
Chorley Borough Council,http://statistics.data.gov.uk/id/local-authority/30UE,Unapportionable Central OHeads,1009,Policy & Governance,Promotional Expenses,40159,Miscellaneous Expenses,5034,Coverage of Chorley Live Friday 4 October,11/10/2019,0141327,250.00,Revenue,Paul Heyes Photographer,20909,,
Chorley Borough Council,http://statistics.data.gov.uk/id/local-authority/30UE,Tourism,1039,Policy & Governance,Professional Fees,40063,Services,5027,PA System and presenter for CFS,18/10/2019,0141460,440.00,Revenue,Paul K Sound & Vision,16607,,
Chorley Borough Council,http://statistics.data.gov.uk/id/local-authority/30UE,Central Support Services,1009,Early Intervention,Core Funding Grants,40133,Grants and Subscriptions,5031,small comm grant,30/10/2019,0141175,300.00,Revenue,Pauline`s Angels,77565,,
Chorley Borough Council,http://statistics.data.gov.uk/id/local-authority/30UE,Unapportionable Central OHeads,1009,Policy & Governance,Agency Staff,13000,Direct Employee Expenses,5001,Supply of Finance Manager on interim basis from 5th February 2019,04/10/2019,0141019,"8,750.00",Revenue,Penna Plc,77833,,
Chorley Borough Council,http://statistics.data.gov.uk/id/local-authority/30UE,Unapportionable Central OHeads,1009,Policy & Governance,Service Fees,40056,Services,5027,Conversion fee in respect of NAME REDACTED reduced down to 15% of annual remuneration,02/10/2019,0141070,"6,838.00",Revenue,Penna Plc,77833,,
Chorley Borough Council,http://statistics.data.gov.uk/id/local-authority/30UE,Unapportionable Central OHeads,1009,Policy & Governance,Agency Staff,13000,Direct Employee Expenses,5001,Interim Management Services provided by NAME REDACTED during September 2019,18/10/2019,0141475,"3,250.00",Revenue,Penna Plc,77833,,
Chorley Borough Council,http://statistics.data.gov.uk/id/local-authority/30UE,Unapportionable Central OHeads,1009,Policy & Governance,HR Approved Occ Health Fees,15201,Indirect Employee Expenses,5002,Occupational Health Charges for September 2019,18/10/2019,0141463,"1,044.50",Revenue,People Asset Management Limited,76487,,
Chorley Borough Council,http://statistics.data.gov.uk/id/local-authority/30UE,Capital,Capital,Business Development & Growth,Consultants Fees,03025,Capital Expenditure,Capital,To provide the Quantity Surveying Market Walk & associated schemes (previous order no: PRD052595),18/10/2019,0141020,"11,171.78",Capital,Perfect Circle JV Ltd,76438,,
Chorley Borough Council,http://statistics.data.gov.uk/id/local-authority/30UE,Capital,Capital,Business Development & Growth,Consultants Fees,03025,Capital Expenditure,Capital,To provide the Quantity Surveying Market Walk & associated schemes (previous order no: PRD052595),18/10/2019,0141021,"11,171.78",Capital,Perfect Circle JV Ltd,76438,,
Chorley Borough Council,http://statistics.data.gov.uk/id/local-authority/30UE,Central Support Services,1009,Early Intervention,Pest Control,20039,Cleaning and Domestic Supplies,5012,Pest Control Interventions/Treatment,02/10/2019,0141022,390.00,Revenue,Peter L Johnson,16727,,
Chorley Borough Council,http://statistics.data.gov.uk/id/local-authority/30UE,Central Support Services,1009,Early Intervention,Pest Control,20039,Cleaning and Domestic Supplies,5012,Pest Control Interventions/Treatment,02/10/2019,0141023,390.00,Revenue,Peter L Johnson,16727,,
Chorley Borough Council,http://statistics.data.gov.uk/id/local-authority/30UE,Central Support Services,1009,Early Intervention,Pest Control,20039,Cleaning and Domestic Supplies,5012,Pest Control Interventions/Treatment,04/10/2019,0141133,390.00,Revenue,Peter L Johnson,16727,,
Chorley Borough Council,http://statistics.data.gov.uk/id/local-authority/30UE,Central Support Services,1009,Early Intervention,Pest Control,20039,Cleaning and Domestic Supplies,5012,Pest Control Interventions/Treatment,16/10/2019,0141436,390.00,Revenue,Peter L Johnson,16727,,
Chorley Borough Council,http://statistics.data.gov.uk/id/local-authority/30UE,Central Support Services,1009,Early Intervention,Pest Control,20039,Cleaning and Domestic Supplies,5012,Pest Control Interventions/Treatment,18/10/2019,0141474,390.00,Revenue,Peter L Johnson,16727,,
Chorley Borough Council,http://statistics.data.gov.uk/id/local-authority/30UE,Central Support Services,1009,Early Intervention,Pest Control,20039,Cleaning and Domestic Supplies,5012,Pest Control Interventions/Treatment,30/10/2019,0141550,390.00,Revenue,Peter L Johnson,16727,,
Chorley Borough Council,http://statistics.data.gov.uk/id/local-authority/30UE,Service Management & Support,1009,Customer & Digital,Diesel/Derv,30007,Direct Transport Costs,5016,1800litres of road diesel as precured through the chest. Delivery to Bengal Street Depot PR7 1SA on Friday 18/10/2019,22/10/2019,0141540,"1,872.00",Revenue,Pilkington Oils,18075,,
Chorley Borough Council,http://statistics.data.gov.uk/id/local-authority/30UE,Precepts and Collection Fund,Precepts,Policy & Governance,LPA Precept,02010,Precepts & Collection Fund,Precept,PCC council tax precept,18/10/2019,0140723,"754,167.00",Revenue,Police & Crime Commissioner,17438,,
Chorley Borough Council,http://statistics.data.gov.uk/id/local-authority/30UE,Precepts and Collection Fund,Precepts,Policy & Governance,LPA Precept,02010,Precepts & Collection Fund,Precept,pcc council tac precept,18/10/2019,0141176,"754,167.00",Revenue,Police & Crime Commissioner,17438,,
Chorley Borough Council,http://statistics.data.gov.uk/id/local-authority/30UE,Business Support,1095,Business Development & Growth,Miscellaneous Expenses,40200,Miscellaneous Expenses,5034,Strawberry Fields Digital Hub External Signage as per quote ref REF11914/2,02/10/2019,0137600,"8,041.77",Revenue,Poppy Signs Ltd,21898,,
Chorley Borough Council,http://statistics.data.gov.uk/id/local-authority/30UE,Economic Development,1096,Business Development & Growth,Asset Maintenance Fund,20012,Repairs Maintenance & Alts,5005,Steeley Lane Banner - Timber rail and upgraded fixings along the whole fence level with the top of the banner,30/10/2019,0140722,381.60,Revenue,Poppy Signs Ltd,21898,,
Chorley Borough Council,http://statistics.data.gov.uk/id/local-authority/30UE,Unapportionable Central OHeads,1009,Policy & Governance,Exhibitions & Special Events,40158,Miscellaneous Expenses,5034,"MEDIUM Teardrop Banner x 20 Including water tank base / spindle, pole, bag, printed banner wraparound hem style. REF12893/1",30/10/2019,0141031,"1,858.06",Revenue,Poppy Signs Ltd,21898,,
Chorley Borough Council,http://statistics.data.gov.uk/id/local-authority/30UE,Corporate Management,1008,Chief Executive,Corp Training Organisational Development,17006,Indirect Employee Expenses,5002,"3 days �Train the Trainer� Training Course on 2nd, 3rd & 10th October, in the Town hall (990 each exc VAT)",24/10/2019,0141556,"2,970.00",Revenue,Potential Unearthed,22243,,
Chorley Borough Council,http://statistics.data.gov.uk/id/local-authority/30UE,Corporate Management,1008,Chief Executive,Corp Training Organisational Development,17006,Indirect Employee Expenses,5002,"1 day �Performance review� training on 15th October, at Astley Hall Coach House",24/10/2019,0141558,990.00,Revenue,Potential Unearthed,22243,,
Chorley Borough Council,http://statistics.data.gov.uk/id/local-authority/30UE,Democratic Represent and  Mgnt,1007,Policy & Governance,Performing Rights Society Fees,40148,Grants and Subscriptions,5031,Fees for period of 6th April 2019 to 5th July 2019.,02/10/2019,0140851,276.81,Revenue,PPL PRS Ltd,77455,,
Chorley Borough Council,http://statistics.data.gov.uk/id/local-authority/30UE,Unapportionable Central OHeads,1009,Policy & Governance,Mayors Medals,40029,"Equipment, Furniture & Materia",5023,"Valuation of Mayoral chains, Deputy Mayoral chains, maces and other Regalia detailed in the valuation document.",22/10/2019,0141522,780.00,Revenue,Precious Metals Craft & Design Workshop,77902,,
Chorley Borough Council,http://statistics.data.gov.uk/id/local-authority/30UE,Private Sector HSG Renewal,1073,Early Intervention,External Contractor,40198,Miscellaneous Expenses,5034,Provision of Handyperson services (funded by LCC IHIS) in Q2 2019/20,09/10/2019,0140322,"7,405.75",Revenue,Preston Care and Repair,50018,,
Chorley Borough Council,http://statistics.data.gov.uk/id/local-authority/30UE,Elections,1012,Policy & Governance,Postages,40082,Communication and Computing,5028,final reminder HEFs,02/10/2019,0140994,253.76,Revenue,Print Image Facilities LLP,57870,,
Chorley Borough Council,http://statistics.data.gov.uk/id/local-authority/30UE,Elections,1012,Policy & Governance,Printing,40043,"Printing, Stationery & General",5026,2019 HEF 1st reminder,04/10/2019,0141091,"1,917.83",Revenue,Print Image Network,21171,,
Chorley Borough Council,http://statistics.data.gov.uk/id/local-authority/30UE,Elections,1012,Policy & Governance,Printing,40043,"Printing, Stationery & General",5026,initial ITR mailings,04/10/2019,0141093,"1,500.64",Revenue,Print Image Network,21171,,
Chorley Borough Council,http://statistics.data.gov.uk/id/local-authority/30UE,Elections,1012,Policy & Governance,Stationery,40050,"Printing, Stationery & General",5026,10000 1st class business reply envelopes,11/10/2019,0141384,506.00,Revenue,Print Image Network,21171,,
Chorley Borough Council,http://statistics.data.gov.uk/id/local-authority/30UE,Interest Payable on Debt,1020,Policy & Governance,Interest Payable,09009,Interest Payments,5067,interest LN497713,18/10/2019,0140721,"1,686.61",Revenue,Public Works Loans Board,21480,,
Chorley Borough Council,http://statistics.data.gov.uk/id/local-authority/30UE,Unapportionable Central OHeads,1009,Policy & Governance,Refunds,40220,Miscellaneous Expenses,5034,Repayment of sum paid in respect of land to the rear of ADDRESS REDACTED,18/10/2019,0140969,"6,069.60",Revenue,Quinn & Co,20007,,
Chorley Borough Council,http://statistics.data.gov.uk/id/local-authority/30UE,Business Support,1095,Business Development & Growth,Miscellaneous Expenses,40200,Miscellaneous Expenses,5034,"Trapping Programme - discussed with NAMES REDACTED + bi-annual 4 weeks trapping prog., Cost for year 1 + one follow up ",11/10/2019,0140310,"3,158.97",Revenue,Rentokil,76639,,
Chorley Borough Council,http://statistics.data.gov.uk/id/local-authority/30UE,Business Support,1095,Business Development & Growth,Miscellaneous Expenses,40200,Miscellaneous Expenses,5034,Trapping Programme - discussed with NAMES REDACTED + bi-annual 4 weeks trapping prog. - Cost for year 1 + one follow up,18/10/2019,0141437,740.97,Revenue,Rentokil,76639,,
Chorley Borough Council,http://statistics.data.gov.uk/id/local-authority/30UE,Control Accounts,Control,Policy & Governance,General Balances,00100,Balance Sheet,Balance,vouchers,18/10/2019,0136865,"4,276.75",Revenue,Reward Gateway (UK) Ltd,66814,,
Chorley Borough Council,http://statistics.data.gov.uk/id/local-authority/30UE,Control Accounts,Control,Policy & Governance,General Balances,00100,Balance Sheet,Balance,,18/10/2019,0137671,"3,975.75",Revenue,Reward Gateway (UK) Ltd,66814,,
Chorley Borough Council,http://statistics.data.gov.uk/id/local-authority/30UE,Control Accounts,Control,Policy & Governance,General Balances,00100,Balance Sheet,Balance,childcare vouchers,18/10/2019,0138337,"4,140.00",Revenue,Reward Gateway (UK) Ltd,66814,,
Chorley Borough Council,http://statistics.data.gov.uk/id/local-authority/30UE,Control Accounts,Control,Policy & Governance,General Balances,00100,Balance Sheet,Balance,childcare vouchers,18/10/2019,0139130,"4,140.00",Revenue,Reward Gateway (UK) Ltd,66814,,
Chorley Borough Council,http://statistics.data.gov.uk/id/local-authority/30UE,Control Accounts,Control,Policy & Governance,General Balances,00100,Balance Sheet,Balance,childcare voucher,18/10/2019,0139842,"3,897.00",Revenue,Reward Gateway (UK) Ltd,66814,,
Chorley Borough Council,http://statistics.data.gov.uk/id/local-authority/30UE,Control Accounts,Control,Policy & Governance,General Balances,00100,Balance Sheet,Balance,CCV vouchers,18/10/2019,0140613,"1,039.75",Revenue,Reward Gateway (UK) Ltd,66814,,
Chorley Borough Council,http://statistics.data.gov.uk/id/local-authority/30UE,Control Accounts,Control,Policy & Governance,General Balances,00100,Balance Sheet,Balance,CCV vouchers,18/10/2019,0140613,"2,780.00",Revenue,Reward Gateway (UK) Ltd,66814,,
Chorley Borough Council,http://statistics.data.gov.uk/id/local-authority/30UE,Non Domestic Rates Redistribut,,Policy & Governance,Tariff to Business Rates Pool,49002,Expenditure not in NCOS,,lancs bus rates pool,18/10/2019,0140719,"809,288.00",Revenue,Ribble Valley Borough Council DIRECT DEBIT ONLY,21100,,
Chorley Borough Council,http://statistics.data.gov.uk/id/local-authority/30UE,Non Domestic Rates Redistribut,,Policy & Governance,Tariff to Business Rates Pool,49002,Expenditure not in NCOS,,lancs bus rates pool,18/10/2019,0141171,"809,288.00",Revenue,Ribble Valley Borough Council DIRECT DEBIT ONLY,21100,,
Chorley Borough Council,http://statistics.data.gov.uk/id/local-authority/30UE,Service Management & Support,1009,Customer & Digital,Supplies-Grounds Maintenance,40025,"Equipment, Furniture & Materia",5023,20 x Impact line marking paint 10L @ 26.00each,11/10/2019,0141274,520.00,Revenue,Rigby Taylor Ltd,16299,,
Chorley Borough Council,http://statistics.data.gov.uk/id/local-authority/30UE,Elections,1012,Policy & Governance,Postages,40082,Communication and Computing,5028,Business reply licence RRHA-KZCB-CAXA - from September 2019,24/10/2019,0141594,569.65,Revenue,Royal Mail Group Plc,17522,,
Chorley Borough Council,http://statistics.data.gov.uk/id/local-authority/30UE,Democratic Represent and  Mgnt,1007,Policy & Governance,Exhibitions,40176,Miscellaneous Expenses,5034,BWPA Exhibition 2019 final payment,30/10/2019,0141541,450.00,Revenue,Sanders Exhibition Service Ltd,76737,,
Chorley Borough Council,http://statistics.data.gov.uk/id/local-authority/30UE,Business Support,1095,Business Development & Growth,Fixtures & Fittings - Purchase,20027,Fixtures and Fittings,5010,Lift padding and clips for lift at SFDOP,30/10/2019,0141545,"2,225.00",Revenue,Schindler Ltd,78215,,
Chorley Borough Council,http://statistics.data.gov.uk/id/local-authority/30UE,Democratic Represent and  Mgnt,1007,Business Development & Growth,Electricity,20013,Energy Costs,5006,16/2/19 to 15/5/19,04/10/2019,0141165,736.23,Revenue,Scottish Power,18998,,
Chorley Borough Council,http://statistics.data.gov.uk/id/local-authority/30UE,Business Support,1095,Business Development & Growth,Electricity,20013,Energy Costs,5006,1/9/19 to 1/10/19,30/10/2019,0141503,273.12,Revenue,Scottish Power,18998,,
Chorley Borough Council,http://statistics.data.gov.uk/id/local-authority/30UE,Business Support,1095,Early Intervention,External Contractor,40198,Miscellaneous Expenses,5034,Primrose Gardens - Concierge Services for 01/04/2019 - 31/03/2019 - 6819 hours @ 11.57per hour  total cost = 78.895.83,11/10/2019,0140802,"6,785.81",Revenue,Sector Security Services,19269,,
Chorley Borough Council,http://statistics.data.gov.uk/id/local-authority/30UE,Homelessness,1075,Early Intervention,External Contractor,40198,Miscellaneous Expenses,5034,"Concierge Services - Cotswold Supported Housing 01/04/2019 - 31/03/2019 - 6819 hours@11.57 per hour total cost=78,895.83",30/10/2019,0140803,"6,994.07",Revenue,Sector Security Services,19269,,
Chorley Borough Council,http://statistics.data.gov.uk/id/local-authority/30UE,Business Support,1095,Early Intervention,External Contractor,40198,Miscellaneous Expenses,5034,"Primrose Gardens - Concierge Services for 01/04/2019 - 31/03/2019,  6819 hours @ 11.57per hour, total cost = 78.895.83",11/10/2019,0141303,"6,594.91",Revenue,Sector Security Services,19269,,
Chorley Borough Council,http://statistics.data.gov.uk/id/local-authority/30UE,Homelessness,1075,Early Intervention,External Contractor,40198,Miscellaneous Expenses,5034,"Concierge Services - Cotswold Supported Housing For 01/04/2019-31/03/2019, 6819 hours@11.57per hour total=78,895.83",11/10/2019,0141304,"6,785.81",Revenue,Sector Security Services,19269,,
Chorley Borough Council,http://statistics.data.gov.uk/id/local-authority/30UE,Business Support,1095,Business Development & Growth,Security Service,40062,Services,5027,"6 month contract Apr 19 to Sept 19, 109 hrx26 weeks=2834 hr x 13.90 = 39,392.60 + 500 in lieu of any overtime = 39,892.60",18/10/2019,0141131,"6,428.75",Revenue,Securitas Security Services (UK) Ltd,70693,,
Chorley Borough Council,http://statistics.data.gov.uk/id/local-authority/30UE,Elections,1012,Policy & Governance,Tools & Equipment - Purchase,40003,"Equipment, Furniture & Materia",5023,"7,  floor signs (LE118M)",18/10/2019,0141526,176.40,Revenue,Shaw & Sons Ltd,18092,,
Chorley Borough Council,http://statistics.data.gov.uk/id/local-authority/30UE,Elections,1012,Policy & Governance,Tools & Equipment - Purchase,40003,"Equipment, Furniture & Materia",5023,79 premium ballot box trollys (SBBT4),18/10/2019,0141526,838.75,Revenue,Shaw & Sons Ltd,18092,,
Chorley Borough Council,http://statistics.data.gov.uk/id/local-authority/30UE,Service Management & Support,1009,Customer & Digital,Protective Clothing,40040,"Clothing, Uniforms and Laundry",5025,"High-Vis, Yellow, Waterproof Bomber Jacket Orbit Valiant, Polyester PU-coated waterproof, windproof fabric,Chorley Council logo",16/10/2019,0141387,77.00,Revenue,Smart Image Workwear,21064,,
Chorley Borough Council,http://statistics.data.gov.uk/id/local-authority/30UE,Service Management & Support,1009,Customer & Digital,Protective Clothing,40040,"Clothing, Uniforms and Laundry",5025,"High-Vis, Yellow, PU, waterproof un-lined, outer jacket, Medx4, Lgex4, X Lgex4",16/10/2019,0141387,272.40,Revenue,Smart Image Workwear,21064,,
Chorley Borough Council,http://statistics.data.gov.uk/id/local-authority/30UE,Service Management & Support,1009,Customer & Digital,Protective Clothing,40040,"Clothing, Uniforms and Laundry",5025,"High-Vis, Yellow, 100% waterproof, windproof and breathable outer trousers Medx4, Lgex4, X Lgex4",16/10/2019,0141387,145.80,Revenue,Smart Image Workwear,21064,,
Chorley Borough Council,http://statistics.data.gov.uk/id/local-authority/30UE,Service Management & Support,1009,Customer & Digital,Protective Clothing,40040,"Clothing, Uniforms and Laundry",5025,"Hercules 620 S3 SRC Safety Boot (Ankle),Size 7x3, size 8x3, size 9x1, size 10x3, size 11x3, size 12x1",16/10/2019,0141388,301.00,Revenue,Smart Image Workwear,21064,,
Chorley Borough Council,http://statistics.data.gov.uk/id/local-authority/30UE,Central Support Services,1009,Early Intervention,Miscellaneous Expenses,40200,Miscellaneous Expenses,5034,"Mediation Referrals:COM 2563,COM 2549,COM 2550 ADDRESSES REDACTED Workshop - no charge other than travel expenses",11/10/2019,0141320,"1,490.80",Revenue,Smile Mediation Ltd,62536,,
Chorley Borough Council,http://statistics.data.gov.uk/id/local-authority/30UE,Central Support Services,1009,Customer & Digital,IT Software - Annual Licences,40101,Communication and Computing,5028,AutoCAD LT 2020 Commercial New Single-user ELD Annual Subscription,30/10/2019,0140620,"2,263.84",Revenue,Softcat Ltd,69996,,
Chorley Borough Council,http://statistics.data.gov.uk/id/local-authority/30UE,Central Support Services,1009,Customer & Digital,Computer Software-Additional,40102,Communication and Computing,5028,10 x PwrBIPro ShrdSvr All Language SubsVL MVL PerUsr @ 64.80 = 648.00,30/10/2019,0141732,648.00,Revenue,Softcat Ltd,69996,,
Chorley Borough Council,http://statistics.data.gov.uk/id/local-authority/30UE,Service Management & Support,1009,Customer & Digital,Supplies-Grounds Maintenance,40025,"Equipment, Furniture & Materia",5023,10 x DELUXE BYPASS SECATEUR (09459) @ 5.00each,16/10/2019,0140731,50.00,Revenue,Spalding (UK) Limited,20264,,
Chorley Borough Council,http://statistics.data.gov.uk/id/local-authority/30UE,Service Management & Support,1009,Customer & Digital,Supplies-Grounds Maintenance,40025,"Equipment, Furniture & Materia",5023,5 x Long handled 29`` bypass toppers (21037) @ 11.50,16/10/2019,0140731,57.50,Revenue,Spalding (UK) Limited,20264,,
Chorley Borough Council,http://statistics.data.gov.uk/id/local-authority/30UE,Service Management & Support,1009,Customer & Digital,Supplies-Grounds Maintenance,40025,"Equipment, Furniture & Materia",5023,5 x BULLDOG PREMIER SPRINGBOK (04101) @ 15.55each,16/10/2019,0140731,75.00,Revenue,Spalding (UK) Limited,20264,,
Chorley Borough Council,http://statistics.data.gov.uk/id/local-authority/30UE,Service Management & Support,1009,Customer & Digital,Supplies-Grounds Maintenance,40025,"Equipment, Furniture & Materia",5023,2 x Stihl AutoCut head (C25-2) @20.00each,16/10/2019,0140731,40.00,Revenue,Spalding (UK) Limited,20264,,
Chorley Borough Council,http://statistics.data.gov.uk/id/local-authority/30UE,Service Management & Support,1009,Customer & Digital,Supplies-Grounds Maintenance,40025,"Equipment, Furniture & Materia",5023,4 x Stihl AutoCut mowing head (25-2) @23.00each,16/10/2019,0140731,92.00,Revenue,Spalding (UK) Limited,20264,,
Chorley Borough Council,http://statistics.data.gov.uk/id/local-authority/30UE,Service Management & Support,1009,Customer & Digital,Supplies-Grounds Maintenance,40025,"Equipment, Furniture & Materia",5023,2 x universal swift load (21805) @10.50 each,16/10/2019,0140731,21.00,Revenue,Spalding (UK) Limited,20264,,
Chorley Borough Council,http://statistics.data.gov.uk/id/local-authority/30UE,Service Management & Support,1009,Customer & Digital,Supplies-Grounds Maintenance,40025,"Equipment, Furniture & Materia",5023,5 x mowing head inserts (09813) @6.00,16/10/2019,0140731,30.00,Revenue,Spalding (UK) Limited,20264,,
Chorley Borough Council,http://statistics.data.gov.uk/id/local-authority/30UE,Business Support,1095,Business Development & Growth,Window Cleaning,20034,Cleaning and Domestic Supplies,5012,PPM - External window cleaning at SF,30/10/2019,0140845,374.00,Revenue,Sparkle Window Cleaning (Michael Jennings),77989,,
Chorley Borough Council,http://statistics.data.gov.uk/id/local-authority/30UE,Business Support,1095,Early Intervention,Window Cleaning,20034,Cleaning and Domestic Supplies,5012,Window cleaning - Primrose Gardens Oct 19 to Mar 20 65 apartments @ 6.15 per unit Office and Communal area 92 @ 0.85p,18/10/2019,0141395,621.95,Revenue,Sparkle Window Cleaning (Michael Jennings),77989,,
Chorley Borough Council,http://statistics.data.gov.uk/id/local-authority/30UE,Democratic Represent and  Mgnt,1007,Early Intervention,Consultants` Fees,40077,Services,5027,Waiver approved - Leisure Contract,04/10/2019,0141059,"2,400.00",Revenue,Sport Leisure and Culture Consultancy,77651,,
Chorley Borough Council,http://statistics.data.gov.uk/id/local-authority/30UE,Central Support Services,1009,Early Intervention,Core Funding Grants,40133,Grants and Subscriptions,5031,small comm grant,24/10/2019,0141164,300.00,Revenue,St Laurence`s PCC,17814,,
Chorley Borough Council,http://statistics.data.gov.uk/id/local-authority/30UE,Capital,Capital,Business Development & Growth,Architects Fees,03022,Capital Expenditure,Capital,Westway Sports Campus - Grass Pitch Improvement Evaluation of tenders and preparation of tender report ,30/10/2019,0141125,"3,146.00",Capital,Steve Wells Associates Ltd,77157,,
Chorley Borough Council,http://statistics.data.gov.uk/id/local-authority/30UE,Capital,Capital,Business Development & Growth,Architects Fees,03022,Capital Expenditure,Capital,Westway Sports Campus - Grass Pitch Improvement Preparation of tender documents ,30/10/2019,0141127,"3,146.00",Capital,Steve Wells Associates Ltd,77157,,
Chorley Borough Council,http://statistics.data.gov.uk/id/local-authority/30UE,Capital,Capital,Business Development & Growth,Architects Fees,03022,Capital Expenditure,Capital,Westway Sports Campus - Grass Pitch Works Submission of planning application,30/10/2019,0141129,"3,933.00",Capital,Steve Wells Associates Ltd,77157,,
Chorley Borough Council,http://statistics.data.gov.uk/id/local-authority/30UE,Capital,Capital,Business Development & Growth,Architects Fees,03022,Capital Expenditure,Capital,"Project Recharges: FRA Lynas fees 1,680, CLS sewer invert testing 645, LPA planning application fees 2,053",30/10/2019,0141130,"4,378.00",Capital,Steve Wells Associates Ltd,77157,,
Chorley Borough Council,http://statistics.data.gov.uk/id/local-authority/30UE,Capital,Capital,Business Development & Growth,Consultants Fees,03025,Capital Expenditure,Capital,"Westway Playing Fields - Pavilion and Site Infrastructure Dev. Tender Stage - 30,000 (+VAT) on completion of tender report",30/10/2019,0141319,"30,000.00",Capital,Steve Wells Associates Ltd,77157,,
Chorley Borough Council,http://statistics.data.gov.uk/id/local-authority/30UE,Open Spaces,1038,Business Development & Growth,Professional Fees,40063,Services,5027,Preparation and submission of Westway Playing Fields Football Foundation bid,30/10/2019,0141516,"10,000.00",Revenue,Steve Wells Associates Ltd,77157,,
Chorley Borough Council,http://statistics.data.gov.uk/id/local-authority/30UE,Capital,Capital,Business Development & Growth,Other Capital Related Fees,03024,Capital Expenditure,Capital,Provision�of�Public�Realm�&�Highway�Design�Engineering�services��April2019�-December2019�,09/10/2019,0141245,"2,926.13",Capital,Street Civil Engineering Limited,76750,,
Chorley Borough Council,http://statistics.data.gov.uk/id/local-authority/30UE,Unapportionable Central OHeads,1009,Business Development & Growth,General Repairs - Reactive,20004,Repairs Maintenance & Alts,5005,Blanket reactive,02/10/2019,0140896,701.17,Revenue,Stringfellow Bldg Cntrctrs Ltd,17893,,
Chorley Borough Council,http://statistics.data.gov.uk/id/local-authority/30UE,Unapportionable Central OHeads,1009,Business Development & Growth,General Repairs - Reactive,20004,Repairs Maintenance & Alts,5005,Blanket reactive,02/10/2019,0140911,566.44,Revenue,Stringfellow Bldg Cntrctrs Ltd,17893,,
Chorley Borough Council,http://statistics.data.gov.uk/id/local-authority/30UE,Unapportionable Central OHeads,1009,Business Development & Growth,Asset Maintenance Fund,20012,Repairs Maintenance & Alts,5005,initial renovation works to refugee properties,02/10/2019,0140922,333.08,Revenue,Stringfellow Bldg Cntrctrs Ltd,17893,,
Chorley Borough Council,http://statistics.data.gov.uk/id/local-authority/30UE,Capital,Capital,Early Intervention,Grants,03002,Capital Expenditure,Capital,19/00071/CAG NAME REDACTED - ADDRESS REDACTED,09/10/2019,0141270,"4,089.00",Capital,Stringfellow Bldg Cntrctrs Ltd,17893,,
Chorley Borough Council,http://statistics.data.gov.uk/id/local-authority/30UE,Capital,Capital,Early Intervention,Grants,03002,Capital Expenditure,Capital,19/00110/CAG NAME REDACTED - ADDRESS REDACTED,09/10/2019,0141271,"1,400.00",Capital,Stringfellow Bldg Cntrctrs Ltd,17893,,
Chorley Borough Council,http://statistics.data.gov.uk/id/local-authority/30UE,Democratic Represent and  Mgnt,1007,Business Development & Growth,Asset Maintenance Fund,20012,Repairs Maintenance & Alts,5005,Scaffolding hire for roofing works at Astley Hall x 20 weeks,11/10/2019,0141295,"1,476.00",Revenue,Stringfellow Bldg Cntrctrs Ltd,17893,,
Chorley Borough Council,http://statistics.data.gov.uk/id/local-authority/30UE,Unapportionable Central OHeads,1009,Business Development & Growth,General Repairs - Reactive,20004,Repairs Maintenance & Alts,5005,Reactive works,11/10/2019,0141299,301.58,Revenue,Stringfellow Bldg Cntrctrs Ltd,17893,,
Chorley Borough Council,http://statistics.data.gov.uk/id/local-authority/30UE,Unapportionable Central OHeads,1009,Business Development & Growth,General Repairs - Reactive,20004,Repairs Maintenance & Alts,5005,Reactive works,11/10/2019,0141300,483.16,Revenue,Stringfellow Bldg Cntrctrs Ltd,17893,,
Chorley Borough Council,http://statistics.data.gov.uk/id/local-authority/30UE,Business Support,1095,Business Development & Growth,Furniture - Purchase,40012,"Equipment, Furniture & Materia",5023,Bits and bobs of works to Primrose,11/10/2019,0141318,"2,062.13",Revenue,Stringfellow Bldg Cntrctrs Ltd,17893,,
Chorley Borough Council,http://statistics.data.gov.uk/id/local-authority/30UE,Economic Development,1096,Business Development & Growth,Asset Maintenance Fund,20012,Repairs Maintenance & Alts,5005,"Order 10488 To fit unit sink and water heater in Unit 1, Chorley Markets",16/10/2019,0141438,650.00,Revenue,Stringfellow Bldg Cntrctrs Ltd,17893,,
Chorley Borough Council,http://statistics.data.gov.uk/id/local-authority/30UE,Capital,Capital,Early Intervention,Grants,03002,Capital Expenditure,Capital,ADDRESS REDACTED,16/10/2019,0141439,"13,850.00",Capital,Stringfellow Bldg Cntrctrs Ltd,17893,,
Chorley Borough Council,http://statistics.data.gov.uk/id/local-authority/30UE,Capital,Capital,Early Intervention,Grants,03002,Capital Expenditure,Capital,ADDRESS REDACTED,16/10/2019,0141440,"3,882.50",Capital,Stringfellow Bldg Cntrctrs Ltd,17893,,
Chorley Borough Council,http://statistics.data.gov.uk/id/local-authority/30UE,Unapportionable Central OHeads,1009,Customer & Digital,Refuse Collection,20037,Cleaning and Domestic Supplies,5012,Provision of trade waste collections for Civic Offices Union St Chorley (1July 2019 to 31 March 2020),18/10/2019,0140793,250.30,Revenue,SUEZ R&R UK LTD,17615,,
Chorley Borough Council,http://statistics.data.gov.uk/id/local-authority/30UE,Unapportionable Central OHeads,1009,Customer & Digital,Refuse Collection,20037,Cleaning and Domestic Supplies,5012,Provision of trade waste collections for The Town Hall Market St Chorley (1 July 2019 to 31 March 2020),18/10/2019,0140793,250.30,Revenue,SUEZ R&R UK LTD,17615,,
Chorley Borough Council,http://statistics.data.gov.uk/id/local-authority/30UE,Community Development,1097,Customer & Digital,Refuse Collection,20037,Cleaning and Domestic Supplies,5012,Provision of trade waste collections for The MP`s Office Market St Chorley (1 July 2019 to 31 March 2020),18/10/2019,0140793,41.72,Revenue,SUEZ R&R UK LTD,17615,,
Chorley Borough Council,http://statistics.data.gov.uk/id/local-authority/30UE,Democratic Represent and  Mgnt,1007,Customer & Digital,Refuse Collection,20037,Cleaning and Domestic Supplies,5012,Provision of trade waste collections for Astley Hall Chorley (1 July 2019 to 31 March 2020),18/10/2019,0140793,41.72,Revenue,SUEZ R&R UK LTD,17615,,
Chorley Borough Council,http://statistics.data.gov.uk/id/local-authority/30UE,Democratic Represent and  Mgnt,1007,Customer & Digital,Refuse Collection,20037,Cleaning and Domestic Supplies,5012,Provision of trade waste collections for Tatton Community Centre (1 July 2019 to 31 March 2020),18/10/2019,0140793,20.81,Revenue,SUEZ R&R UK LTD,17615,,
Chorley Borough Council,http://statistics.data.gov.uk/id/local-authority/30UE,Democratic Represent and  Mgnt,1007,Customer & Digital,Refuse Collection,20037,Cleaning and Domestic Supplies,5012,Provision of trade waste collections for ASTLEY VILLAGE Community Centre (1 July 2019 to 31 March 2020),18/10/2019,0140793,28.75,Revenue,SUEZ R&R UK LTD,17615,,
Chorley Borough Council,http://statistics.data.gov.uk/id/local-authority/30UE,Democratic Represent and  Mgnt,1007,Customer & Digital,Refuse Collection,20037,Cleaning and Domestic Supplies,5012,Provision of trade waste collections for EAVES GREEN Community Centre (1 July 2019 to 31 March 2020),18/10/2019,0140793,28.75,Revenue,SUEZ R&R UK LTD,17615,,
Chorley Borough Council,http://statistics.data.gov.uk/id/local-authority/30UE,Recreation & Sport,1037,Customer & Digital,Miscellaneous Expenses,40200,Miscellaneous Expenses,5034,Provision of trade waste collections for BUTTERMERE GREEN Community Centre (1 July 2019 to 31 March 2020),18/10/2019,0140793,28.89,Revenue,SUEZ R&R UK LTD,17615,,
Chorley Borough Council,http://statistics.data.gov.uk/id/local-authority/30UE,Recreation & Sport,1037,Customer & Digital,Miscellaneous Expenses,40200,Miscellaneous Expenses,5034,Provision of trade waste collections for LANCASTER WAY Community Centre (1 July 2019 to 31 March 2020),18/10/2019,0140793,28.75,Revenue,SUEZ R&R UK LTD,17615,,
Chorley Borough Council,http://statistics.data.gov.uk/id/local-authority/30UE,Democratic Represent and  Mgnt,1007,Customer & Digital,Refuse Collection,20037,Cleaning and Domestic Supplies,5012,Provision of trade waste collections for CLAYTON BROOK village Hall (1 July 2019 to 31 March 2020),18/10/2019,0140793,22.19,Revenue,SUEZ R&R UK LTD,17615,,
Chorley Borough Council,http://statistics.data.gov.uk/id/local-authority/30UE,Business Support,1095,Customer & Digital,Refuse Collection,20037,Cleaning and Domestic Supplies,5012,Provision of trade waste & Recycling collections for Strawberry Fields Digital Office Park  (1 July 2019 to 31 March 2020),18/10/2019,0140793,44.75,Revenue,SUEZ R&R UK LTD,17615,,
Chorley Borough Council,http://statistics.data.gov.uk/id/local-authority/30UE,Business Support,1095,Business Development & Growth,Refuse Collection,20037,Cleaning and Domestic Supplies,5012,"2019/20 - To provide a bakkie cage for cardboard in Service Yard 3 @ Market Walk Shopping  Centre, Chorley. ",16/10/2019,0140963,12.00,Revenue,SUEZ R&R UK LTD,17615,,
Chorley Borough Council,http://statistics.data.gov.uk/id/local-authority/30UE,Business Support,1095,Business Development & Growth,Refuse Collection,20037,Cleaning and Domestic Supplies,5012,2019/20 - Market Walk Yard 1 - General Waste compacted - 35 yard roll on/roll off skip from compactor ,16/10/2019,0140963,187.78,Revenue,SUEZ R&R UK LTD,17615,,
Chorley Borough Council,http://statistics.data.gov.uk/id/local-authority/30UE,Business Support,1095,Business Development & Growth,Refuse Collection,20037,Cleaning and Domestic Supplies,5012,2019/20 - Market Walk Yard 1 - General Waste compacted - 35 yard roll on/roll off skip from compactor ,16/10/2019,0140963,"2,282.12",Revenue,SUEZ R&R UK LTD,17615,,
Chorley Borough Council,http://statistics.data.gov.uk/id/local-authority/30UE,Business Support,1095,Business Development & Growth,Refuse Collection,20037,Cleaning and Domestic Supplies,5012,2019/20 - Market Walk Yard 1 - 35 yard roll on/roll off cardboard skip @25 rental per month - no haulage or disposal costs ,16/10/2019,0140963,25.00,Revenue,SUEZ R&R UK LTD,17615,,
Chorley Borough Council,http://statistics.data.gov.uk/id/local-authority/30UE,Business Support,1095,Business Development & Growth,Refuse Collection,20037,Cleaning and Domestic Supplies,5012,2019/20 - Market Walk Yard 2 - 35 yard roll on/roll off cardboard skip @25 rental per month - no haulage or disposal costs,16/10/2019,0140963,25.00,Revenue,SUEZ R&R UK LTD,17615,,
Chorley Borough Council,http://statistics.data.gov.uk/id/local-authority/30UE,Business Support,1095,Business Development & Growth,Refuse Collection,20037,Cleaning and Domestic Supplies,5012,2019/20 - Market Walk Yard 2 - 8 yard FEL for general waste @48.07 per lift - estimated at 39 for remainder of 2019/20 ,16/10/2019,0140963,215.10,Revenue,SUEZ R&R UK LTD,17615,,
Chorley Borough Council,http://statistics.data.gov.uk/id/local-authority/30UE,Business Support,1095,Business Development & Growth,Refuse Collection,20037,Cleaning and Domestic Supplies,5012,2019/20 - Market Walk Yard 3 - 35 yard roll on/roll off cardboard skip @25 rental per month - no haulage or disposal costs,16/10/2019,0140963,25.00,Revenue,SUEZ R&R UK LTD,17615,,
Chorley Borough Council,http://statistics.data.gov.uk/id/local-authority/30UE,Business Support,1095,Business Development & Growth,Refuse Collection,20037,Cleaning and Domestic Supplies,5012,2019/20 - Market Walk Yard 3 - 35 yard roll on/roll off plastic skip @25 rental per month - no haulage or disposal costs ,16/10/2019,0140963,25.00,Revenue,SUEZ R&R UK LTD,17615,,
Chorley Borough Council,http://statistics.data.gov.uk/id/local-authority/30UE,Business Support,1095,Business Development & Growth,Refuse Collection,20037,Cleaning and Domestic Supplies,5012,2019/20 - Market Walk Yard 3 - 2 x 8 yard FEL general waste @48.07 per lift (per FEL) - estimated at 39 lifts per FEL ,16/10/2019,0140963,418.21,Revenue,SUEZ R&R UK LTD,17615,,
Chorley Borough Council,http://statistics.data.gov.uk/id/local-authority/30UE,Central Support Services,1009,Early Intervention,Play Events,40181,Miscellaneous Expenses,5034,Amended invoice 8715 following a processing issue. Inflatable provision for Summer Playday event 7th August 2019,24/10/2019,0141321,"1,416.67",Revenue,Sunshine Events,22127,,
Chorley Borough Council,http://statistics.data.gov.uk/id/local-authority/30UE,Unapportionable Central OHeads,1009,Policy & Governance,Pensions Increase Act Payments,18005,Indirect Employee Expenses,5002,second half,16/10/2019,0141314,"2,827.35",Revenue,Tameside MBC-Gmpf,17034,,
Chorley Borough Council,http://statistics.data.gov.uk/id/local-authority/30UE,Central Support Services,1009,Early Intervention,Core Funding Grants,40133,Grants and Subscriptions,5031,small grant,16/10/2019,0141163,250.00,Revenue,The Astley Walled Gardeners,70095,,
Chorley Borough Council,http://statistics.data.gov.uk/id/local-authority/30UE,Central Support Services,1009,Early Intervention,Core Funding Grants,40133,Grants and Subscriptions,5031,small comm grant,16/10/2019,0141162,250.00,Revenue,The Bennett Choir,78274,,
Chorley Borough Council,http://statistics.data.gov.uk/id/local-authority/30UE,Business Support,1095,Business Development & Growth,Security Service,40062,Services,5027,24/7 security cover at Strawberry Fields between 08.03.19  to 31.07.19,09/10/2019,0140716,"6,923.00",Revenue,The ExcluSec Group Ltd,78056,,
Chorley Borough Council,http://statistics.data.gov.uk/id/local-authority/30UE,Business Support,1095,Business Development & Growth,Security Service,40062,Services,5027,Security cover at Strawberry Fields for September 2019,11/10/2019,0141238,"6,348.00",Revenue,The ExcluSec Group Ltd,78056,,
Chorley Borough Council,http://statistics.data.gov.uk/id/local-authority/30UE,Unapportionable Central OHeads,1009,Business Development & Growth,Planned Maintenance,20006,Repairs Maintenance & Alts,5005,PPM blanket,30/10/2019,0141039,260.00,Revenue,The Guardian Shutter Co LTD,21769,,
Chorley Borough Council,http://statistics.data.gov.uk/id/local-authority/30UE,Unapportionable Central OHeads,1009,Business Development & Growth,Planned Maintenance,20006,Repairs Maintenance & Alts,5005,PPM blanket,30/10/2019,0141040,504.00,Revenue,The Guardian Shutter Co LTD,21769,,
Chorley Borough Council,http://statistics.data.gov.uk/id/local-authority/30UE,Unapportionable Central OHeads,1009,Business Development & Growth,Planned Maintenance,20006,Repairs Maintenance & Alts,5005,PPM blanket,30/10/2019,0141041,630.00,Revenue,The Guardian Shutter Co LTD,21769,,
Chorley Borough Council,http://statistics.data.gov.uk/id/local-authority/30UE,Unapportionable Central OHeads,1009,Business Development & Growth,Planned Maintenance,20006,Repairs Maintenance & Alts,5005,PPM Blanket,30/10/2019,0141043,350.00,Revenue,The Guardian Shutter Co LTD,21769,,
Chorley Borough Council,http://statistics.data.gov.uk/id/local-authority/30UE,Unapportionable Central OHeads,1009,Policy & Governance,Practising Certificates,40202,Miscellaneous Expenses,5034,PC fees of NAMES REDACTED for 2019/20,18/10/2019,0141502,"1,237.00",Revenue,The Law Society,57091,,
Chorley Borough Council,http://statistics.data.gov.uk/id/local-authority/30UE,Central Support Services,1009,Early Intervention,Core Funding Grants,40133,Grants and Subscriptions,5031,small comm grant,16/10/2019,0141160,250.00,Revenue,"The Members, Coppull St Oswalds Allotments",75046,,
Chorley Borough Council,http://statistics.data.gov.uk/id/local-authority/30UE,Service Management & Support,1009,Customer & Digital,Supplies-Grounds Maintenance,40025,"Equipment, Furniture & Materia",5023,"Annual inspections for Astley Park 1,2 & 3 Annual inspection for Rangletts Rec",16/10/2019,0140569,450.00,Revenue,The Play Inspection Company,20632,,
Chorley Borough Council,http://statistics.data.gov.uk/id/local-authority/30UE,Corporate Management,1008,Customer & Digital,Printing,40043,"Printing, Stationery & General",5026,"1000 bin stickers with 5 day turnaround. Synthetic vinyl stickers with permanent adhesive, supplied on a roll,size 210mmx150mm",11/10/2019,0141256,419.13,Revenue,The Print Quarter,17987,,
Chorley Borough Council,http://statistics.data.gov.uk/id/local-authority/30UE,Central Support Services,1009,Early Intervention,Works In Default,40199,Miscellaneous Expenses,5034,Please carry out a repair in two places (as discussed on 15/07/19) to the perimeter fence of Chorley Rugby Union Club PR7 1XP,16/10/2019,0141390,295.00,Revenue,Thistlethwaite Fencing Contractors Ltd,78179,,
Chorley Borough Council,http://statistics.data.gov.uk/id/local-authority/30UE,Central Support Services,1009,Early Intervention,General Subscriptions,40146,Grants and Subscriptions,5031,Subscription to online version of Westlaw Encyclopedia of Environmental Health Law and Practice from 1st Sept 19 - 31st Aug 20,16/10/2019,0141283,"1,647.80",Revenue,Thomson Reuters RE;Sweet & Maxwell Limited,17932,,
Chorley Borough Council,http://statistics.data.gov.uk/id/local-authority/30UE,Planning Policy,1092,Business Development & Growth,Gas,20014,Energy Costs,5006,24/5/19 to 30/6/19,11/10/2019,0141338,250.48,Revenue,Total Gas and Power,77034,,
Chorley Borough Council,http://statistics.data.gov.uk/id/local-authority/30UE,Economic Development,1096,Business Development & Growth,Christmas Lights,40179,Miscellaneous Expenses,5034,"Chorley Town Centre, Instal Mini Christmas Trees with Lights x 170, Multi Tree Discount 297.50, Early Payment Discount 290",09/10/2019,0141036,"11,312.50",Revenue,Town Centre Trees,57436,,
Chorley Borough Council,http://statistics.data.gov.uk/id/local-authority/30UE,Business Support,1095,Business Development & Growth,Miscellaneous Expenses,40200,Miscellaneous Expenses,5034,Counter terror defence barriers / blocks as per quote QUO-08218-H5F8T4,30/10/2019,0141037,"9,598.56",Revenue,Townscape products ltd,78064,,
Chorley Borough Council,http://statistics.data.gov.uk/id/local-authority/30UE,Service Management & Support,1009,Policy & Governance,Vehicles and Plant Operating Lease,30029,Contrct Hire & Operating Lease,5018,Lease of Vauxhall Cage Tipper FH15 MZU 08/10/19 to 07/10/20,04/10/2019,0141126,"4,685.97",Revenue,Triple Point Lease Partners,71646,,
Chorley Borough Council,http://statistics.data.gov.uk/id/local-authority/30UE,Service Management & Support,1009,Customer & Digital,Vehicles and Plant Operating Lease,30029,Contrct Hire & Operating Lease,5018,Lease rental E-nv200 Van Acenta PK15 UPE 8th October 19 to 7th October 20,04/10/2019,0141128,"2,736.78",Revenue,Triple Point Lease Partners,71646,,
Chorley Borough Council,http://statistics.data.gov.uk/id/local-authority/30UE,Service Management & Support,1009,Customer & Digital,Vehicles and Plant Operating Lease,30029,Contrct Hire & Operating Lease,5018,Lease rental E-nv200 Van Acenta PK15 UOA 8th October 19 to 7th October 20,04/10/2019,0141128,"2,838.95",Revenue,Triple Point Lease Partners,71646,,
Chorley Borough Council,http://statistics.data.gov.uk/id/local-authority/30UE,Service Management & Support,1009,Customer & Digital,Vehicles and Plant Operating Lease,30029,Contrct Hire & Operating Lease,5018,Lease rental E-nv200 Van Acenta PE15 ZRJ 8th October 19 to 7th October 20,04/10/2019,0141128,"2,642.93",Revenue,Triple Point Lease Partners,71646,,
Chorley Borough Council,http://statistics.data.gov.uk/id/local-authority/30UE,Democratic Represent and  Mgnt,1007,Policy & Governance,Exhibitions & Special Events,40158,Miscellaneous Expenses,5034,Band performance on the Garden of Reflection Stage for Astley Walled Gardeners Apple Day - 6th October 2019.,30/10/2019,0141443,500.00,Revenue,Two Hats Blues Band,78137,,
Chorley Borough Council,http://statistics.data.gov.uk/id/local-authority/30UE,Democratic Represent and  Mgnt,1007,Policy & Governance,Grants To Other Organisations,40127,Grants and Subscriptions,5031,Cllr Comm Grant,18/10/2019,0140737,250.00,Revenue,Two Trees Community Garden,66384,,
Chorley Borough Council,http://statistics.data.gov.uk/id/local-authority/30UE,Service Management & Support,1009,Customer & Digital,Petrol,30005,Direct Transport Costs,5016,Fuel,18/10/2019,0140516,705.19,Revenue,Uk Fuels Ltd,57996,,
Chorley Borough Council,http://statistics.data.gov.uk/id/local-authority/30UE,Service Management & Support,1009,Customer & Digital,Petrol,30005,Direct Transport Costs,5016,29-Sep-19,18/10/2019,0141311,792.43,Revenue,Uk Fuels Ltd,57996,,
Chorley Borough Council,http://statistics.data.gov.uk/id/local-authority/30UE,Unapportionable Central OHeads,1009,Customer & Digital,Service Fees,40056,Services,5027,Daily hybrid mail & annual billing,16/10/2019,0140950,655.24,Revenue,UKMAIL Ltd (Mail),57758,,
Chorley Borough Council,http://statistics.data.gov.uk/id/local-authority/30UE,Unapportionable Central OHeads,1009,Customer & Digital,Service Fees,40056,Services,5027,Daily hybrid mail & annual billing,18/10/2019,0141009,868.92,Revenue,UKMAIL Ltd (Mail),57758,,
Chorley Borough Council,http://statistics.data.gov.uk/id/local-authority/30UE,Unapportionable Central OHeads,1009,Customer & Digital,Service Fees,40056,Services,5027,Daily hybrid mail & annual billing,18/10/2019,0141309,845.89,Revenue,UKMAIL Ltd (Mail),57758,,
Chorley Borough Council,http://statistics.data.gov.uk/id/local-authority/30UE,Unapportionable Central OHeads,1009,Customer & Digital,Service Fees,40056,Services,5027,Daily hybrid mail & annual billing,18/10/2019,0141310,"1,148.00",Revenue,UKMAIL Ltd (Mail),57758,,
Chorley Borough Council,http://statistics.data.gov.uk/id/local-authority/30UE,Unapportionable Central OHeads,1009,Customer & Digital,Service Fees,40056,Services,5027,Daily hybrid mail & annual billing,30/10/2019,0141536,701.66,Revenue,UKMAIL Ltd (Mail),57758,,
Chorley Borough Council,http://statistics.data.gov.uk/id/local-authority/30UE,Unapportionable Central OHeads,1009,Customer & Digital,Service Fees,40056,Services,5027,Daily hybrid mail & annual billing,30/10/2019,0141596,784.61,Revenue,UKMAIL Ltd (Mail),57758,,
Chorley Borough Council,http://statistics.data.gov.uk/id/local-authority/30UE,Control Accounts,Control,Policy & Governance,General Balances,00100,Balance Sheet,Balance,Monthly Deds from Payroll,18/10/2019,0141538,"2,979.16",Revenue,Unify Credit Union Ltd,55509,,
Chorley Borough Council,http://statistics.data.gov.uk/id/local-authority/30UE,Parking Services,1066,Business Development & Growth,Rent/Hire Of Premises,20017,Premises Rents,5007,Rent of Hollinshead St Car Park April 2019 - March 2020,16/10/2019,0141123,937.50,Revenue,United Reformed Church,20885,,
Chorley Borough Council,http://statistics.data.gov.uk/id/local-authority/30UE,Parking Services,1066,Business Development & Growth,Rent/Hire Of Premises,20017,Premises Rents,5007,rent,24/10/2019,0141575,937.50,Revenue,United Reformed Church,20885,,
Chorley Borough Council,http://statistics.data.gov.uk/id/local-authority/30UE,Capital,Capital,Early Intervention,Grants,03002,Capital Expenditure,Capital,ADDRESS REDACTED,04/10/2019,0141159,"3,983.70",Capital,UPS Building and Maintenance Ltd,76235,,
Chorley Borough Council,http://statistics.data.gov.uk/id/local-authority/30UE,Business Support,1095,Business Development & Growth,External Site Works,20010,Repairs Maintenance & Alts,5005,PRIMROSE GARDENS REPLACEMENT TREES - Excavate tree pits + and plant 2 Tilia �Greenspire 25-30cm girth / 350L tub,16/10/2019,0140509,"1,850.00",Revenue,W J Wilkinson & Sons (Landscaping) Ltd,78193,,
Chorley Borough Council,http://statistics.data.gov.uk/id/local-authority/30UE,Business Support,1095,Business Development & Growth,Miscellaneous Expenses,40200,Miscellaneous Expenses,5034,"Strawberry Fields A4 desk pads x1,500, Strawberry Fields Lanyards x500, Strawberry Fields To-Do Lists x1,000",02/10/2019,0140998,520.00,Revenue,WeBrand4You,68716,,
Chorley Borough Council,http://statistics.data.gov.uk/id/local-authority/30UE,Business Support,1095,Business Development & Growth,Miscellaneous Expenses,40200,Miscellaneous Expenses,5034,"Strawberry Fields A4 desk pads x1,500, Strawberry Fields Lanyards x500, Strawberry Fields To-Do Lists x1,000",02/10/2019,0140999,"1,245.00",Revenue,WeBrand4You,68716,,
Chorley Borough Council,http://statistics.data.gov.uk/id/local-authority/30UE,Business Support,1095,Business Development & Growth,Miscellaneous Expenses,40200,Miscellaneous Expenses,5034,"Strawberry Fields A4 desk pads x1,500, Strawberry Fields Lanyards x500, Strawberry Fields To-Do Lists x1,001",02/10/2019,0141024,350.00,Revenue,WeBrand4You,68716,,
Chorley Borough Council,http://statistics.data.gov.uk/id/local-authority/30UE,Service Management & Support,1009,Customer & Digital,Supplies-Grounds Maintenance,40025,"Equipment, Furniture & Materia",5023,"1500  Filled Sandbags 34x75cm Tubular Woven PP sack, colour black, heavy duty, 66 per Pallet Delivery Yarrow depot PR7 4",30/10/2019,0141688,"2,085.00",Revenue,Weir & Carmichael Ltd,76400,,
Chorley Borough Council,http://statistics.data.gov.uk/id/local-authority/30UE,Unapportionable Central OHeads,1009,Chief Executive,Postages,40082,Communication and Computing,5028,"Mail collections for Union St and Town Hall, April `19 to March `20",02/10/2019,0140844,381.99,Revenue,Whistl North Limited,67256,,
Chorley Borough Council,http://statistics.data.gov.uk/id/local-authority/30UE,Unapportionable Central OHeads,1009,Chief Executive,Postages,40082,Communication and Computing,5028,"Mail collections for Union St and Town Hall, April `19 to March `20",02/10/2019,0140989,290.41,Revenue,Whistl North Limited,67256,,
Chorley Borough Council,http://statistics.data.gov.uk/id/local-authority/30UE,Unapportionable Central OHeads,1009,Chief Executive,Postages,40082,Communication and Computing,5028,"Mail collections for Union St and Town Hall, April `19 to March `20",11/10/2019,0141261,306.70,Revenue,Whistl North Limited,67256,,
Chorley Borough Council,http://statistics.data.gov.uk/id/local-authority/30UE,Unapportionable Central OHeads,1009,Chief Executive,Postages,40082,Communication and Computing,5028,"Mail collections for Union St and Town Hall, April `19 to March `20",16/10/2019,0141457,360.51,Revenue,Whistl North Limited,67256,,
Chorley Borough Council,http://statistics.data.gov.uk/id/local-authority/30UE,Unapportionable Central OHeads,1009,Chief Executive,Postages,40082,Communication and Computing,5028,"Mail collections for Union St and Town Hall, April `19 to March `20",30/10/2019,0141589,295.39,Revenue,Whistl North Limited,67256,,
Chorley Borough Council,http://statistics.data.gov.uk/id/local-authority/30UE,Unapportionable Central OHeads,1009,Chief Executive,Postages,40082,Communication and Computing,5028,"Mail collections for Union St and Town Hall, April `19 to March `20",30/10/2019,0141709,400.06,Revenue,Whistl North Limited,67256,,
Chorley Borough Council,http://statistics.data.gov.uk/id/local-authority/30UE,Central Support Services,1009,Early Intervention,Core Funding Grants,40133,Grants and Subscriptions,5031,cor small comm grant,16/10/2019,0141158,300.00,Revenue,Whittle and Clayton Cricket Club,57315,,
Chorley Borough Council,http://statistics.data.gov.uk/id/local-authority/30UE,Recognised Cap Grants & Conts,,Customer & Digital,Contributions Parish Councils,40144,Grants and Subscriptions,5031,CIL 1 apr to 30 sept,11/10/2019,0141308,"4,494.75",Revenue,Whittle-le-Woods Parish Council,18602,,
Chorley Borough Council,http://statistics.data.gov.uk/id/local-authority/30UE,Capital,Capital,Business Development & Growth,Purchase Money,03027,Capital Expenditure,Capital,former copull railway,14/10/2019,0141383,"7,100.00",Capital,Wiggett Construction Ltd,77954,,
Chorley Borough Council,http://statistics.data.gov.uk/id/local-authority/30UE,Business Support,1095,Business Development & Growth,Miscellaneous Expenses,40200,Miscellaneous Expenses,5034,"Canopy and gutter clean - Market Walk, Bird netting under canopy Fragrance shop to Costa, Draining/covering of flower boxes ",30/10/2019,0141724,"5,800.00",Revenue,Windtex Engineering Ltd,78147,,
Chorley Borough Council,http://statistics.data.gov.uk/id/local-authority/30UE,Unapportionable Central OHeads,1009,Policy & Governance,Exhibitions & Special Events,40158,Miscellaneous Expenses,5034,2 x Multiskilled Stilt & Fire performers This includes  - 2 x Stilt Appearances  - 1 x Fire Show Each evening Fri4 & Sat 5 October,11/10/2019,0141301,800.00,Revenue,Wolf Entertainments,77607,,
Chorley Borough Council,http://statistics.data.gov.uk/id/local-authority/30UE,Corporate Management,1008,Customer & Digital,Provn Of Street Furniture,20057,Grounds Maintenance Costs,5013,"120 Litre Galvanised Steel Litter Bin Complete With Slight Peaked Capped Lid, Petal Ashtray and Stainless Steel Rod Hinge x11",30/10/2019,0141668,"2,090.00",Revenue,Wybone Ltd,18097,,
